Workbook

Sheet Contents
A1: APPLICATION FOR FUNDING
A2: NOFA 26
A3: Los Angeles County Development Authority
A5: Table of Contents
A9: Instructions | C9: Instructions
A11: General Information | C11: General Application Information
A13: Checklist | C13: Application Checklist
A15: CEQA | C15: CEQA Checklist
A17: Scoring | C17: A.1 - Scoring Worksheet
A19: Threshold | C19: B.1 - B.13: NOFA Application Threshold Items
A21: Project Info. | C21: C.1 - C.6: Project Summary, Development Team, Description, Timeline, and Relocation
A23: Financing | C23: D.1 - D.19: Project Financing, Budgets, Op. Subsidies, Tax Credits, Rents, Cash Flow, Etc.
A25: Site Info. | C25: E.1 - E.10: Readiness, Environmental Items, Title Report, Assessor Map, Appraisal
A27: Dev. Team | C27: F.1 - F.2: Organizational Resumes and Managing GP Experience
A29: Org. Docs. | C29: G.1 - G.9: Bylaws, IRS Documentation, CA Cert., Corp. Resolutions, Financial Statements, Etc.
A31: Supportive Services & Property Mgmt. | C31: H.1 - H.11: Services Narrative, Budget, Staffing, Management Plan, Experience, Etc.
A33: Design & Construction | C33: I.1 - I.27: Firm and Design Info., Green Building, Plans, Incentives, Etc.
A35: Other Documents | C35: J.1 - J.5: Various Misc. Items

Sheet Application Instructions
B2: APPLICATION FOR FUNDING
B3: NOFA Round 26
B6: This application accompanies the Notice of Funding Availability (NOFA) Round 26 released by the Los Angeles County Development Authority (LACDA) for the 2020-2021 Fiscal Year. It contains or references all documents needed to apply for capital funds. Supporting information is found in the NOFA Regulations and Guidelines and supplemental documents. Please consult the NOFA and other referenced documents for eligibility criteria and program guidelines. The NOFA and the Application for Funding is for multifamily affordable rental housing projects only.
B8: Application for Funding Instructions
B10: Applications must comply with the general requirements below. Once an application has been submitted, applicants will not be permitted the opportunity to add any information or cure deficiencies.
B12: 1 | C12: Applicants must upload this application and any associated documents to the LACDA's online NOFA application website (https://nofaonline.lacdc.org). This workbook should be uploaded as one Excel file, with all information completed.
B13: 2 | C13: LACDA forms are included in this file on individual, numbered worksheet tabs. However, this does not encompass all of the information required for a NOFA application. Items such as financing commitments, operating subsidy commitments, planning approvals, appraisal reports, etc. are separate documents that must be incorporated into the application by uploading these documents to the NOFA application website. Use the Application for Funding Checklist as a guide to what is required.
B15: 3 | C15: All applications must follow the format set forth in this Application for Funding. Applications that are incomplete, out of order, or have other content errors, inconsistencies, misrepresented information, or deficiencies will not pass Threshold Review and will not be scored.
B17: 4 | C17: Expand the narrative boxes to the size of the text entered. Font size shall be uniform with no smaller than 10 point font and single spaced.
B19: 5 | C19: "See attached" or "enclosed" as an answer is not sufficient. Brochures, clippings, or promotional pieces will not be considered as an acceptable response and should not be included in the application.
B21: 6 | C21: Within each section, documents from separate entities, or of different origins should be separated and clearly identified.
B23: 7 | C23: All questions must be answered. If any section or individual item does not apply to your project, indicate this on the Application Checklist and provide an explanation in the Notes column. "See attached" or "enclosed" is not sufficient.
B25: 8 | C25: Failure to follow with these requirements may lead to disqualification. Disqualified applications will not be evaluated.

Sheet General Information
B2: General Application Information
A5: 1 | B5: Project Name:
A7: 8 | B7: Type of LACDA assistance: | D7: (Select)
A9: 5 | B9: Will the project be using a coordinated entry system for lease-up? | H9: (Select)
B11: For City of Los Angeles projects in high- or highest-opportunity areas, is this project primary or secondary? | L11: (Select)
B13: LACDA Capital Request
B14: Affordable Housing Trust Fund award requested
B15: No Place Like Home award requested
G16: Total LACDA capital request | H16: =SUM(H14:I15) -> 0
A18: 7 | B18: Is the project retaining funds from a previous NOFA? | H18: (Select)
B20: If the project is retaining funds, identify the source and amount: | H20: (Select)
H21: (Select)
H22: (Select)
B25: LACDA Capital Leverage and Timing
A26: 2 | B26: Is this project applying to the California Tax Credit Allocation Committee for 9% or 4% Tax Credits? | L26: (Select)
A28: 3 | B28: If so, what is the anticipated date (month/year) for applying for Tax Credits?
A30: 4 | B30: Will the project use NOFA funds as leverage for another funding application? | I30: (Select)
A32: 4a | B32: If the project is using NOFA funds to leverage another source, what is the anticipated source and application date.
B33: Funding Source:
B34: Application Date:
B36: LACDA Retained PBV & PBVASH Allocations
B37: If the project is retaining an LACDA PBV allocation, identify the number of vouchers:
B38: If the project is retaining an LACDA PBVASH allocation, identify the number of vouchers:

Sheet Application Checklist
B2: Application Checklist
B4: Ensure that all items are included in the application. If any documents do not apply or are otherwise not enclosed, please provide an explanation in the Notes column.
E7: Required Item | H7: NOFA Reference | I7: Notes | J7: Specific Requirements
E10: Mandatory Proposers Conference Confirmation | H10: Section 2 | J10: Acknowledgement of attendance included in application submittal.
E11: General Application Information
E12: Application Checklist
C14: A. | E14: SCORING
C15: =+C$14&D15 -> A.1 | D15: 1 | F15: Scoring Worksheet | H15: Section 5
C17: B. | E17: THRESHOLD DOCUMENTS
C18: =+C$17&D18 -> B.1 | D18: 1 | F18: Statement of Eligibility | H18: Section 3
C19: B.2 | D19: =+D18+1 -> 2 | F19: Developer Experience | H19: Section 3 Section 5 | J19: List all projects of the Lead Developer or the Joint Developer; list projects with LACDA funding in predevelopment or construction phase.
C20: B.2.a | D20: 2.a | F20: Developer Tax Credit Experience
C21: B.3 | D21: =+D19+1 -> 3 | F21: Lead Service Provider Experience | H21: Section 3 Section 5
C22: B.4 | D22: =+D21+1 -> 4 | F22: Letter of Support / Consolidated Plan Compliance | H22: Section 3 | J22: Unincorporated Los Angeles County projects only: Email completed Consolidated Plan Compliance Form to Raymond Webster (Raymond.Webster@lacda.org) by the date indicated in the NOFA Timeline and include a copy as part of the NOFA application.
C23: B.5 | D23: =+D22+1 -> 5 | F23: Article 34 Compliance (If Applicable) | H23: Section 3 | J23: Provide documentation of Article 34 authority from the local jurisdiction, or a letter from the jurisdiction's city attorney indicating why Article 34 does not apply. If the project is located in Unincorporated Los Angeles County, the LACDA will coordinate Article 34 clearance as part of the funding reservation process and it does not need to be submitted with the application.
C24: B.6 | D24: =+D23+1 -> 6 | F24: Site Control | H24: Section 3 | J24: Provide any one of the following as evidence of Site Control: - a grant deed; or
J25: - a current title report (within 90 days of the Application Due Date) showing the Applicant holds fee title; or
J26: - an executed lease agreement or lease option for not less than 55 years between the Applicant and the owner of the subject property; or
J27: - an executed disposition and development agreement (DDA) between the Applicant and a public agency; or
J28: - a valid, current, enforceable contingent purchase and sale agreement or option agreement between the Applicant and the owner of the subject property. Evidence must be provided at the time of the application that all extensions and other conditions necessary to keep the agreement current through the application filing deadline have been executed; or -' an Agreement to Negotiate Exclusively or Exclusive Right to Negotiate.
C30: =+C$17&D30 -> B.7 | D30: =+D24+1 -> 7 | F30: Request for Confirmation of Compliance | H30: Section 3 | J30: E-mail completed Confirmation of Compliance Information Form to Nicole Quach (Nicole.Quach@lacda.org) by the date indicated in the NOFA Timeline and include a copy as part of the NOFA application.
C31: B.8 | D31: =+D30+1 -> 8 | F31: RESERVED
C32: B.9 | D32: 9 | F32: Evidence of Inclusion in City of Los Angeles 9% Managed Pipeline (If Applicable) | H32: Section 3 | J32: 9% tax credit projects in the City of Los Angeles must provide evidence of inclusion in the City of Los Angeles Housing + Community Investment Department (HCIDLA) managed pipeline.
C33: B.10 | D33: 10 | F33: Capital or Physical Needs Assessment (If Applicable) | H33: Section 3 | J33: Only needed for rehabilitation projects. The Assessment must meet TCAC requirements.
C34: B.11 | D34: 11 | F34: Supportive Services Plan & Architectural Design | H34: Section 3 | J34: At threshold review, the Supportive Services Plan will be evaluated to ensure that the requisite application forms and supporting documentation have been submitted in a complete manner. Architectural Design requirements also contain threshold items. Do not include Services or Architectural documents in this section; they should be uploaded in their respective sections in the online application. This threshold notification is for informational purposes.
C35: B.12 | D35: 12 | F35: Acknowledgements and Certifications | J35: Contains required acknowledgements and certifications for the following: 1. General Application Certification 2. Acknowledgement of Maximum Residential Per-Unit Development Cost 3. Acknowledgement of Accessibility Requirements 4. Acknowledgement of Universal Design Requirements 5. Acknowledgement of Supportive Services Requirements 6. Acknowledgement of Set-Aside Limit NPLH-Assisted Units 7. Certification Project is Free from Severe Environmental Contamination 8. Certification Lead Service Provider is on DHS Master Agreement List 9. Acknowledgement of Unsubordinated NPLH Regulatory Agreement
C36: B.13 | D36: 13 | F36: Applicant Certification Statement | J36: Include completed Applicant Certification Statement. See Worksheet B.13 for form of statement.
C37: =+C$17&D37 -> B.13.a | D37: 13.a | F37: List of Applicant Partnerships & Affiliations
C38: =+C$17&D38 -> B.14 | D38: 14 | F38: Environmental Service Request (If Applicable) | H38: Section 3 Supp. Doc 14 | J38: NEPA clearance for projects requesting PBVs, PBVASH Vouchers, or HOME funds (if available) will be prepared by the LACDA. Applicants must submit a completed Environmental Service Request (ESR) Form with their NOFA application. All awarded projects must receive NEPA clearance prior to construction loan financing.
C39: =+C$17&D39 -> B.15.a | D39: 15.a | F39: Request to DMH to Exceed 49% of Total Units (If Applicable) | H39: Section 1 | J39: If the project is seeking to restrict more than 49% of the total project units for NPLH residents, the Request to Exceed 49% of Total Units Attachment must be submitted to Reina Turner (rturner@dmh.lacounty.gov) by the date indicated in the NOFA Timeline. Include a copy of the request with the NOFA application.
C40: =+C$17&D40 -> B.15.b | D40: 15.b | F40: DMH Approval to Exceed 49% of Total Units (If Applicable) | H40: Section 1 | J40: Include evidence of approval from DMH for reserving more than 49% of the total project units for NPLH with the NOFA application. Include a copy of the response with the NOFA application.
C41: =+C$17&D41 -> B.16 | D41: 16 | F41: Justification for Residential Development Costs Exceeding $500,000 Per-Unit Maximum (If Applicable) | H41: Section 3
C43: C. | E43: PROJECT INFORMATION
C44: =+C$43&D44 -> C.1 | D44: 1 | F44: Project Summary
C45: C.2 | D45: =+D44+1 -> 2 | F45: Development Team
C46: C.3 | D46: =+D45+1 -> 3 | F46: Project Description
C47: C.4 | D47: =+D46+1 -> 4 | F47: Development Timeline
C48: C.5 | D48: =+D47+1 -> 5 | F48: Relocation Questionnaire | J48: The Relocation Questionnaire must be completed for ALL projects, even if "N/A". Occupant information forms, residential (a) and/or business (b), are only required of projects that involve relocation.
C49: C.5.a | F49: Occupant Information: Residential
C50: C.5.b | F50: Occupant Information: Businesses
C51: C.6 | D51: =+D48+1 -> 6 | F51: Relocation Plan & Cost Estimate
C53: D. | E53: FINANCING
C54: =C$53&D54 -> D.1 | D54: 1 | F54: Acquisition & Predevelopment Financing
C55: D.2 | D55: =+D54+1 -> 2 | F55: Sources
C56: D.3 | D56: 3 | F56: Operating Subsidies
C57: D.4 | D57: 4 | F57: Development Budget
C58: D.5 | D58: 5 | F58: Development Budget Notes & Assumptions
C59: D.6 | D59: 6 | F59: Operating Budget
C60: D.7 | D60: 7 | F60: Operating Budget Notes & Assumptions
C61: D.8.a | D61: 8.a | F61: Tax Credit Threshold Basis Limit - 9%
C62: D.8.b | D62: 8.b | F62: Tax Credit Calculation - 9%
C63: D.8.c | D63: 8.c | F63: Tax Credit Calculation - 9% Tie Breaker
C64: D.9.a | D64: 9.a | F64: Tax Credit Threshold Basis Limit - 4%
C65: D.9.b | D65: 9.b | F65: Tax Credit Calculation - 4%
C66: D.10 | D66: 10 | F66: Unit Mix & Rents
C67: D.11 | D67: 11 | F67: 20-Year Cash Flow
C68: D.12 | D68: 12 | F68: RESERVED
C69: D.13 | D69: 13 | F69: Utility Allowance Schedule | H69: Worksheet D.10
C70: D.14 | D70: =+D69+1 -> 14 | F70: Justification for Operating Expenses Lower than LACDA Minimum | H70: Section 6 | J70: Justification must include audited financial statements for the last two (2) years for two (2) comparable properties currently owned by the Applicant. The properties shall be similar in size, type, population, and location to the proposed project.
C71: D.15 | D71: 15 | F71: Financing Commitments (Perm & Construction) | H71: Section 5
C72: D.16 | D72: 16 | F72: Operating Subsidy Commitments | H72: Section 5
C73: D.17 | D73: 17 | F73: RESERVED
C74: D.18 | D74: 18 | F74: Justification For Income Targeting Higher Than 30% AMI For SN Units (If Applicable) | H74: Section 3
C75: D.19 | D75: 19 | F75: Demonstration That SN Households Can Pay Rents Higher Than 30% of SSI (If Applicable) | H75: Section 6
C77: E. | E77: SITE INFORMATION
C78: =C$77&D78 -> E.1 | D78: 1 | F78: Readiness | J78: Complete and include TCAC Attachment 26: Approvals Necessary to Begin Construction, if applicable. Attachment 26 is for information purposes only and does not need to be signed. Must meet TCAC Readiness to Proceed criteria for either the 1st TCAC 9% application round in 2021, 2nd TCAC 9% application round in 2021, or submit a 4% application by August 2021.
C79: =C$77&D79 -> E.2 | D79: =+D78+1 -> 2 | F79: Planning Approvals | H79: Section 3 | J79: Include zoning verification, documentation of entitlement approvals, or a description of the status of the approvals, as appropriate.
C80: E.3 | D80: 3 | F80: CEQA Approvals | H80: Section 2 | J80: See CEQA Documentation Checklist for required information.
C81: E.4 | D81: 4 | F81: NEPA Approvals | H81: Section 3 Supp. Doc 14 | J81: Include documentation of NEPA approval or a description of the status of the approval, as appropriate. NEPA clearance for projects requesting PBV, PBVASH, or HOME funds (if applicable) will be prepared by the LACDA. Applicants must submit a completed Environmental Service Request (ESR) Form with their NOFA application.
C82: E.5 | D82: 5 | F82: Phase I and II Environmental Site Assessment Reports | H82: Section 2 | J82: Phase I reports must be prepared in accordance with ASTM E-1527-13 standards. The report, or an update, must be dated within 180 days of the Application Due Date. Provide the Phase II report if required or recommended by the Phase I.
C83: E.6 | D83: 6 | F83: Lead-based Paint and Asbestos Reports | H83: Section 2 | J83: Required if existing structures are older than 1978. The report must comply with current applicable federal, state, and local regulations and requirements including: the National Emissions Standards for Hazardous Air Pollutants (NESHAPS) 40 CFR 61, Subpart M; Cal-OSHA Rule 1529; as well as South Coast Air Quality Management District (AQMD) requirements. The Lead Based Paint Comprehensive Survey must also comply with current federal, state, and local regulations and requirements, including the U.S. Department of Housing and Urban Development (HUD) 24 CFR Part 35, Lead-Based Paint Poisoning Prevention in Certain Residential Structures; the United States Environmental Protection Agency (EPA) 40 CFR 745, Lead: Renovation, Repair, and Painting Program; Federal OSHA regulations 29 CFR Section 1926.62, Lead Exposure in Construction, Interim Final Rule; and California Code of Regulations Title 8, Section 1532.1, Cal/OSHA Construction Safety Orders, Lead. The report must be dated within 180 days of the Application Due Date.
C84: E.7 | D84: 7 | F84: Termite Inspection Report | H84: Section 2 | J84: Required for Rehabilitation projects only. Must be dated within 180 days of the Application Due Date.
C85: E.8 | D85: 8 | F85: Current Title Report | J85: Must be dated within 90 days of Application Due Date.
C86: E.9 | D86: 9 | F86: Assessor's Parcel Map
C87: E.10 | D87: 10 | F87: Appraisal Requirements | H87: Section 2 Section 3 | J87: Must be prepared by a qualified appraiser in conformance with the Uniform Standards of Professional Appraisal Practice and be dated within 180 days of the purchase contract. The appraisal must indicate value as of the date appraised ("as is"). See complete requirements in Worksheet E.10.
C89: F. | E89: DEVELOPMENT TEAM
C90: =C$89&D90 -> F.1 | D90: 1 | F90: Organizational Resumes for Development Team Members Identified in Worksheet C.2 | J90: Organizational resumes for the Lead Service Provider and Architect should be included under H.6 and I.1, respectively.
C91: =C$89&D91 -> F.2 | D91: =+D90+1 -> 2 | F91: Managing General Partner Experience | H91: Section 5
C93: G. | E93: ORGANIZATIONAL DOCUMENTS
E94: Include the following documents for each organization that is part of the Applicant entity:
E95: For-Profit Entities:
C96: =C$93&D96 -> G.1 | D96: 1 | F96: Bylaws & Articles of Incorporation
C97: =C$93&D97 -> G.2 | D97: =+D96+1 -> 2 | F97: Fictional Business Statement
E98: Non-Profit Entities:
C99: =C$93&D99 -> G.3 | D99: =+D97+1 -> 3 | F99: Bylaws & Articles of Incorporation
C100: =C$93&D100 -> G.4 | D100: =+D99+1 -> 4 | F100: IRS Documentation of Non-Profit Status
E101: All Applicant Entities:
C102: =C$93&D102 -> G.5 | D102: =+D100+1 -> 5 | F102: CA Certificate of Good Standing | J102: Must be dated within 180 days of the application due date.
C103: G.6 | D103: =D102+1 -> 6 | F103: Corporate Resolution (Executed) | J103: Form of Corporate Resolution on Worksheet G.6.
C104: G.7 | D104: =+D103+1 -> 7 | F104: Board of Directors Affidavit (Executed) | J104: Form of Board of Directors Affidavit on Worksheet G.7.
C105: G.8 | D105: =+D104+1 -> 8 | F105: IRS Form W-9 (Completed)
C106: G.9 | D106: =+D105+1 -> 9 | F106: Financial Statements | J106: Provide certified 3rd party audited financial statements (which include balance sheet and operating or income & expenses statement) for the most recent two (2) years for all developer entities. If statements are older than 12 months at the Application Due Date, include an unaudited statement less than nine (9) months old. In the event certified 3rd party audited financial statements are unavailable for any applicant entity, submit copies of filed income tax returns for the most recent two (2) years AND a completed IRS Form 4506. In the event certified 3rd party audited financial statements are unavailable for a non-profit applicant entity, submit copies of IRS Form 990 for the most recent two (2) years.
C107: G.10 | D107: 10 | F107: Limited Partnership Organizational Chart | H107: Worksheet C.2
C109: H. | E109: SUPPORTIVE SERVICES & PROPERTY MANAGEMENT
F110: Supportive Services Plan Checklist | H110: Section 3 Supp. Doc 3 Supp. Doc 5 Supp. Doc 15
C111: =C$109&D111 -> H.1 | D111: 1 | F111: Supportive Service Narrative
C112: H.1.a | F112: Target Population Matrix
C113: =C$109&D113 -> H.2 | D113: =+D111+1 -> 2 | F113: RESERVED
C114: H.3 | D114: =+D113+1 -> 3 | F114: Supportive Services Staffing Chart
C115: H.4 | D115: 4 | F115: Supportive Service Budget
C116: H.4.a | D116: 4.a | F116: Supportive Services Budget - Sample (General Affordable)
C117: H.4.b | D117: 4.b | F117: Supportive Services Budget - Sample (VASH & General Affordable)
C118: =C$109&D118 -> H.5 | D118: =+D115+1 -> 5 | F118: Supportive Service Commitments
C119: H.6 | D119: 6 | F119: Lead Service Provider Organizational Resume
C120: H.7 | D120: 7 | F120: Resumes of Principals of Lead Service Provider
C121: H.8 | D121: 8 | F121: Organizational Chart of Lead Service Provider | J121: Include all positions described in the Staffing Chart (H.3).
C122: H.9 | D122: 9 | F122: Job Descriptions and Resumes For All Positions On Staffing Chart
C123: H.10 | D123: 10 | F123: Property Management Plan | H123: Section 3 Section 5 Section 7 Supp. Doc 3 Supp. Doc 5 Supp. Doc 15
C124: H.11 | D124: 11 | F124: Property Management Experience Form | H124: Section 5
C125: H.12 | D125: 12 | F125: Tenant Selection Plan | H125: Section 5 Supp. Doc 3 Supp. Doc 5 Supp. Doc 15
C127: I. | E127: DESIGN & CONSTRUCTION
C128: =C$127&D128 -> I.1 | D128: 1 | F128: Architectural Firm Resume
C129: =C$127&D129 -> I.2 | D129: 2 | F129: Architect Experience | H129: Section 3 Section 5
F130: Amenities:
C131: =C$127&D131 -> I.3 | D131: 3 | F131: Amenities Map | J131: Illustrate proximity of amenities to the project site. Include labeled, color photographs of amenities identified in the map (street-level photos or aerials may be submitted).
C132: =C$127&D132 -> I.4 | D132: 4 | F132: Certification of the Amenities Map
F133: Architectural Design: | H133: Section 3 Supp. Doc 4
C134: =C$127&D134 -> I.5 | D134: 5 | F134: Design Narrative
C135: I.6 | D135: 6 | F135: Photos of the Site and Adjacent Properties | J135: Provide labeled, color photographs (street-level photos or aerials may be submitted).
C136: I.7 | D136: 7 | F136: RESERVED
C137: I.8 | D137: 8 | F137: Site Plan/Ground Floor Plan | H137: Supp. Doc 4
C138: I.9 | D138: 9 | F138: Floor Plans | H138: Supp. Doc 4
C139: I.10 | D139: 10 | F139: Enlarged Floor Plans | H139: Supp. Doc 4 | J139: Include proposed unit types (minimum scale: 1/8" = 1'0").
C140: I.11 | D140: 11 | F140: Exterior Elevations | H140: Supp. Doc 4 | J140: All exterior and courtyard elevations (with finish materials noted); show adjacent grade up to property lines, street, and 20 feet beyond building, if applicable.
C141: I.12 | D141: 12 | F141: Building Section Drawings | H141: Supp. Doc 4 | J141: Show the line of finish grade extending beyond property lines.
C142: I.13 | D142: 13 | F142: Landscape Plan | H142: Supp. Doc 4
C143: I.14 | D143: 14 | F143: One Drawing Illustrating Spirit of the Project | J143: This may be a perspective, axonometric, or rendered elevation.
C144: I.15 | D144: 15 | F144: Vicinity Map | H144: Supp. Doc 4
C145: I.15.a | D145: 15.a | F145: Site Survey | H145: Supp. Doc 4
C146: I.16 | D146: 16 | F146: Sustainable Building Methods Compliance Certification
C147: I.17 | D147: 17 | F147: RESERVED
C148: I.18 | D148: 18 | F148: RESERVED
C149: I.19 | D149: 19 | F149: Title Sheet | H149: Supp. Doc 4
C150: I.20 | D150: 20 | F150: RESERVED
C151: =C$127&D151 -> I.21 | D151: 21 | F151: RESERVED
C152: I.22 | D152: 22 | F152: RESERVED
C153: I.23 | D153: 23 | F153: Unit Plans | H153: Supp. Doc 4
C154: I.24 | D154: 24 | F154: Conceptual Energy Model (Rehabilitation Projects Only) | H154: Supp. Doc 4
C155: I.25 | D155: 25 | F155: Rehabilitation Scope of Work | H155: Supp. Doc 4 | J155: Provide support documentation and a detailed description of the scope of improvements and reduction in energy use by 20% from tabulated baseline.
C156: I.25.a | D156: 25.a | F156: a. Property Needs Assessment | H156: Supp. Doc 4
C157: I.25.b | D157: 25.b | F157: b. Schedule of Values | H157: Supp. Doc 4
C158: I.25.c | D158: 25.c | F158: c. Rehabilitation Plans | H158: Supp. Doc 4
C159: I.26 | D159: 26 | F159: Construction Cost Estimate by Construction Specifications Institute Category | H159: Supp. Doc 4 | J159: May be prepared by contractor or cost estimator.
C160: I.27 | D160: 27 | F160: Section 3 Compliance and Local and Targeted Worker Hiring Program Compliance | H160: Section 7 Supp. Doc 2 | J160: Section 3 applies to HOME, PBVs & PBVASH Voucher projects only. Describe Section 3 (if applicable) and Local and Targeted Worker Hiring Program compliance. Submit any agreements or contracts with a contracted third party, if applicable.
C162: J. | E162: OTHER DOCUMENTS
C163: =C$162&D163 -> J.1 | D163: 1 | F163: RESERVED
C164: =C$162&D164 -> J.2 | D164: =+D163+1 -> 2 | F164: Applicant's Non-Discrimination and Equal Opportunity Policy | J164: Include each Applicant entity's Equal Opportunity Employment policy statement.
C165: =C$162&D165 -> J.3 | D165: =+D164+1 -> 3 | F165: Prevailing Wage Legal Opinion (If Applicable) | H165: Section 7 | J165: Provide an attorney's signed legal opinion if the applicant states that the project is exempt from State Prevailing Wages.
C166: =C$162&D166 -> J.4 | D166: 4 | F166: RESERVED
C167: =C$162&D167 -> J.5 | D167: 5 | F167: Certification of Seeking Other Public Funds
C169: K. | E169: PBV/PBVASH SUPPLEMENTAL APPLICATION
C170: =C$169&D163 -> K.1 | F170: Application for Rental Assistance (If Applicable) | H170: Section 3 | J170: Must be submitted to apply for PBVs and/or PBVASH Vouchers in LACDA's jurisdiction.

Sheet CEQA Checklist
B2: CEQA Documentation Checklist
B3: =IF('General Information'!C5="","",'General Information'!C5) -> 
C5: Acceptable CEQA documentation may include a Notice of Exemption, Negative Declaration, Mitigated Negative Declaration, or Environmental Impact Report approved by the local jurisdiction or lead agency. The LACDA requires the submittal of a copy of each document listed under the applicable category below as evidence of CEQA approval. If all CEQA documents are not submitted at the time of application, they must be received by the LACDA at least six (6) weeks prior to desired receipt of funding commitment from the LACDA. It is the Applicant's responsibility to submit CEQA documentation to the LACDA's point of contact. If CEQA documentation includes a Mitigated Negative Declaration, the associated Mitigation Monitoring Plan must also be included.
C11: Applicants relying on an Environmental Impact Report to demonstrate CEQA approval must contact the LACDA before application submittal and request confirmation of required documentation. A copy of this correspondence, as well as the specified documentation, must be enclosed with the application.
C16: Where the LACDA is the Lead Agency for CEQA approval, the LACDA will process CEQA approvals prior to funding award.
C20: The LACDA reserves the right to request additional environmental documentation as well as to reject CEQA clearances from other agencies when the LACDA determines, in its sole discretion, that such clearance is not in compliance with CEQA. In the event that all documents required to substantiate the CEQA clearance have been provided and the LACDA determines that the clearance provided by another jurisdiction is not in compliance with CEQA, the LACDA may request clarification or additional information. Failure to comply with this request or failure to satisfactorily address the LACDA’s concerns will prevent the LACDA from issuing a funding commitment.
C29: REQUIRED CEQA DOCUMENTATION
C30: If Notice of Exemption: | D30: If Negative Declaration: | E30: If Mitigated Negative Declaration:
C31: Signed letter from local jurisdiction or lead agency indicating type of exemption used. The letter must reflect the size and configuration of the project. | D31: • Initial study • Notice of public review with County Clerk Notice of Intent • Newspaper notice • Adopted resolution • Negative Declaration • Notice of Determination | E31: • Initial study • Notice of public review with County Clerk Notice of Intent • Newspaper notice • Adopted resolution • Mitigated Negative Declaration • Mitigation Monitoring Plan • Notice of Determination

Sheet A.1 Scoring Worksheet
B2: A.1 Scoring Worksheet
B3: =IF('General Information'!C5="","",'General Information'!C5) -> 
B5: Financing
B7: Committed Permanent Public Funds
B9: Five (5) points are awarded for every one percent (1%) of total residential development cost (residential sources only) financed with committed non-LACDA public funds, up to a maximum of 100 points. Points will be awarded based on non-LACDA permanent public funds currently committed to the project, consistent with the standards defined by TCAC Regulations Section 10325(c)(1)(C). Funds requested under this application are excluded from consideration. Projects located in Unincorporated Los Angeles County, or projects that include County-owned land will receive full points in this section.
C11: Source | I11: Amount
P12: FALSE | Q12: =IF(P12=TRUE,I12,0) -> 0
P13: FALSE | Q13: 0
P14: FALSE | Q14: 0
P15: FALSE | Q15: 0
P16: FALSE | Q16: 0
P17: FALSE | Q17: 0
P18: FALSE | Q18: 0
P19: FALSE | Q19: 0
G21: Total Committed Permanent Public Funds | I21: =SUM(I12:J19) -> 0
G22: Total Development Cost | I22: =+'D.4 Development Budget'!D116 -> 0
G23: Ratio | I23: =IF(AND(I21<>0,I22<>0),I21/I22,0) -> 0
C25: Total Points for Committed Permanent Public Funds | I25: =IF(I23<>0,MIN(ROUNDDOWN(I23*5*100,0),100),0) -> 0
B28: Committed Operating Support for Special Needs Units
B30: Three (3) points will be awarded for every five percent (5%) of Special Needs units with committed operating support, up to a maximum of 60 points. Points will be awarded based on operating support currently committed to the project, consistent with the standards defined by TCAC Regulations Section 10325(c)(1)(C). Projects located in Unincorporated Los Angeles County, or an LACDA participating jurisdiction that are applying for LACDA rental assistance through this NOFA will receive points as though the rental assistance was “committed”. Examples of committed operating support may include the following:
C31: o Section 8 Project-based Vouchers from a public housing authority; o Continuum of Care Recommendation to HUD of award of Project-based Shelter Plus Care Vouchers; o Commitment of previously awarded Sponsor-based Shelter Plus Care Vouchers; o CalHFA Commitment of MHSA Capitalized Operating Subsidy Reserve; o Commitment of operating subsidy from the Los Angeles County Department of Health Services (DHS); o Feasible cross subsidy, i.e., expenses of Special Needs units are paid by revenue from higher income units, assuming the NOFA's Operating Subsidy Underwriting criteria.
C34: Source | I34: Units
P35: FALSE | Q35: =IF(P35=TRUE,I35,0) -> 0
P36: FALSE | Q36: =IF(P36=TRUE,I36,0) -> 0
P37: FALSE | Q37: =IF(P37=TRUE,I37,0) -> 0
P38: FALSE | Q38: =IF(P38=TRUE,I38,0) -> 0
G40: Total Committed Operating Support for SN Units | I40: =SUM(I35:J38) -> 0
G41: Total Number of SN Units | I41: =SUM('C.1 Project Summary'!F74:F75) -> 0
G42: Ratio | I42: =IF(AND(I40<>0,I41<>0),I40/I41,0) -> 0
C44: Total Points for Committed Operating Support for SN Units | I44: =IF(I42<>0,MIN(ROUNDDOWN(I42*100/5,0)*3,60),0) -> 0
C46: Self-Score Summary | K46: Max Available Points | L46: Project Points
C47: Financing
C48: Committed Permanent Public Funds | K48: 100 | L48: =I25 -> 0
C49: Committed Operating Support for Special Needs Units or Preservation Units | K49: 60 | L49: =I44 -> 0
J50: Maximum Financing Points | K50: 160 | L50: =SUM(L48:L49) -> 0
C51: Development Team
C52: Developer Experience - Affordable | K52: 50
C53: GP Experience - Affordable | K53: 25
C54: GP Experience - Special Needs | K54: 25
C55: Property Management Experience - Affordable | K55: 25
C56: Property Management Experience - Special Needs | K56: 45
C57: Architect Experience | K57: 25
J58: Maximum Development Team Points | K58: =SUM(K52:K57) -> 195 | L58: =SUM(L52:L57) -> 0
C59: Geography
C60: Unincorporated LA County, HOME Participating City, or projects developed on County-owned Land | J60: 100 | K60: 50 or 100
C61: City Outside of the City of Los Angeles | J61: 50
J62: Maximum Geography Points | K62: 100 | L62: =L60 -> 0
C63: Project Type
C64: Special Needs Project | K64: 100
J65: Maximum Project Type Points | K65: 100 | L65: =L64 -> 0
J66: TOTAL APPLICATION POINTS | K66: =K50+K58+K62+K65 -> 555 | L66: =SUM(L65,L62,L58,L50) -> 0
J67: POINTS NEEDED FOR FUNDING ELIGIBILITY | K67: =K66*0.6 -> 333
B71: Application Process
B73: Applicants may submit a maximum of one application for a project in the City of Los Angeles in which they are the Lead Developer. Projects that are located in High and Highest Resource Areas, as defined by TCAC, are exempt from the one City of Los Angeles project per applicant restriction. There is no restriction on the number of projects per Developer outside of the City of Los Angeles.
B75: Additional Applications:
B77: 1. | C77: Project Name
C78: Address of Project Site
C79: City | G79: Zip Code
C80: Census Tract | G80: Supervisorial District
C81: Unincorporated County? | E81: (Select) | G81: High or Highest Resource Area? | K81: (Select)
B84: 2. | C84: Project Name
C85: Address of Project Site
C86: City | G86: Zip Code
C87: Census Tract | G87: Supervisorial District
C88: Unincorporated County? | E88: (Select) | G88: High or Highest Resource Area? | K88: (Select)
B91: 3. | C91: Project Name
C92: Address of Project Site
C93: City | G93: Zip Code
C94: Census Tract | G94: Supervisorial District
C95: Unincorporated County? | E95: (Select) | G95: High or Highest Resource Area? | K95: (Select)
B98: If submitting multiple projects, please indicate your priority for funding:
B100: 1.
B101: 2.
B102: 3.
B103: 4.

Sheet B.1 Statement of Eligibility
B2: B.1 STATEMENT OF ELIGIBILITY
B3: =IF('General Information'!C5="","",'General Information'!C5) -> 
B5: (Select) | C5: The proposed project involves New Construction.
B7: (Select) | D7: The proposed project involves Acquisition and Rehabilitation, as defined in the NOFA, and the application includes a capital needs assessment.
B10: (Select) | C10: The proposed project involves Preservation
D12: (Select) | F12: The proposed project is at least 25 units in size, in operation for over 15 years, and demonstrates that residents are at imminent risk of economic displacement.
D15: (Select) | F15: Units will house Senior or Special Needs tenants and meet NOFA acquisition/rehabilitation requirements.
B18: (Select) | C18: The proposed project assumes Low-Income Housing Tax Credit (LIHTC) financing.
D20: (Select) | F20: If the proposed project assumes LIHTC financing, the project provides at least 25 units of permanent, multifamily housing and set aside at least 20% of the total units, but no fewer than 15 units, for at least one qualifying Special Needs Population.
D24: (Select) | F24: If the proposed project does not assume LIHTC financing, the project provides at least 20% of units of permanent, multifamily housing and request at least $1,000,000 in capital funds.
B27: (Select) | D27: For projects requesting NPLH funding, the NPLH-assisted units meet NPLH eligibility criteria and the County of Los Angeles Deparment of Mental Health (DMH) approved the number of NPLH-assisted units in the project.
B30: (Select) | D30: The proposed project's housing units and other areas where residents may reasonably be expected to congregate are located greater than 500 feet from a freeway.
B33: (Select) | D33: The proposed project is located in its entirety within the geographic parameters defined for the funding requested.
B36: (Select) | D36: The proposed project has not commenced construction.
B38: (Select) | D38: The proposed project is located in Unincorporated Los Angeles County or a city within the jurisdiction of the LACDA (for PBV/PBVASH requests only).
B41: (Select) | D41: The proposed project acknowledges that it will use a coordinated entry system for PBV/PBVASH units.
B43: (Select) | D43: The proposed project asserts that it is financially feasible (assuming NOFA award).

Sheet B.2 Developer Experience
B2: B.2 Developer Experience
B3: =IF('General Information'!C5="","",'General Information'!C5) -> 
B5: Name of Developer:
B6: List ALL projects of the Lead Developer or the Joint Developer, but not both entities together.
B8: Project Name & Address | C8: Date Completed | D8: Project type (New Construction or rehab) | E8: Commercial Component (if any) | F8: Target Population | G8: Number of Restricted Units | H8: Number of Total Units | I8: Principal Funding Sources (LIHTC, MHP, etc.) | J8: Principal(s) Involved and Role
A9: 1
A10: 2
A11: 3
A12: 4
A13: 5
A14: 6
A15: 7
A16: 8
A17: 9
A18: 10
A19: 11
A20: 12
A21: 13
A22: 14
A23: 15
B26: List ALL projects of the Lead Developer or the Joint Developer with LACDA funding in predevelopment or construction phase.
B28: Project Name | C28: City | D28: District | E28: Unincorporated? | F28: Total Units | G28: Phase
A29: 1
A30: 2
A31: 3
A32: 4
A33: 5
A34: 6
A35: 7
A36: 8
A37: 9
A38: 10

Sheet B.2.a. Developer TC Experience
B2: B.2.a Developer Tax Credit Experience
B3: =IF('General Information'!C5="","",'General Information'!C5) -> 
B5: Name of Developer: | C5: =IF('B.2 Developer Experience'!C5="","",'B.2 Developer Experience'!C5) -> 
B6: List ALL Competitive 4% and 9% Tax Credit Projects that the Lead or Joint Developer or the Joint Developer has completed in the last five years.
B8: Project Name & Address | C8: Tax Credit Award (Year & Round) | D8: Number of Rounds Entered | E8: Set-Aside | F8: Housing Type | G8: Geographic Area | H8: Number of Tax Credit Units | I8: Number of Total Units | J8: Tie Breaker Score
A9: 1
A10: 2
A11: 3
A12: 4
A13: 5
A14: 6
A15: 7
A16: 8
A17: 9
A18: 10

Sheet B.3 Service Provider Experience
B2: B.3 Lead Service Provider Experience
B3: =IF('General Information'!C5="","",'General Information'!C5) -> 
B5: Name of Lead Service Provider:
B6: Target Special Needs Population(s):
B8: Note: Applicant team must include a supportive services provider with at least twelve (12) months of experience in providing supportive services to the Target Special Needs population in at least one housing-setting project. Target Populations are defined in Supplemental Document - Supportive Services Criteria. Information contained in this table will be used in the project's threshold review . Be specific when completing the Type of Special Needs column.
B10: Project Name & Address | C10: Beginning and End Date for Lead Service Provider | D10: Months Providing Services at the Project | E10: Type of Special Needs Population | F10: Number of Special Needs Units | G10: Number of Total Units | H10: Principal(s) Involved and Role
A11: 1
A12: 2
A13: 3
A14: 4
A15: 5
A16: 6
A17: 7
A18: 8
A19: 9
A20: 10
A21: 11
A22: 12

Sheet B.4 Con Plan Cert
B2: B.4 Consolidated Plan Compliance
B3: =IF('General Information'!C5="","",'General Information'!C5) -> 
B5: Certification of Consistency with the Consolidated Plan required by the U.S. Department of Housing and Urban Development (Unincorporated Los Angeles County Projects Only)
B7: I certify that the proposed activities/projects in the application are consistent with the jurisdiction's current, approved Consolidated Plan. (Type or clearly print the following information)
B9: Applicant Name:
B11: Project Name:
B12: Location of the Project:
B15: Name of the Program to which the applicant is applying: | D15: Los Angeles County Development Authority Notice of Funding Availability
B17: Name of Certifying Jurisdiction: | D17: Los Angeles County Development Authority
B19: Name of Certifying Official of the Jurisdiction: | D19: Emilio Salas
C22: Title: | D22: Acting Executive Director
C24: Signature:
C26: Date:
B29: Instructions: Complete items above the double line and then submit this form to: Raymond Webster, Community and Economic Development Division Los Angeles County Development Authority 700 W. Main Street, Alhambra, CA 91801 Phone: (626) 586-1755 E-mail: Raymond.Webster@lacda.org Fax: (626) 943-3838

Sheet B.7 Req. for Compliance
B2: B.7 Request for Confirmation of Compliance Information Form
B3: =IF('General Information'!C5="","",'General Information'!C5) -> 
B5: Complete this form and submit to: Nicole Quach at Nicole.Quach@lacda.org.
B7: Name of Proposed Project:
B9: Managing General Partner:
B10: Co-General Partner:
B13: Administrative General Partner:
B15: Sole Member of General Partner:
B17: Entity Contact Person:
C20: Email Address:
B23: This section to be completed by the LACDA Compliance Officer
B24: Identify any known compliance issues:

Sheet B.12 Acknowledgement & Cert.
B2: B.12 ACKNOWLEDGEMENTS AND CERTIFICATIONS
B4: Applicant: | D4: =IF('General Information'!C5="","",'General Information'!C5) -> 
A6: B.12.1 | B6: General Application Certification
B7: By checking below Applicant hereby certifies under penalty of perjury that all representations made in this application for funding from the LACDA for the identified project are true and correct to the best of Applicant's knowledge, after a prudent and reasonable investigation of all relevant facts and circumstances, at the time of the application's submission.
B8: For purposes of this certification, this application includes without limitation, all of the items and materials set forth in the Application for Funding, and all materials, documentation, information, and statements submitted in connection therewith and or in response to the NOFA and as may be requested by the LACDA.
B9: Applicant understands that if the above certification is untrue then, in addition to any remedies available at law or equity to the LACDA, this application may be rejected or the terms and conditions of any funding vehicle shall be modified by the LACDA, even after an award has been made.
B10: The representations made in this application shall remain true at all times from the date of this certification until any award is rendered and throughout the term of any loan or grant made to Applicant on account of this application, except that if any such representation should become materially false, misleading or incomplete, Applicant shall immediately notify the LACDA in writing and this application may be rejected or the terms and conditions of any grant or loan shall be modified by the LACDA, even after an award has been made.
C11: Applicant Acknowledgement and Certification
A14: B.12.2 | B14: Acknowledgement Maximum Residential Per-Unit Development Cost
B15: By checking below Applicant acknowledges that project eligibility includes only those projects with a maximum total development cost of $500,000 per unit or less and that the must approve an application for eligibility if total development costs, as provided in the Development Budget included in this application, exceed this amount. If costs exceed this maximum amount at the application stage, or at any time during the development of the project, the LACDA will immediately be provided with a detailed justification for exceeding this threshold. Applicant further understands that the LACDA may verify project costs, or require such projects to provide third-party verification of costs. The LACDA’s review of the justification and the result of any cost verification would inform the LACDA’s decision to accept or reject the application, or to approve cost increases during construction.
C16: The proposed project's residential development costs are below the $500,000 per-unit maximum.
C17: The proposed project's residential development costs exceed the $500,000 per-unit maximum. Justification for the development costs are included with this application.
A19: B.12.3 | B19: Acknowledgement of Accessibility Requirements
B20: Applicant understands the accessibility requirements for projects assisted by the LACDA and acknowledges that the development shall comply with all applicable requirements for access and design imposed by law, including, but not limited to, the 2010 ADA Standards, sections 11A and 11B of the California Building Code, Section 504 of the Rehabilitation Act, and the Fair Housing Act. Applicant is responsible for ensuring the project architect incorporates all accessibility requirements into the project design.
C21: Applicant Acknowledgement and Certification
A24: B.12.4 | B24: Acknowledgement of Universal Design Requirements
B26: By checking below, Applicant signifies understanding of the Universal Design requirements under this NOFA and acknowledges that the development shall comply with all elements of this standard, as identified in Architectural Design Requirements. This project falls under the following category:
C28: A senior housing project that is required to integrate the LACDA’s Universal Design Principles for all project units, and that shall be designed and placed in service as “fully accessible” (per ADA 2010 and CBC 11A and 11B).
C30: Not Applicable
A33: B.12.5 | B33: Acknowledgement of Supportive Services Requirements
B35: By checking below, Applicant acknowledges that the project's supportive service plan must address the identified service criteria for the project’s target special needs population(s) - both Homeless Special Needs and Other Special Needs residents. Supportive service plans for projects with multiple target populations must address the service criteria for all target populations, including the general affordable population. The plans must present a clear distinction between the staffing resources and supportive services allocated to each population, and which services are available to all. A lead service provider must be identified at the time of application.
C36: Applicant Acknowledgement and Certification
A39: B.12.6 | B39: Acknowledgement of Set Aside Limit for NPLH-Assisted Units
B40: By checking below, the proposed project acknowledges that no greater than 49% of total units may be set aside for NPLH-assisted units without approval from the LACDA and DMH. Additionally, the LACDA and DMH, in their sole and absolute discretion, may reduce the number of assisted units in a project.
C41: The proposed project's population set aside for NPLH-assisted units is less than or equal to 49% of the total project units.
C43: The proposed project's population set aside for NPLH-assisted units exceeds 49% of the total project units (applicant must include DMH approval with NOFA application).
A46: B.12.7 | B46: Certification That Project Site is Free From Severe Environmental Contamination
B48: By checking below, Applicant acknowledges NPLH funding environmental restrictions and certifies that the Project site is free from severe adverse environmental conditions, such as the presence of toxic waste that is economically infeasible to remove and that cannot be mitigated.
C50: Applicant Acknowledgement and Certification
A53: B.12.8 | B53: Certification That Lead Service Provider is on DHS Master Agreement List
B55: By checking below, Applicant certifies that the Lead Service Provider that will provide supportive services to non-NPLH tenants of the proposed project is part of the Department of Health Services' Master Services Contract for Intensive Case Management Services provision.
C57: Applicant Acknowledgement and Certification
A60: B.12.9 | B60: Acknowledgement of Unsubordinated NPLH Regulatory Agreement
B62: By checking below, Applicant acknowledges that the NPLH Regulatory Agreement, which outlines the NPLH affordability requirements and regulatory restrictions for NPLH-assisted units (including the NPLH Transition Reserve requirements and NPLH Target Population Requirements), will not be subordinated.
C64: Applicant Acknowledgement and Certification

Sheet B.13 Applicant Certification
B2: B.13 Applicant Certification Statement
B3: =IF('C.1 Project Summary'!E23="","",'C.1 Project Summary'!E23) -> 
B4: Please provide the following information for each entity (for profit and non-profit) of the applicant entity. Provide separate forms for each entity, as necessary. Do not leave any question unanswered. If not applicable, enter "N/A".
B5: For purposes of this Certification Statement, the term "Applicant" refers to the person(s) or entity(ies) applying for funding from the Los Angeles County Development Authority's (the LACDA) programs. The term “principal” means, with respect to a corporation, company or partnership, all those persons and entities who are directors, officers, members, partners or owners of the entity, whether directly or indirectly. For example, the president of a corporation that is a general partner, or a limited partner in a limited partnership is considered a “principal” of both the corporation and the limited partnership under this definition. The term “affiliate” means a person or entity that directly or indirectly, in full or in part, owns, controls, or is under full or partial common ownership or control, directly or indirectly with another person or entity. For example, if Sue Smith is a member of a limited liability company that is the general partner of ABC Limited Partnership, and Sue Smith also serves as the vice-president of XYZ Contractor Corporation, then ABC Limited Partnership and XYZ Contractor Corporation are “affiliates” under this definition. The responses to the below questions shall include disclosures regarding jurisdictions outside of California. So if Applicant or any of its partners, principals or affiliates are active outside of California or subject to the jurisdiction of parties outside of California, the responses below must include this information.
B7: 1 | C7: Applicant's Name:
B9: 2 | C9: List any additional names or aliases, exercise of power of attorney, and/or fiduciary trust capacities that you are currently using or have used in the past. If any, please explain.
B12: 3 | C12: Provide a list of all partnerships, corporations, joint ventures, and/or limited partnership entities (including the Applicant, if applicable), which you currently are or have been associated with, designate whether you are/were a principal and list your title and responsibilities, the purpose of the organization and its current status. Applicants may provide this information on their own form or using Worksheet B.13.a.
C15: a. Has any funding approval or funding eligibility of the Applicant or any of its partners, principals or affiliates ever been suspended, revoked, lapsed, and/or terminated for any reason? If yes, please explain.
C18: b. Has the Applicant or any of its partners, principals, or affiliates ever filed for bankruptcy? If yes, please explain and state the case number and whether the case was dismissed, discharged, or is current.
C21: c. Has the Applicant or any of its partners, principals, or affiliates ever defaulted on a financial obligation? If yes, please explain.
C24: d. Is there, or has there ever been, a settlement and/or judgment filed, or a case pending against the Applicant or any of its partners, principals, or affiliates? If yes, please explain.
C27: e. Has a lien ever been filed against real property owned by the Applicant or any of its partners, principals, or affiliates as a result of a judgment, etc.? If yes, please explain.
C30: f. Has the Applicant or any of its partners, principals, or affiliates been issued any professional licenses, including but not limited to architect, general contractor, engineer, law, securities broker, and/or real estate broker? If yes, please explain.
C33: g. Has the Applicant or any of its partners, principals, or affiliates had any professional licenses, revoked, suspended, surrendered, or terminated? If yes, please explain.
C36: h. Has the Applicant or any of its partners, principals, or affiliates defaulted on any contractual obligation involving a payment equal to or greater than $100,000, including but not limited to, loans, vendor agreements, and development agreements? If yes, please explain.
C39: i. Does the Applicant or any of its partners, principals, or affiliates have any record of violation of affordability or regulatory agreements with any public agency? If yes, please explain.
B42: 4 | C42: Has the Applicant or any of its partners, principals, or affiliates ever been convicted of a felony or misdemeanor other than minor traffic violations and/or placed on probation, fined, or given a suspended sentence in court? If yes, please explain.
B45: 5 | C45: Has the Applicant or any of its partners, principals, or affiliates ever been cited and/or convicted of a misdemeanor, including but not limited to a conviction under local health, fire, environmental, and/or building and safety laws, relating to the ownership and/or management of real property? If yes, please explain.
B48: 6 | C48: Does the Applicant, its partners or affiliates have any employees or relatives who have close association with current or former employees of the Los Angeles County Development Authority (LACDA)? If yes, please explain.
B52: 7 | C52: Are any current or former employees of LACDA currently employed by the Applicant, its principals, partners, or affiliates? Are relatives of any LACDA employees currently employed by the Applicant, its principals, partners, or affiliates? If yes, state names and dates of employment.
B55: 8 | C55: Are there any LACDA current or former employees that have a financial interest in this project? If yes, state names, dates of employment and interest.
B58: 9 | C58: List all residential income properties that are owned by the Applicant or any of its partners, principals, or affiliates, or in which the Applicant, or its principals or affiliates have a vested interest. Applicants may provide this information on their own form or using Worksheet B.13.a.
B61: 10 | C61: Does the Applicant or any of its principals, partners, or affiliates have any income and/or real property taxes or assessments that are past due? If yes, please explain.
B64: 11 | C64: Has the Applicant or any of its partners, principals, or affiliates failed to comply with Davis-Bacon or California prevailing wage requirements on any previous development projects? If yes, please explain.
B67: 12 | C67: What partners, principals, or affiliates of the Applicant will be involved with this proposed project as a contractor, subcontractor, lender, service provider, or manager? Please disclose all potential conflicts of interest or less than arm's length transactions that may occur in the development or operation of the project.
B71: NOTE: BY CHECKING BELOW, APPLICANT CERTIFIES ALL INFORMATION IS TRUE AND CORRECT. ANY FALSE OR INCOMPLETE STATEMENTS MAY, IN THE LACDA'S SOLE DISCRETION, BE GROUNDS FOR DENIAL OR REVOCATION OF FUNDING AT ANY TIME PRIOR TO OR AFTER LOAN FUNDING.
C74: Applicant certifies information is true and correct

Sheet B.13.a. List of Affiliations
B2: B.13.a List of Applicant Partnerships & Affiliations
B3: =IF('C.1 Project Summary'!E23="","",'C.1 Project Summary'!E23) -> 
B5: Applicant's Name:
B6: Provide a list of all partnerships, corporations, joint ventures, and/or limited partnership entities (including the Applicant, if applicable) with which you currently are or have been associated, designate whether you are/were a principal, and list your title and responsibilities, the purpose of the organization, and its current status.
B7: List all residential income properties that are owned by the Applicant, or any of its partners, principals or affiliates, or in which the Applicant, or its principals or affiliates, have a vested interest.
B8: Applicants may provide this information on their own form, if all required information is provided.
B10: Name of partnerships, corporations, joint ventures and limited partnerships | C10: Principal (Y/N) | D10: Title / Role | E10: Organization Purpose | F10: Name of Associated Property, if applicable | G10: Organization's Status

Sheet B.15.a. Req to Exceed 49%
A1: B.15.a Request to DMH to Exceed 49% of Total Units for NPLH Populations
A2: REQUEST TO EXCEED 49% OF TOTAL UNITS RESERVED FOR NPLH POPULATIONS Submit Request to: Reina Turner, Division Chief, Housing Policy and Development County of Los Angeles Department of Mental Health At the below email address
A3: rturner@dmh.lacounty.gov
A4: APPLICANT INFORMATION
A5: Applicant/Partnership Name | E5: Total Units in Development | F5: Requested Number of NPLH Assisted Units | G5: Percentage of Total Units | H5: Indicate the management structure of the partnership
A6: Proposed Development Name | H6: Name of the partnership
A7: Address | H7: Name and title of each partner
A8: Contact Name | H8: Specific roles and responsibilities of each member of the partnership
A9: Contact Phone Number
A11: DEVELOPING AND OPERATING HISTORY OF CURRENT PERMANENT SUPPORTIVE HOUSING - List the developments in the housing portfolio of the Managing General Partner that currently target individuals with serious mental illness
A12: Certificate of Completion Date | B12: Development Name | D12: Address | E12: Number of Units | H12: Housing Retention* | J12: Number of Turnovers | M12: Current Property Management Company | N12: Indicate the number of times the development changed property management companies | O12: Current Onsite Property Manager | P12: How often has the onsite Property Manager changed with the Property Management Company? | Q12: Indicate the rationale for changing the property management company or any turnover with the onsite property manager, if applicable | R12: Current onsite service providers | S12: Indicate the type of services provided onsite | T12: Time period that services were rendered
E14: Individual with serious mental illness | F14: Total Units | G14: Percentage of mental illness | H14: January - December 2018 | I14: January - December 2019 | J14: January - December 2018 | K14: January - December 2019
H16: Target | I16: Non-Target | J16: Target | K16: Non-Target
A22: * | B22: For the purposes of this NOFA, the retention rate is calculated as the number of occupied units divided by the number of available units as of the last day of each month, i.e. If there are 20 units targeting individuals with a serious mental illness and 15 of those units are occupied on the last day of the month of September, the retention rate for September would be 75%. Calculate the retention rate for each month and average the retention rate for the year. The retention rate for the non-targeted units will be calculated in the same manner.
A24: Comments: If desired, please provide any comments to further clarify any chart entry.
A28: Specific the documentation that would be available for review to verify that the developments listed above target individuals with a serious mental illness.
A29: How have you implemented Housing First in your tenant selection process? Include at least three examples in response.
A30: How have you used the tenets of the Permanent Supportive Housing Model and Housing First in addressing lease violations? Include at least three examples in response.

Sheet C.1 Project Summary
B2: C.1 Project Summary
B3: C.1.1 | D3: Applicant Information
D4: Applicant's Legal Name
D5: Common Name (if different)
D6: Principal in charge
D7: Federal Employer Identification Number
D8: Address
D9: Zip Code
D10: City
D11: Fax
D12: Telephone
D13: Applicant Type (menu selection) | E13: (Select)
B15: C.1.2 | D15: Applicant Contact During Application Process*
D16: Name
D17: Title
D18: Telephone
D19: Email
D20: * Person most knowledgeable about the application; may be different from the individual authorized to sign and submit the app.
B22: C.1.3 | D22: Project Data
D23: Project Name
D24: Address of Project Site
D25: City
D26: Zip Code
D27: Census Tract
D28: Supervisorial District
D29: Unincorporated county (Y/N) | E29: (Select)
D30: Service Planning Area
D31: Assessor's Parcel Number(s)
D32: High or Highest Resource Area (Y/N) | E32: (Select)
B34: C.1.4a | D34: Project Type (menu selection) | E34: (Select)
B36: C.1.4b | D36: Commercial Component (if any) | E36: (Select)
D37: If so, Commercial Size (Sf GBA):
B39: C.1.5a | D39: Eligible Population / Funding Source
D40: For the purpose of funding eligibility, Indicate the number of units by primary target population and funding source. Do not double count.
F42: Total Units | G42: Affordable Housing Trust Fund | H42: No Place Like Home | I42: PBV | J42: PBVASH
D43: Non-Special Needs Affordable Units
D44: Family (affordable non-senior units)
D45: Senior (affordable)
D46: Manager
D47: Market Rate
D49: Special Needs Units
D50: Total Special Needs Units
D52: Homeless Special Needs Units
D53: Homeless Households
D54: Chronically Homeless Households
D55: Homeless Veterans
D56: Homeless Seniors
D57: Homeless Households with a Mental Illness (non-NPLH)
D58: NPLH Homeless Households with Mental Illness
D59: NPLH Chronically Homeless Households with Mental Illness
D60: NPLH Households At-risk of Chronic Homelessness with Mental Illness
D62: Other Special Needs Units
D63: HIV / AIDS
D64: Intellectual and Developmental Disabilities
D65: Transition Age Youth
D66: Survivors of Domestic Violence or Human Trafficking
B68: C.1.5b | D68: Assisted Unit Mix / Funding Source
D69: Enter the total assisted units by funding source. For purposes of calculating the maximum eligible capital subsidy, please indicate those units where AHTF and NPLH funds are requested for the same unit (stacked) in both the "Affordable Housing Trust Fund" and "No Place Like Home" columns.
F71: Total Units | G71: Affordable Housing Trust Fund | H71: No Place Like Home | I71: PBV | J71: PBVASH
D72: Non-Special Needs (Family/Senior) | F72: =SUM(F44, F45, F47) -> 0
D73: Manager | F73: =+F46 -> 0
D74: Non-Homeless Special Needs | F74: =SUM(F63:F66) -> 0
D75: Homeless Special Needs - Stacked | F75: =SUM(F53:F60) -> 0
D76: Homeless Special Needs - Non-Stacked
D77: Total | F77: =SUM(F72:F75) -> 0 | G77: =SUM(G74:G76) -> 0 | H77: =SUM(H75:H76) -> 0 | I77: =SUM(I74:I76) -> 0 | J77: =SUM(J75:J76) -> 0
D78: Percentage Non-Homeless Special Needs Units | F78: =IF(F77=0,0,F74/F77) -> 0
D79: Percentage Homeless Units | F79: =IF(F77=0,0,F75/F$77) -> 0
D80: Percentage NPLH-Assisted Units* | F80: =IF(F78=0,0,H77/F$77) -> 0
D82: ** If the percentage of NPLH-assisted units exceeds 49% of total units, an approval letter from the LACDA / Department of Mental Health must be submitted with the NOFA application
B84: C.1.6 | D84: Maximum Potential Subsidy
D85: Select Project Type: | E85: (Select)
D86: Select Jurisdiction: | E86: (Select)
D89: Maximum Potential AHTF Subsidy | E89: =IF(E85='drop down menus'!G32,1000000,IF('C.1 Project Summary'!E86:G86='drop down menus'!G6,2000000,5000000)) -> 5000000
D90: Maximum Potential NPLH Subsidy | E90: =IF(E85='drop down menus'!G32,0,7000000) -> 7000000
D91: Maximum Potential Combined Subsidy* | E91: =IF(E85='drop down menus'!G32,SUM(E89:F90),IF(SUM(G75:H75)>=2,IF('C.1 Project Summary'!E86:G86='drop down menus'!G6,7500000,10000000),SUM(E89:F90))) -> 12000000
D92: * Per the NOFA, the maximum potential subsidy is calculated based on Capital vs. Preservation, location, and whether stacking of AHTF and NPLH subsidies is proposed.
D95: Capital Fund Per-Unit Subsidy Limits | E95: Number of Bedrooms
E96: Studio / 0 | F96: 1 | G96: 2+
E97: =IF(E85="","Select Project Type",IF(E85="Capital",140000,IF(E85="Preservation",100000,0))) -> 0 | F97: =IF(E85="","Select Project Type",IF(E85="Capital",150000,IF(E85="Preservation",100000,0))) -> 0 | G97: =IF(E85="","Select Project Type",IF(E85="Capital",160000,IF(E85="Preservation",100000,0))) -> 0
D100: Assisted Units by Type & Funding | E100: Number of Bedrooms
E101: Studio / 0 | F101: 1 | G101: 2+ | H101: Total
D102: AHTF-Assisted | H102: =SUM(E102:G102) -> 0
D103: NPLH- Assisted | H103: =SUM(E103:G103) -> 0
D104: Total Assisted Units | E104: =SUM(E102:E103) -> 0 | F104: =SUM(F102:F103) -> 0 | G104: =SUM(G102:G103) -> 0 | H104: =SUM(H102:H103) -> 0
D107: Maximum Calculated Subsidy | E107: Number of Bedrooms
E108: Studio / 0 | F108: 1 | G108: 2+ | H108: Total Calculated Subsidy | I108: Maximum Subsidy by Source | J108: Eligible Subsidy by Source
D109: AHTF-Assisted | E109: =E102*E$97 -> 0 | F109: 0 | G109: 0 | H109: =SUM(E109:G109) -> 0 | I109: =E89 -> 5000000 | J109: =MIN(H109,I109) -> 0
D110: NPLH- Assisted | E110: 0 | F110: 0 | G110: 0 | H110: =SUM(E110:G110) -> 0 | I110: =E90 -> 7000000 | J110: =MIN(H110,I110) -> 0
D113: Maximum Eligible Subsidy | E113: =MIN(E91,SUM(J109:J110)) -> 0
B115: C.1.7 | D115: Capital Funds Requested
I116: Amount Requested | J116: Request / Assisted Unit
D118: Capital / Non-Preservation Projects
D119: Affordable Housing Trust Fund (Maximum award: $2M in City of Los Angeles; $5M in the balance of Los Angeles County) | J119: =IF(AND(OR(I119<>"",I119<>0),H104<>0),I119/H104,0) -> 0
D120: No Place Like Home (Maximum award: $7M for any project, with no geographic restrictions. Funds are allocated on a per-unit bases for eligible assisted unit types. | J120: =IF(AND(OR(I120<>"",I120<>0),H104<>0),I120/H104,0) -> 0
D121: Preservation Projects (Maximum award: $1M) | J121: =IF(AND(OR(I121<>"",I121<>0),H104<>0),I121/H104,0) -> 0
H122: Total Capital Funds | I122: =SUM(I119:I121) -> 0

Sheet drop down menus (hidden)
A1: (Select)
A2: Yes
A3: No
A4: N/A | G4: (Select)
A5: (Select) | D5: Seller | G5: Unincorporated Los Angeles
A6: Non-profit | D6: Owner | G6: City of Los Angeles
A7: For-profit | D7: Tenant | G7: County Owned Land
A8: (Select) | G8: Incorporated area, outside City of Los Angeles
A9: Mixed Population | G9: HOME Participating City
A10: Special Needs | D10: (Select)
D11: Single Family | G11: (Select)
A12: (Select) | D12: Multifamily (Apts) | G12: Predevelopment
A13: Construction only | D13: (Select) | G13: Construction
A14: Permanent only | D14: Full Time
A15: Construction & Perm | D15: Part Time | G15: (Select)
A16: (Select) | G16: Non-rural project, Census Tract is Highest Resource (20 Percentage Points)
A17: Hard payments | G17: Non-rural project, Census Tract is High Resource (10 Percentage Points)
A18: Soft debt | D18: (Select) | G18: Rural project, Census Tract is Highest Resource (10 Percentage Points)
A19: Grant | D19: 4% Tax Credits | G19: Rural project, Census Tract is High Resource (5 Percentage Points)
A20: 4% Equity | D20: 9% Tax Credits | G20: N/A
A21: 9% Equity | D21: Not Applying for Tax Credits
A22: Other
A23: (Select) | D23: (Select)
A24: Y | D24: Affordable Housing Trust Funds
A25: N | D25: HOME
A26: (Select) | D26: Measure H
A27: Studio / SRO | D27: MHHP
A28: 1-Bedroom | D28: No Place Like Home
A29: 2-Bedroom
A30: 3-Bedroom | D30: (Select) | G30: (Select)
A31: 4-Bedroom | D31: Capital | G31: Capital
A32: 5-Bedroom | D32: Capital & Rental Assistance | G32: Preservation
D33: Preservation
A34: (Select) | D34: PBVASH only
A35: Acquisition
A36: Predevelopment | D36: (Select)
A37: Acq & Predevelopment | D37: Primary
D38: Secondary
A39: (Select)
A40: 0
A41: 0.01
A42: 0.02
A43: 0.03
A44: 0.04
A45: 0.05
A46: 0.06
A47: 0.07
A48: 0.08
A49: 0.09
A50: 0.1
D56: 0
D57: 3 | E57: 0 | F57: 0 | G57: 0 | H57: 0
A58: 0 | B58: 0 | C58: 0 | D58: 4 | E58: 5 | F58: 2 | G58: 1 | H58: 2
A59: 3 | B59: 15 | C59: 10 | D59: 5 | H59: 4

Sheet C.2 Development Team
B2: C.2 Development Team
B3: =IF('C.1 Project Summary'!E23="","",'C.1 Project Summary'!E23) -> 
B5: C.2.1 | C5: Development Team Members
C7: Managing General Partner
C8: Name:
C9: Address:
C11: Phone: | G11: Fax:
C12: Email:
C14: Co-General Partner
C15: Name:
C16: Address:
C18: Phone: | G18: Fax:
C19: Email:
C21: Lead Developer
C22: Name:
C23: Address:
C25: Phone: | G25: Fax:
C26: Email:
C28: Joint Developer
C29: Name:
C30: Address:
C32: Phone: | G32: Fax:
C33: Email:
C35: Lead Service Provider
C36: Name:
C37: Address:
C39: Phone: | G39: Fax:
C40: Email:
C42: Architect
C43: Name:
C44: Address:
C46: Phone: | G46: Fax:
C47: Email:
C49: Financial Consultant
C50: Name:
C51: Address:
C53: Phone: | G53: Fax:
C54: Email:
C56: Attorney
C57: Name:
C58: Address:
C60: Phone: | G60: Fax:
C61: Email:
C63: Property Management Agent
C64: Name:
C65: Address:
C67: Phone: | G67: Fax:
C68: Email:
C70: General Contractor
C71: Name:
C72: Address:
C74: Phone: | G74: Fax:
C75: Email:
B77: C.2.2 | C77: Applicant Background
C79: C.2.2.1 | D79: State the mission of the applicant and how the proposed development fits into that mission.
C82: C.2.2.2 | D82: Describe the applicant entity, including type of organization (limited partnership, corporation, local government, etc.), status of formation, and current or prospective partners. Attach a limited partnership organizational chart.
C85: C.2.2.3 | D85: Provide information regarding the roles and responsibilities of each applicant entity.

Sheet C.3 Project Description
B1: C.3 Project Description
B2: =IF('C.1 Project Summary'!E23="","",'C.1 Project Summary'!E23) -> 
B3: C.3.1 | C3: Site and Surrounding Area:
C5: C.3.1.1 | D5: Existing building to rehab: | H5: Year built: | K5: Lead-based Paint report included
K6: Asbestos report included
C7: C.3.1.2 | D7: Indicate the form of site control
E8: Fee Title | H8: Purchase and Sale Agreement | L8: Exclusive Right to Negotiate
E9: Option Agreement | H9: Long-term Lease | L9: DDA or Owner Participation
L10: Agreement
C11: C.3.1.3 | D11: Briefly describe existing site conditions - i.e. number and type of structures; number of units, including number of bedrooms per unit. Please describe the current use and condition of the project site.
C14: C.3.1.4 | D14: Provide a complete description of the proposed capital improvement project, including the following: project design, location, style, approximate size, number of commercial and/or residential units, and number of bedrooms. Indicate whether the project will include acquisition, rehabilitation/repair, demolition, reconfiguration or new construction. Please include the number of buildings and units to be demolished and the number of new units.
C17: C.3.1.5 | D17: What physical amenities (residential units and common spaces) are provided by the project? Also indicate type of parking (surface, subterranean, semi-subterranean, truck-under, etc.) and number of spaces.
C20: C.3.1.6 | D20: Describe the population the project intends to serve and how the decision was made to serve this population.
C23: C.3.1.7 | D23: Describe the public benefit of the project.
C26: C.3.1.8 | D26: Describe the present and proposed ownership structure
C29: C.3.1.9 | D29: Describe the site topography and how this affects the project design. Identify conditions such as slope (ie: hillside conditions that may require extensive retaining walls and affect circulation paths), site constraints (ie: narrow or irregularly-shaped lots, etc.), environmental issues (ie: expansive soils, liquefaction) that could impact construction costs and influence the project design.
C32: C.3.1.10 | D32: Describe the area surrounding the site, including adjacent uses and proximity to amenities, such as transportation corridors, educational facilities, healthcare facilities, grocery stores, shopping centers, and social services.
C35: C.3.1.11 | D35: Will the current zoning accommodate the project as proposed? | K35: (Select)
D37: If no, explain what discretionary approvals are necessary, the issuing jurisdiction, and the timeline for such approvals.
C40: C.3.1.7 | D40: Site Size: | G40: Acres | I40: Sf Land
B42: C.3.2 | C42: Project Description
C43: C.3.2.1 | D43: Provide a summary of the project, including residential/non-residential square footage.
C46: C.3.2.2 | D46: Unit mix and floor area (must match unit mix in Section D.10)
G48: Affordable | I48: Market Rate | L48: Total
D49: Unit Type | F49: Size (sq.ft.) | G49: No. of Units | H49: No. of Accessible Units1 | I49: No. of Units | J49: No. of Accessible Units1 | K49: Manager Unit | L49: Total Units | M49: # Accessible Units1
D50: 0 BR | L50: =SUM(G50,I50,K50) -> 0 | M50: =SUM(H50,J50) -> 0
D51: 1 BR | L51: =SUM(G51,I51,K51) -> 0 | M51: =SUM(H51,J51) -> 0
D52: 2 BR | L52: =SUM(G52,I52,K52) -> 0 | M52: =SUM(H52,J52) -> 0
D53: 3 BR | L53: =SUM(G53,I53,K53) -> 0 | M53: =SUM(H53,J53) -> 0
D54: 4 BR | L54: =SUM(G54,I54,K54) -> 0 | M54: =SUM(H54,J54) -> 0
F55: Total | G55: =SUM(G50:G54) -> 0 | H55: =SUM(H50:H51) -> 0 | I55: =SUM(I50:I54) -> 0 | J55: =SUM(J50:J51) -> 0 | K55: =SUM(K50:K54) -> 0 | L55: =SUM(L50:L54) -> 0 | M55: =SUM(M50:M54) -> 0
D57: 1. Of the total affordable and market-rate units, indicate the number of units configured to meet accessibility requirements.
D58: 2.The restricted unit type and number of units must match commitments related to other funding sources.
C60: C.3.2.3 | D60: Number of buildings | H60: Residential
H61: Commercial
H62: Other
H63: Total | J63: =SUM(J60:J62) -> 0
C65: C.3.2.4 | D65: Please indicate which of the following attributes apply to the project:
D66: Yes | E66: No
F67: New construction
F69: Acquisition with Substantial Rehabilitation
F71: Demolition of existing residential units required
G72: If yes, explain why this approach is necessary and describe if any residential units occupied by low-income households will be demolished.
F75: Historic structure (listed on National Register of Historic Places)
F77: Existing structure(s) built prior to 1978 (must budget for lead and asbestos testing and abatement if rehabilitation or demolition is planned).
F79: Payment of California Prevailing Wage required.
G80: If yes or no, explain why.
F83: Payment of federal Davis-Bacon wage required.
G84: If yes or no, explain why.
F87: Relocation of existing tenants required (applicants must complete Section C.5 Relocation Questionnaire even if no relocation is necessary).
F89: Project is fully entitled
C91: C.3.2.5 | D91: If project involves rehabilitation, please summarize the scope of work. How was the scope of work determined? Are there any unresolved design issues that will impact the scope of work? Who is responsible for revising the scope of work based on changes required and/or value engineering?
C94: C.3.2.6 | D94: Indicate whether the project includes the physical components below. Provide descriptions where necessary.
D95: Yes | E95: No
F96: Commercial space
G97: If yes, describe the number of spaces, size, proposed tenancy, and marketing plan.
G99: If yes, please indicate whether the cost of any tenant improvements will be borne by the partnership.
G100: If yes, describe the nature of the T.I. work and what sources of financing are proposed to cover those costs.
F103: Parking (indicate type)
G104: Surface | I104: Semi-subterranean
G105: Tuck-under | I105: Subterranean
G106: Indicate number of residential and commercial parking spaces.
D108: Yes | E108: No
F109: Community room
G110: If yes, describe the size of space and use.
F113: Other residential common areas (describe)
F116: Laundry facilities
G117: If yes, describe the size of space and location(s).
B119: C.3.3 | C119: Community Outreach
C120: Provide details on the development team's community outreach strategy for the project. Refer to the NOFA Supplemental Document - Community Outreach Guidelines.
C122: C.3.4.1 | D122: Describe the community outreach that has taken place to date.
C125: C.3.4.2 | D125: Has the project undergone a rigorous design review that included an opportunity for public comment? Describe the process and groups involved. Describe specific design elements requested through this process and attach associated documentation. Incorporate these elements into the Design Narrative.
C128: C.3.4.3 | D128: Will the project cause the local jurisdiction to hold public hearings or solicit public comment in the future? Examples include hearings for design review, funding allocations, zoning variances, or a conditional use permit.
E129: Yes
E130: No
C132: C.3.4.4 | D132: Detail any plans for neighborhood meetings (e.g. small neighborhood home meetings, meetings with specific stakeholder groups, meetings for those within a certain radius of the site, etc.). Be sure to address the following points:
D133: 1) | E133: Outreach strategy (e.g. mailers, door-to-door fliers, personal invitations, etc.).
D134: 2) | E134: Strategy for developing support for the project (e.g. meetings with key supporters prior to community meetings, telephone conversations with key individuals, tours of similar facilities already in operation, etc.).
D135: 3) | E135: Timeframe for accomplishing outreach goals

Sheet C.4 Development Timeline
B2: C.4 Development Timeline
B3: =IF('C.1 Project Summary'!E23="","",'C.1 Project Summary'!E23) -> 
E5: Event Type | I5: Date
E7: Site Control
E9: Entitlements
E11: Site Plan Approval
E13: Design Review
E15: CEQA Approval
E17: NEPA Approval
E19: TCAC Application
E21: Funding Commitments:
E23: Source:
E24: Funding commitment
E26: Source:
E27: Funding commitment
E29: Source:
E30: Funding commitment
E32: Source:
E33: Funding commitment
E35: Source:
E36: Funding commitment
E38: Source:
E39: Funding commitment
E41: Source:
E42: Funding commitment
E44: Source:
E45: Funding commitment
E47: Construction Closing
E49: Construction Start
E51: Start of Lease-up Activities
E53: Construction Completion
E55: 100% Occupancy
E57: Permanent Loan Conversion

Sheet C.5 Relocation Questionnaire
B2: C.5 Relocation Questionnaire
B3: =IF('C.1 Project Summary'!E23="","",'C.1 Project Summary'!E23) -> 
B4: C.5.1 | C4: When did the current owner purchase the property?
B6: C.5.2 | C6: Was this a voluntary sale? | E6: (Select)
B8: C.5.3 | C8: What was the current owner's reason for purchasing the property?
B11: C.5.4 | C11: Do you intend to change the use of this property? | F11: (Select)
B13: C.5.5 | C13: If so, please describe:
B16: C.5.6 | C16: Have you ever applied for or received public funds for this proposed project? | H16: (Select)
B18: C.5.7 | C18: If yes, provide the following information.
C19: Funding Source: | G19: Amount:
C20: Contact Name:
C21: Phone/email:
C22: Date of commitment:
C23: Use of funds:
C25: Funding Source: | G25: Amount:
C26: Contact Name:
C27: Phone/email:
C28: Date of commitment:
C29: Use of funds:
B31: C.5.8 | C31: Complete the appropriate form (C.5.a Business and/or C.5.b Residential) to list all occupants of the property from 12 months prior to the date of purchase to the present.
B33: C.5.9 | C33: Is or was the current owner an occupant of the site? | F33: (Select)
B35: C.5.10 | C35: Is the property currently vacant? | F35: (Select)
B37: C.5.11 | C37: If yes, on what date did it become vacant?
B39: C.5.12 | C39: If yes, how did it become vacant (did tenants voluntarily leave, were relocation benefits paid, etc.)?
B42: C.5.13 | C42: Attach a copy of the relocation plan with cost estimate (if applicable) as C.6.
B44: C.5.14 | C44: Identify the relocation consultant that carried out or will carry out the relocation plan.
B47: C.5.15 | C47: Specify the source(s) of funds to pay relocation costs.

Sheet C.5.a. Residential Occupants
A1: C.5.a Occupant Information: Residential
A2: =IF('C.1 Project Summary'!E23="","",'C.1 Project Summary'!E23) -> 
A3: Total Residential Units
A5: Household Name and Address | B5: Current Occupant? | C5: Date Moved | D5: Type of Occupancy | E5: Type of Unit | F5: Total Rooms | G5: Race/ Ethnicity | H5: Persons in Household | I5: Estimated Annual Total Household Income | J5: Monthly Rent | K5: Relocation Benefit Paid? | L5: Relocation Benefit Amount Paid
A6: Name:
A7: Address:
A8: Phone:
A9: Name:
A10: Address:
A11: Phone:
A12: Name:
A13: Address:
A14: Phone:
A15: Name:
A16: Address:
A17: Phone:
A18: Name:
A19: Address:
A20: Phone:
A21: Name:
A22: Address:
A23: Phone:
A24: Name:
A25: Address:
A26: Phone:
A27: Name:
A28: Address:
A29: Phone:
A30: Name:
A31: Address:
A32: Phone:

Sheet C.5.b. Business Occupants
B1: C.5.b Occupant Information: Businesses
B2: =IF('C.1 Project Summary'!E23="","",'C.1 Project Summary'!E23) -> 
B4: Total Business Units:
B6: Business Name Business Address | C6: Type of Occupancy | D6: Type of Business | E6: Current Occupant? | F6: Date Moved? | G6: Relocation Benefit Paid? | H6: Relocation Benefit Amount Paid
B7: Name:
B8: Address:
B9: Phone:
B10: Name:
B11: Address:
B12: Phone:
B13: Name:
B14: Address:
B15: Phone:
B16: Name:
B17: Address:
B18: Phone:
B19: Name:
B20: Address:
B21: Phone:
B22: Name:
B23: Address:
B24: Phone:
B25: Name:
B26: Address:
B27: Phone:
B28: Name:
B29: Address:
B30: Phone:
B31: Name:
B32: Address:
B33: Phone:
B34: Name:
B35: Address:
B36: Phone:
B37: Name:
B38: Address:
B39: Phone:
B40: Name:
B41: Address:
B42: Phone:
B43: Name:
B44: Address:
B45: Phone:

Sheet D.1 Acq Predev Financing
B2: D.1 Acquisition & Predevelopment Financing | F2: =IF('C.1 Project Summary'!$E$22<>"",'C.1 Project Summary'!$E$22,"") -> 
C4: Lien Position | D4: Name of Lender/Source | E4: Term in Months | F4: Interest Rate | G4: Amount of Funds
F13: Total Funds for Acquisition/Predevelopment | G13: =SUM(G5:G12) -> 0
B15: 1. | C15: Name of Lender/Source
C16: Contact Name
C17: Street Address
C18: City/State
C19: Phone Number
C20: Fax Number
C21: Email Address
C22: Use (menu selection) | E22: (Select)
B24: 2. | C24: Name of Lender/Source
C25: Contact Name
C26: Street Address
C27: City/State
C28: Phone Number
C29: Fax Number
C30: Email Address
C31: Use (menu selection) | E31: (Select)
B33: 3. | C33: Name of Lender/Source
C34: Contact Name
C35: Street Address
C36: City/State
C37: Phone Number
C38: Fax Number
C39: Email Address
C40: Use (menu selection) | E40: (Select)
B42: 4. | C42: Name of Lender/Source
C43: Contact Name
C44: Street Address
C45: City/State
C46: Phone Number
C47: Fax Number
C48: Email Address
C49: Use (menu selection) | E49: (Select)
B51: 5. | C51: Name of Lender/Source
C52: Contact Name
C53: Street Address
C54: City/State
C55: Phone Number
C56: Fax Number
C57: Email Address
C58: Use (menu selection) | E58: (Select)

Sheet D.2 Sources
B2: D.2 Sources | F2: =IF('C.1 Project Summary'!$E$22<>"",'C.1 Project Summary'!$E$22,"") -> 
B3: =IF('C.1 Project Summary'!E23="","",'C.1 Project Summary'!E23) -> 
J4: Residential Component | K4: Commercial Component
C5: CONSTRUCTION SOURCES
C6: Lien Position | D6: Name of Lender/Source | E6: Term in Months | F6: Interest Rate | G6: Amount of Funds | J6: Amount of Funds | K6: Amount of Funds
F15: Total Tax Credit Equity
F16: Total Funds for Construction | G16: =SUM(G7:G15) -> 0 | J16: =SUM(J7:J15) -> 0 | K16: =SUM(K7:K15) -> 0
C17: NOTE: Do not show deferred interest as a source.
J18: Residential Component | K18: Commercial Component
C19: PERMANENT SOURCES
C20: Lien Position | D20: Name of Lender/Source | E20: Term in Months | F20: Interest Rate | G20: Amount of Funds | H20: Annual Debt Service | J20: Amount of Funds | K20: Amount of Funds
F29: Total Permanent Financing | G29: =SUM(G21:G28) -> 0
F30: Total Tax Credit Equity | J30: =SUM(J21:J29) -> 0 | K30: =SUM(K21:K29) -> 0
F31: Total Sources of Project Funds | G31: =SUM(G29:G30) -> 0
C32: NOTE: Do not show deferred interest as a source.
B34: 1. | C34: Name of Lender/Source
C35: Contact Name
C36: Street Address
C37: City/State
C38: Phone Number
C39: Fax Number
C40: Email Address
C41: Type of Financing (menu selection) | E41: (Select)
C42: Term of Financing (menu selection) | E42: (Select)
C43: Committed (menu selection) | E43: (Select)
B45: 2. | C45: Name of Lender/Source
C46: Contact Name
C47: Street Address
C48: City/State
C49: Phone Number
C50: Fax Number
C51: Email Address
C52: Type of Financing (menu selection) | E52: (Select)
C53: Term of Financing (menu selection) | E53: (Select)
C54: Committed (menu selection) | E54: (Select)
B56: 3. | C56: Name of Lender/Source
C57: Contact Name
C58: Street Address
C59: City/State
C60: Phone Number
C61: Fax Number
C62: Email Address
C63: Type of Financing (menu selection) | E63: (Select)
C64: Term of Financing (menu selection) | E64: (Select)
C65: Committed (menu selection) | E65: (Select)
B67: 4. | C67: Name of Lender/Source
C68: Contact Name
C69: Street Address
C70: City/State
C71: Phone Number
C72: Fax Number
C73: Email Address
C74: Type of Financing (menu selection) | E74: (Select)
C75: Term of Financing (menu selection) | E75: (Select)
C76: Committed (menu selection) | E76: (Select)
B78: 5. | C78: Name of Lender/Source
C79: Contact Name
C80: Street Address
C81: City/State
C82: Phone Number
C83: Fax Number
C84: Email Address
C85: Type of Financing (menu selection) | E85: (Select)
C86: Term of Financing (menu selection) | E86: (Select)
C87: Committed (menu selection) | E87: (Select)
B89: 6. | C89: Name of Lender/Source
C90: Contact Name
C91: Street Address
C92: City/State
C93: Phone Number
C94: Fax Number
C95: Email Address
C96: Type of Financing (menu selection) | E96: (Select)
C97: Term of Financing (menu selection) | E97: (Select)
C98: Committed (menu selection) | E98: (Select)
B100: 7. | C100: Name of Lender/Source
C101: Contact Name
C102: Street Address
C103: City/State
C104: Phone Number
C105: Fax Number
C106: Email Address
C107: Type of Financing (menu selection) | E107: (Select)
C108: Term of Financing (menu selection) | E108: (Select)
C109: Committed (menu selection) | E109: (Select)
B111: 8. | C111: Name of Lender/Source
C112: Contact Name
C113: Street Address
C114: City/State
C115: Phone Number
C116: Fax Number
C117: Email Address
C118: Type of Financing (menu selection) | E118: (Select)
C119: Term of Financing (menu selection) | E119: (Select)
C120: Committed (menu selection) | E120: (Select)
B122: 9. | C122: Name of Lender/Source
C123: Contact Name
C124: Street Address
C125: City/State
C126: Phone Number
C127: Fax Number
C128: Email Address
C129: Type of Financing (menu selection) | E129: (Select)
C130: Term of Financing (menu selection) | E130: (Select)
C131: Committed (menu selection) | E131: (Select)

Sheet D.3 Operating Subsidies
B2: D.3 Operating Subsidies | H2: =IF('C.1 Project Summary'!$E$22<>"",'C.1 Project Summary'!$E$22,"") -> 
B3: =IF('C.1 Project Summary'!E23="","",'C.1 Project Summary'!E23) -> 
C5: Subsidy Source | D5: Subsidy Program | E5: Date of Application (actual or anticipated) | F5: Date of Award (actual or anticipated) | G5: Initial Term of Subsidy (years) | H5: Number of Subsidized Units | I5: Total Annual Subsidy | J5: Total Subsidy
G15: Total | H15: =SUM(H6:H14) -> 0 | I15: =SUM(I6:I14) -> 0 | J15: =SUM(J6:J14) -> 0
B17: 1. | C17: Name of Lender/Source
C18: Contact Name
C19: Street Address
C20: City/State
C21: Phone Number
C22: Fax Number
C23: Email Address
C24: Committed (menu selection) | D24: (Select)
B26: 2. | C26: Name of Lender/Source
C27: Contact Name
C28: Street Address
C29: City/State
C30: Phone Number
C31: Fax Number
C32: Email Address
C33: Committed (menu selection) | D33: (Select)
B35: 3. | C35: Name of Lender/Source
C36: Contact Name
C37: Street Address
C38: City/State
C39: Phone Number
C40: Fax Number
C41: Email Address
C42: Committed (menu selection) | D42: (Select)
C45: Calculation of Rent Subsidy Premium (e.g., Shelter Plus Care, PBV, or PBVASH)
C46: # of Bedrooms | D46: # of Units | E46: Target AMI | F46: Net Monthly TCAC Rent (Net of Utility Allowance) | G46: Net Monthly Subsidy | H46: Difference | I46: Total Monthly Subsidy Premium | J46: Annual Subsidy Premium
H47: =+G47-F47 -> 0 | I47: =+H47*D47 -> 0 | J47: =+H47*D47*12 -> 0
H48: 0 | I48: =+H48*D48 -> 0 | J48: =+H48*D48*12 -> 0
H49: 0 | I49: 0 | J49: 0
H50: 0 | I50: 0 | J50: 0
H51: 0 | I51: 0 | J51: 0
H52: 0 | I52: 0 | J52: 0
H53: 0 | I53: 0 | J53: 0
H54: 0 | I54: 0 | J54: 0
H55: 0 | I55: 0 | J55: 0
H56: 0 | I56: 0 | J56: 0
H57: 0 | I57: 0 | J57: 0
H58: 0 | I58: 0 | J58: 0
H59: 0 | I59: 0 | J59: 0
H60: 0 | I60: 0 | J60: 0
H61: 0 | I61: 0 | J61: 0
D62: =SUM(D47:D61) -> 0 | I62: =SUM(I47:I61) -> 0 | J62: =SUM(J47:J61) -> 0

Sheet D.4 Development Budget
B2: D.4 Development Budget | K2: =IF('C.1 Project Summary'!$E$22<>"",'C.1 Project Summary'!$E$22,"") -> 
B3: =IF('C.1 Project Summary'!E23="","",'C.1 Project Summary'!E23) -> 
C4: All budget detail items must be completed, as applicable. | H4: Eligible Basis
D5: Total | E5: Residential | F5: Non-Residential | H5: New Construction / Rehab | I5: Acquisition | K5: Residential Cost/Unit
E6: =100%-F6 -> 1 | F6: 0
B7: Acquisition
C8: Total Land Cost | E8: =D8*E$6 -> 0 | F8: =D8-E8 -> 0 | K8: =IF('D.10 Unit Mix & Rents'!C$96<>0,'D.4 Development Budget'!E8/'D.10 Unit Mix & Rents'!C$96,0) -> 0
C9: Existing Improvements Value | E9: =D9*E$6 -> 0 | F9: =D9-E9 -> 0 | K9: =IF('D.10 Unit Mix & Rents'!C$96<>0,'D.4 Development Budget'!E9/'D.10 Unit Mix & Rents'!C$96,0) -> 0
C10: Legal / Title & Recording | E10: =D10*E$6 -> 0 | F10: =D10-E10 -> 0 | K10: =IF('D.10 Unit Mix & Rents'!C$96<>0,'D.4 Development Budget'!E10/'D.10 Unit Mix & Rents'!C$96,0) -> 0
C11: Total Acquisition Costs | D11: =SUM(D8:D10) -> 0 | E11: =SUM(E8:E10) -> 0 | F11: =SUM(F8:F10) -> 0 | H11: =SUM(H8:H10) -> 0 | I11: =SUM(I8:I10) -> 0 | K11: =SUM(K8:K10) -> 0
B12: Construction
C13: Demolition | E13: =D13*E$6 -> 0 | F13: =D13-E13 -> 0 | K13: =IF('D.10 Unit Mix & Rents'!C$96<>0,'D.4 Development Budget'!E13/'D.10 Unit Mix & Rents'!C$96,0) -> 0
C14: Toxic Abatement | E14: 0 | F14: 0 | K14: =IF('D.10 Unit Mix & Rents'!C$96<>0,'D.4 Development Budget'!E14/'D.10 Unit Mix & Rents'!C$96,0) -> 0
C15: Offsite Improvements | E15: 0 | F15: =D15-E15 -> 0 | K15: =IF('D.10 Unit Mix & Rents'!C$96<>0,'D.4 Development Budget'!E15/'D.10 Unit Mix & Rents'!C$96,0) -> 0
C16: On-site Improvements attributable to unusual conditions | E16: 0 | F16: =D16-E16 -> 0 | K16: =IF('D.10 Unit Mix & Rents'!C$96<>0,'D.4 Development Budget'!E16/'D.10 Unit Mix & Rents'!C$96,0) -> 0
C17: Site Work | E17: 0 | F17: =D17-E17 -> 0 | K17: =IF('D.10 Unit Mix & Rents'!C$96<>0,'D.4 Development Budget'!E17/'D.10 Unit Mix & Rents'!C$96,0) -> 0
C18: Structures | E18: 0 | F18: 0 | K18: =IF('D.10 Unit Mix & Rents'!C$96<>0,'D.4 Development Budget'!E18/'D.10 Unit Mix & Rents'!C$96,0) -> 0
C19: Parking | E19: 0 | F19: =D19-E19 -> 0 | K19: =IF('D.10 Unit Mix & Rents'!C$96<>0,'D.4 Development Budget'!E19/'D.10 Unit Mix & Rents'!C$96,0) -> 0
C20: General Requirements | E20: 0 | F20: 0 | K20: =IF('D.10 Unit Mix & Rents'!C$96<>0,'D.4 Development Budget'!E20/'D.10 Unit Mix & Rents'!C$96,0) -> 0
C21: Contractor Overhead | E21: 0 | F21: 0 | K21: =IF('D.10 Unit Mix & Rents'!C$96<>0,'D.4 Development Budget'!E21/'D.10 Unit Mix & Rents'!C$96,0) -> 0
C22: Contractor Profit | E22: 0 | F22: 0 | K22: =IF('D.10 Unit Mix & Rents'!C$96<>0,'D.4 Development Budget'!E22/'D.10 Unit Mix & Rents'!C$96,0) -> 0
C23: General Liability Insurance | E23: 0 | F23: 0 | K23: =IF('D.10 Unit Mix & Rents'!C$96<>0,'D.4 Development Budget'!E23/'D.10 Unit Mix & Rents'!C$96,0) -> 0
C24: Prevailing Wage | E24: 0 | F24: 0 | K24: =IF('D.10 Unit Mix & Rents'!C$96<>0,'D.4 Development Budget'!E24/'D.10 Unit Mix & Rents'!C$96,0) -> 0
C25: Total Construction Costs | D25: =SUM(D13:D24) -> 0 | E25: =SUM(E13:E24) -> 0 | F25: =SUM(F13:F24) -> 0 | H25: =SUM(H13:H24) -> 0 | I25: =SUM(I13:I24) -> 0 | K25: =SUM(K13:K24) -> 0
B26: Architectural Fees
C27: Design | E27: =D27*E$6 -> 0 | F27: =D27-E27 -> 0 | K27: =IF('D.10 Unit Mix & Rents'!C$96<>0,'D.4 Development Budget'!E27/'D.10 Unit Mix & Rents'!C$96,0) -> 0
C28: Supervision | E28: =D28*E$6 -> 0 | F28: =D28-E28 -> 0 | K28: =IF('D.10 Unit Mix & Rents'!C$96<>0,'D.4 Development Budget'!E28/'D.10 Unit Mix & Rents'!C$96,0) -> 0
C29: Total Architectural Costs | D29: =SUM(D27:D28) -> 0 | E29: =SUM(E27:E28) -> 0 | F29: =SUM(F27:F28) -> 0 | H29: =SUM(H27:H28) -> 0 | I29: =SUM(I27:I28) -> 0 | K29: =SUM(K27:K28) -> 0
B30: Survey & Engineering
C31: Total Survey & Engineering | E31: =D31*E$6 -> 0 | F31: =D31-E31 -> 0 | H31: =E31 -> 0 | I31: 0 | K31: =IF('D.10 Unit Mix & Rents'!C$96<>0,'D.4 Development Budget'!E31/'D.10 Unit Mix & Rents'!C$96,0) -> 0
B32: Construction Interest & Fees
C33: Construction Loan Interest | E33: =D33*E$6 -> 0 | F33: =D33-E33 -> 0 | K33: =IF('D.10 Unit Mix & Rents'!C$96<>0,'D.4 Development Budget'!E33/'D.10 Unit Mix & Rents'!C$96,0) -> 0
C34: Origination Fee | E34: =D34*E$6 -> 0 | F34: 0 | K34: =IF('D.10 Unit Mix & Rents'!C$96<>0,'D.4 Development Budget'!E34/'D.10 Unit Mix & Rents'!C$96,0) -> 0
C35: Costs of Bond Issuance
C36: a) Underwriter Fee | E36: =D36*E$6 -> 0 | F36: 0 | K36: =IF('D.10 Unit Mix & Rents'!C$96<>0,'D.4 Development Budget'!E36/'D.10 Unit Mix & Rents'!C$96,0) -> 0
C37: b) Underwriter Counsel | E37: 0 | F37: 0 | K37: =IF('D.10 Unit Mix & Rents'!C$96<>0,'D.4 Development Budget'!E37/'D.10 Unit Mix & Rents'!C$96,0) -> 0
C38: c) Issuer Fee | E38: 0 | F38: 0 | K38: =IF('D.10 Unit Mix & Rents'!C$96<>0,'D.4 Development Budget'!E38/'D.10 Unit Mix & Rents'!C$96,0) -> 0
C39: d) Issuer Financial Advisor | E39: 0 | F39: 0 | K39: =IF('D.10 Unit Mix & Rents'!C$96<>0,'D.4 Development Budget'!E39/'D.10 Unit Mix & Rents'!C$96,0) -> 0
C40: e) Bond Counsel | E40: 0 | F40: 0 | K40: =IF('D.10 Unit Mix & Rents'!C$96<>0,'D.4 Development Budget'!E40/'D.10 Unit Mix & Rents'!C$96,0) -> 0
C41: f) Lender Origination/LOC Fee | E41: 0 | F41: 0 | K41: =IF('D.10 Unit Mix & Rents'!C$96<>0,'D.4 Development Budget'!E41/'D.10 Unit Mix & Rents'!C$96,0) -> 0
C42: g) Lender Counsel | E42: 0 | F42: 0 | K42: =IF('D.10 Unit Mix & Rents'!C$96<>0,'D.4 Development Budget'!E42/'D.10 Unit Mix & Rents'!C$96,0) -> 0
C43: h) Rating | E43: 0 | F43: 0 | K43: =IF('D.10 Unit Mix & Rents'!C$96<>0,'D.4 Development Budget'!E43/'D.10 Unit Mix & Rents'!C$96,0) -> 0
C44: i) Trustee Fee | E44: 0 | F44: 0 | K44: =IF('D.10 Unit Mix & Rents'!C$96<>0,'D.4 Development Budget'!E44/'D.10 Unit Mix & Rents'!C$96,0) -> 0
C45: j) Trustee Counsel | E45: 0 | F45: 0 | K45: =IF('D.10 Unit Mix & Rents'!C$96<>0,'D.4 Development Budget'!E45/'D.10 Unit Mix & Rents'!C$96,0) -> 0
C46: k) Printing | E46: 0 | F46: 0 | K46: =IF('D.10 Unit Mix & Rents'!C$96<>0,'D.4 Development Budget'!E46/'D.10 Unit Mix & Rents'!C$96,0) -> 0
C47: l) CDLAC Fees | E47: 0 | F47: 0 | K47: =IF('D.10 Unit Mix & Rents'!C$96<>0,'D.4 Development Budget'!E47/'D.10 Unit Mix & Rents'!C$96,0) -> 0
C48: m) COI Contingency | E48: 0 | F48: 0 | K48: =IF('D.10 Unit Mix & Rents'!C$96<>0,'D.4 Development Budget'!E48/'D.10 Unit Mix & Rents'!C$96,0) -> 0
C49: Payment & Performance Bond | E49: 0 | F49: 0 | K49: =IF('D.10 Unit Mix & Rents'!C$96<>0,'D.4 Development Budget'!E49/'D.10 Unit Mix & Rents'!C$96,0) -> 0
C50: Property Taxes | E50: 0 | F50: 0 | K50: =IF('D.10 Unit Mix & Rents'!C$96<>0,'D.4 Development Budget'!E50/'D.10 Unit Mix & Rents'!C$96,0) -> 0
C51: Insurance | E51: 0 | F51: 0 | K51: =IF('D.10 Unit Mix & Rents'!C$96<>0,'D.4 Development Budget'!E51/'D.10 Unit Mix & Rents'!C$96,0) -> 0
C52: Title and Recording | E52: =D52*E$6 -> 0 | F52: =D52-E52 -> 0 | K52: =IF('D.10 Unit Mix & Rents'!C$96<>0,'D.4 Development Budget'!E52/'D.10 Unit Mix & Rents'!C$96,0) -> 0
C53: Other: (specify) | E53: =D53*E$6 -> 0 | F53: =D53-E53 -> 0 | K53: =IF('D.10 Unit Mix & Rents'!C$96<>0,'D.4 Development Budget'!E53/'D.10 Unit Mix & Rents'!C$96,0) -> 0
C54: Other: (specify) | E54: 0 | F54: 0 | K54: =IF('D.10 Unit Mix & Rents'!C$96<>0,'D.4 Development Budget'!E54/'D.10 Unit Mix & Rents'!C$96,0) -> 0
C55: Total Construction Financing Costs | D55: =SUM(D33:D54) -> 0 | E55: =SUM(E33:E54) -> 0 | F55: =SUM(F33:F54) -> 0 | H55: =SUM(H33:H54) -> 0 | I55: =SUM(I33:I54) -> 0 | K55: =SUM(K33:K54) -> 0
B56: Permanent Financing
C57: Loan Origination Fee | E57: =D57*E$6 -> 0 | F57: =D57-E57 -> 0 | K57: =IF('D.10 Unit Mix & Rents'!C$96<>0,'D.4 Development Budget'!E57/'D.10 Unit Mix & Rents'!C$96,0) -> 0
C58: Credit Enhance. & App. Fee | E58: =D58*E$6 -> 0 | F58: =D58-E58 -> 0 | K58: =IF('D.10 Unit Mix & Rents'!C$96<>0,'D.4 Development Budget'!E58/'D.10 Unit Mix & Rents'!C$96,0) -> 0
C59: Title and Recording | E59: =D59*E$6 -> 0 | F59: =D59-E59 -> 0 | K59: =IF('D.10 Unit Mix & Rents'!C$96<>0,'D.4 Development Budget'!E59/'D.10 Unit Mix & Rents'!C$96,0) -> 0
C60: Other: (specify) | E60: =D60*E$6 -> 0 | F60: =D60-E60 -> 0 | K60: =IF('D.10 Unit Mix & Rents'!C$96<>0,'D.4 Development Budget'!E60/'D.10 Unit Mix & Rents'!C$96,0) -> 0
C61: Other: (specify) | E61: =D61*E$6 -> 0 | F61: =D61-E61 -> 0 | K61: =IF('D.10 Unit Mix & Rents'!C$96<>0,'D.4 Development Budget'!E61/'D.10 Unit Mix & Rents'!C$96,0) -> 0
C62: Total Permanent Financing Costs | D62: =SUM(D57:D61) -> 0 | E62: =SUM(E57:E61) -> 0 | F62: =SUM(F57:F61) -> 0 | H62: =SUM(H57:H61) -> 0 | I62: =SUM(I57:I61) -> 0 | K62: =SUM(K57:K61) -> 0
B63: Legal Fees
C64: Lender Legal Pd. by Applicant | E64: =D64*E$6 -> 0 | F64: =D64-E64 -> 0 | K64: =IF('D.10 Unit Mix & Rents'!C$96<>0,'D.4 Development Budget'!E64/'D.10 Unit Mix & Rents'!C$96,0) -> 0
C65: Borrower - Transaction | E65: =D65*E$6 -> 0 | F65: =D65-E65 -> 0 | K65: =IF('D.10 Unit Mix & Rents'!C$96<>0,'D.4 Development Budget'!E65/'D.10 Unit Mix & Rents'!C$96,0) -> 0
C66: Borrower - Syndication | E66: =D66*E$6 -> 0 | F66: =D66-E66 -> 0 | K66: =IF('D.10 Unit Mix & Rents'!C$96<>0,'D.4 Development Budget'!E66/'D.10 Unit Mix & Rents'!C$96,0) -> 0
C67: Other: (specify) | E67: =D67*E$6 -> 0 | F67: =D67-E67 -> 0 | K67: =IF('D.10 Unit Mix & Rents'!C$96<>0,'D.4 Development Budget'!E67/'D.10 Unit Mix & Rents'!C$96,0) -> 0
C68: Total Attorney Costs | D68: =SUM(D64:D67) -> 0 | E68: =SUM(E64:E67) -> 0 | F68: =SUM(F64:F67) -> 0 | H68: =SUM(H64:H67) -> 0 | I68: =SUM(I64:I67) -> 0 | K68: =SUM(K64:K67) -> 0
B69: Reserves
C70: Operating Reserves | E70: =D70*E$6 -> 0 | F70: =D70-E70 -> 0 | K70: =IF('D.10 Unit Mix & Rents'!C$96<>0,'D.4 Development Budget'!E70/'D.10 Unit Mix & Rents'!C$96,0) -> 0
C71: Replacement Reserve, Renewable Energy Equip. | E71: =D71*E$6 -> 0 | F71: =D71-E71 -> 0 | K71: =IF('D.10 Unit Mix & Rents'!C$96<>0,'D.4 Development Budget'!E71/'D.10 Unit Mix & Rents'!C$96,0) -> 0
C72: Transition Reserve (NPLH) | E72: =D72*E$6 -> 0 | F72: =D72-E72 -> 0 | K72: =IF('D.10 Unit Mix & Rents'!C$96<>0,'D.4 Development Budget'!E72/'D.10 Unit Mix & Rents'!C$96,0) -> 0
C73: Transition Reserve (non-NPLH) | E73: =D73*E$6 -> 0 | F73: =D73-E73 -> 0 | K73: =IF('D.10 Unit Mix & Rents'!C$96<>0,'D.4 Development Budget'!E73/'D.10 Unit Mix & Rents'!C$96,0) -> 0
C74: Other: (specify) | E74: =D74*E$6 -> 0 | F74: =D74-E74 -> 0 | K74: =IF('D.10 Unit Mix & Rents'!C$96<>0,'D.4 Development Budget'!E74/'D.10 Unit Mix & Rents'!C$96,0) -> 0
C75: Total Reserve Costs | D75: =SUM(D70:D74) -> 0 | E75: =SUM(E70:E74) -> 0 | F75: =SUM(F70:F74) -> 0 | H75: =SUM(H70:H74) -> 0 | I75: =SUM(I70:I74) -> 0 | K75: =SUM(K70:K74) -> 0
B76: Appraisal
C77: Total Appraisal Costs | E77: =D77*E$6 -> 0 | F77: =D77-E77 -> 0 | H77: =E77 -> 0 | I77: 0 | K77: =IF('D.10 Unit Mix & Rents'!C$96<>0,'D.4 Development Budget'!E77/'D.10 Unit Mix & Rents'!C$96,0) -> 0
B78: Contingency
C79: Hard Cost Contingency | E79: =D79*E$6 -> 0 | F79: =D79-E79 -> 0 | K79: =IF('D.10 Unit Mix & Rents'!C$96<>0,'D.4 Development Budget'!E79/'D.10 Unit Mix & Rents'!C$96,0) -> 0
C80: Soft Cost Contingency | E80: =D80*E$6 -> 0 | F80: =D80-E80 -> 0 | K80: =IF('D.10 Unit Mix & Rents'!C$96<>0,'D.4 Development Budget'!E80/'D.10 Unit Mix & Rents'!C$96,0) -> 0
C81: Total Contingency Costs | D81: =SUM(D79:D80) -> 0 | E81: =SUM(E79:E80) -> 0 | F81: =SUM(F79:F80) -> 0 | H81: =SUM(H79:H80) -> 0 | I81: =SUM(I79:I80) -> 0 | K81: =SUM(K79:K80) -> 0
B82: Other
C83: TCAC App/Alloc/Monitor Fees | E83: =D83*E$6 -> 0 | F83: =D83-E83 -> 0 | K83: =IF('D.10 Unit Mix & Rents'!C$96<>0,'D.4 Development Budget'!E83/'D.10 Unit Mix & Rents'!C$96,0) -> 0
C84: Environmental Audit | E84: 0 | F84: 0 | K84: =IF('D.10 Unit Mix & Rents'!C$96<>0,'D.4 Development Budget'!E84/'D.10 Unit Mix & Rents'!C$96,0) -> 0
C85: Local Development Impact Fees | E85: 0 | F85: 0 | K85: =IF('D.10 Unit Mix & Rents'!C$96<>0,'D.4 Development Budget'!E85/'D.10 Unit Mix & Rents'!C$96,0) -> 0
C86: Permit Processing Fees | E86: 0 | F86: 0 | K86: =IF('D.10 Unit Mix & Rents'!C$96<>0,'D.4 Development Budget'!E86/'D.10 Unit Mix & Rents'!C$96,0) -> 0
C87: School Fees | E87: =D87*E$6 -> 0 | F87: =D87-E87 -> 0 | K87: =IF('D.10 Unit Mix & Rents'!C$96<>0,'D.4 Development Budget'!E87/'D.10 Unit Mix & Rents'!C$96,0) -> 0
C88: Marketing | E88: 0 | F88: 0 | K88: =IF('D.10 Unit Mix & Rents'!C$96<>0,'D.4 Development Budget'!E88/'D.10 Unit Mix & Rents'!C$96,0) -> 0
C89: Leasing (Lease-Up Expense) | E89: 0 | F89: 0 | K89: =IF('D.10 Unit Mix & Rents'!C$96<>0,'D.4 Development Budget'!E89/'D.10 Unit Mix & Rents'!C$96,0) -> 0
C90: Leasing (Lease-Up) Fee | E90: 0 | F90: 0 | K90: =IF('D.10 Unit Mix & Rents'!C$96<>0,'D.4 Development Budget'!E90/'D.10 Unit Mix & Rents'!C$96,0) -> 0
C91: Relocation Expenses | E91: 0 | F91: 0 | K91: =IF('D.10 Unit Mix & Rents'!C$96<>0,'D.4 Development Budget'!E91/'D.10 Unit Mix & Rents'!C$96,0) -> 0
C92: Furnishings (common areas) | E92: 0 | F92: 0 | K92: =IF('D.10 Unit Mix & Rents'!C$96<>0,'D.4 Development Budget'!E92/'D.10 Unit Mix & Rents'!C$96,0) -> 0
C93: Unit Furnishings (homeless units) | E93: =D93*E$6 -> 0 | F93: =D93-E93 -> 0 | K93: =IF('D.10 Unit Mix & Rents'!C$96<>0,'D.4 Development Budget'!E93/'D.10 Unit Mix & Rents'!C$96,0) -> 0
C94: Accounting/Audit | E94: 0 | F94: 0 | K94: =IF('D.10 Unit Mix & Rents'!C$96<>0,'D.4 Development Budget'!E94/'D.10 Unit Mix & Rents'!C$96,0) -> 0
C95: Acq/Predev Loan Fees & Expenses | E95: 0 | F95: 0 | K95: =IF('D.10 Unit Mix & Rents'!C$96<>0,'D.4 Development Budget'!E95/'D.10 Unit Mix & Rents'!C$96,0) -> 0
C96: Acq/Predev Loan Interest | E96: 0 | F96: 0 | K96: =IF('D.10 Unit Mix & Rents'!C$96<>0,'D.4 Development Budget'!E96/'D.10 Unit Mix & Rents'!C$96,0) -> 0
C97: Construction Management | E97: 0 | F97: 0 | K97: =IF('D.10 Unit Mix & Rents'!C$96<>0,'D.4 Development Budget'!E97/'D.10 Unit Mix & Rents'!C$96,0) -> 0
C98: Deputy Inspection | E98: 0 | F98: 0 | K98: =IF('D.10 Unit Mix & Rents'!C$96<>0,'D.4 Development Budget'!E98/'D.10 Unit Mix & Rents'!C$96,0) -> 0
C99: LACDA - Reservation Fee | E99: 0 | F99: 0 | K99: =IF('D.10 Unit Mix & Rents'!C$96<>0,'D.4 Development Budget'!E99/'D.10 Unit Mix & Rents'!C$96,0) -> 0
C100: Holding Costs | E100: 0 | F100: 0 | K100: =IF('D.10 Unit Mix & Rents'!C$96<>0,'D.4 Development Budget'!E100/'D.10 Unit Mix & Rents'!C$96,0) -> 0
C101: Market Study | E101: 0 | F101: 0 | K101: =IF('D.10 Unit Mix & Rents'!C$96<>0,'D.4 Development Budget'!E101/'D.10 Unit Mix & Rents'!C$96,0) -> 0
C102: Security | E102: 0 | F102: 0 | K102: =IF('D.10 Unit Mix & Rents'!C$96<>0,'D.4 Development Budget'!E102/'D.10 Unit Mix & Rents'!C$96,0) -> 0
C103: Green Building Certification | E103: 0 | F103: 0 | K103: =IF('D.10 Unit Mix & Rents'!C$96<>0,'D.4 Development Budget'!E103/'D.10 Unit Mix & Rents'!C$96,0) -> 0
C104: Consultant | E104: 0 | F104: =D104-E104 -> 0 | K104: =IF('D.10 Unit Mix & Rents'!C$96<>0,'D.4 Development Budget'!E104/'D.10 Unit Mix & Rents'!C$96,0) -> 0
C105: Other: (specify) | E105: 0 | F105: 0 | K105: =IF('D.10 Unit Mix & Rents'!C$96<>0,'D.4 Development Budget'!E105/'D.10 Unit Mix & Rents'!C$96,0) -> 0
C106: Total Other Costs | D106: =SUM(D83:D105) -> 0 | E106: =SUM(E83:E105) -> 0 | F106: =SUM(F83:F105) -> 0 | H106: =SUM(H83:H105) -> 0 | I106: =SUM(I83:I105) -> 0 | K106: =SUM(K83:K105) -> 0
C107: Subtotals | D107: =SUM(D11,D25,D29,D31,D55,D62,D68,D75,D77,D81,D106) -> 0 | E107: =SUM(E11,E25,E29,E31,E55,E62,E68,E75,E77,E81,E106) -> 0 | F107: =SUM(F11,F25,F29,F31,F55,F62,F68,F75,F77,F81,F106) -> 0 | H107: =SUM(H11,H25,H29,H31,H55,H62,H68,H75,H77,H81,H106) -> 0 | I107: =SUM(I11,I25,I29,I31,I55,I62,I68,I75,I77,I81,I106) -> 0 | K107: =SUM(K11,K25,K29,K31,K55,K62,K68,K75,K77,K81,K106) -> 0
B108: Developer Costs
C109: Developer Fee | E109: =D109*E$6 -> 0 | F109: =D109-E109 -> 0 | K109: =IF('D.10 Unit Mix & Rents'!C$96<>0,'D.4 Development Budget'!E109/'D.10 Unit Mix & Rents'!C$96,0) -> 0
C110: Consultant/Processing Agent | E110: =D110*E$6 -> 0 | F110: =D110-E110 -> 0 | K110: =IF('D.10 Unit Mix & Rents'!C$96<>0,'D.4 Development Budget'!E110/'D.10 Unit Mix & Rents'!C$96,0) -> 0
C111: Project Administration | E111: =D111*E$6 -> 0 | F111: =D111-E111 -> 0 | K111: =IF('D.10 Unit Mix & Rents'!C$96<>0,'D.4 Development Budget'!E111/'D.10 Unit Mix & Rents'!C$96,0) -> 0
C112: Broker fees paid by owner | E112: =D112*E$6 -> 0 | F112: =D112-E112 -> 0 | K112: =IF('D.10 Unit Mix & Rents'!C$96<>0,'D.4 Development Budget'!E112/'D.10 Unit Mix & Rents'!C$96,0) -> 0
C113: Other: (specify) | E113: =D113*E$6 -> 0 | F113: =D113-E113 -> 0 | K113: =IF('D.10 Unit Mix & Rents'!C$96<>0,'D.4 Development Budget'!E113/'D.10 Unit Mix & Rents'!C$96,0) -> 0
C114: Total Developer Costs | D114: =SUM(D109:D113) -> 0 | E114: =SUM(E109:E113) -> 0 | F114: =SUM(F109:F113) -> 0 | H114: =SUM(H109:H113) -> 0 | I114: =SUM(I109:I113) -> 0 | K114: =SUM(K109:K113) -> 0
C116: TOTAL | D116: =SUM(D107,D114) -> 0 | E116: =SUM(E107,E114) -> 0 | F116: =SUM(F107,F114) -> 0 | K116: =SUM(K107,K114) -> 0
G117: Bridge Loan Expense During Construction | H117: 0 | I117: 0
G118: TOTAL ELIGIBLE BASIS | H118: =SUM(H114:H117,H107) -> 0 | I118: =SUM(I114:I117,I107) -> 0

Sheet D.5 Dev Budget Assumptions
B2: D.5 Development Budget Notes & Assumptions
B3: =IF('C.1 Project Summary'!E23="","",'C.1 Project Summary'!E23) -> 
C6: All items must be completed, with details for assumptions, as applicable.
B7: Acquisition
C8: ='D.4 Development Budget'!C8 -> Total Land Cost
C9: ='D.4 Development Budget'!C9 -> Existing Improvements Value
C10: ='D.4 Development Budget'!C10 -> Legal / Title & Recording
C11: TOTAL | D11: Provide justification if acquisition cost exceeds appraised value.
B12: Construction
C13: ='D.4 Development Budget'!C13 -> Demolition
C14: ='D.4 Development Budget'!C14 -> Toxic Abatement
C15: ='D.4 Development Budget'!C15 -> Offsite Improvements
C16: ='D.4 Development Budget'!C16 -> On-site Improvements attributable to unusual conditions
C17: ='D.4 Development Budget'!C17 -> Site Work
C18: Structures - Residential Component
C19: Structures - Commercial Component
C20: ='D.4 Development Budget'!C19 -> Parking | D20: Provide a per-space cost
C21: ='D.4 Development Budget'!C20 -> General Requirements
C22: ='D.4 Development Budget'!C21 -> Contractor Overhead
C23: ='D.4 Development Budget'!C22 -> Contractor Profit
C24: ='D.4 Development Budget'!C23 -> General Liability Insurance
C25: ='D.4 Development Budget'!C24 -> Prevailing Wage
B26: Architectural Fees
C27: ='D.4 Development Budget'!C27 -> Design
C28: ='D.4 Development Budget'!C28 -> Supervision
B29: Survey & Engineering
C30: ='D.4 Development Budget'!C31 -> Total Survey & Engineering
B31: Construction Interest & Fees
C32: ='D.4 Development Budget'!C33 -> Construction Loan Interest
C33: ='D.4 Development Budget'!C34 -> Origination Fee
C34: ='D.4 Development Budget'!C35 -> Costs of Bond Issuance
C35: ='D.4 Development Budget'!C36 -> a) Underwriter Fee
C36: ='D.4 Development Budget'!C37 -> b) Underwriter Counsel
C37: ='D.4 Development Budget'!C38 -> c) Issuer Fee
C38: ='D.4 Development Budget'!C39 -> d) Issuer Financial Advisor
C39: ='D.4 Development Budget'!C40 -> e) Bond Counsel
C40: ='D.4 Development Budget'!C41 -> f) Lender Origination/LOC Fee
C41: ='D.4 Development Budget'!C42 -> g) Lender Counsel
C42: ='D.4 Development Budget'!C43 -> h) Rating
C43: ='D.4 Development Budget'!C44 -> i) Trustee Fee
C44: ='D.4 Development Budget'!C45 -> j) Trustee Counsel
C45: ='D.4 Development Budget'!C46 -> k) Printing
C46: ='D.4 Development Budget'!C47 -> l) CDLAC Fees
C47: ='D.4 Development Budget'!C48 -> m) COI Contingency
C48: ='D.4 Development Budget'!C49 -> Payment & Performance Bond
C49: ='D.4 Development Budget'!C50 -> Property Taxes
C50: ='D.4 Development Budget'!C51 -> Insurance
C51: ='D.4 Development Budget'!C52 -> Title and Recording
C52: ='D.4 Development Budget'!C53 -> Other: (specify)
C53: ='D.4 Development Budget'!C54 -> Other: (specify)
B54: Permanent Financing
C55: ='D.4 Development Budget'!C57 -> Loan Origination Fee
C56: ='D.4 Development Budget'!C58 -> Credit Enhance. & App. Fee
C57: ='D.4 Development Budget'!C59 -> Title and Recording
C58: ='D.4 Development Budget'!C60 -> Other: (specify)
C59: ='D.4 Development Budget'!C61 -> Other: (specify)
B60: Legal Fees
C61: ='D.4 Development Budget'!C64 -> Lender Legal Pd. by Applicant
C62: ='D.4 Development Budget'!C65 -> Borrower - Transaction
C63: ='D.4 Development Budget'!C66 -> Borrower - Syndication
C64: ='D.4 Development Budget'!C67 -> Other: (specify)
B65: Reserves
C66: ='D.4 Development Budget'!C70 -> Operating Reserves
C67: ='D.4 Development Budget'!C71 -> Replacement Reserve, Renewable Energy Equip.
C68: ='D.4 Development Budget'!C72 -> Transition Reserve (NPLH)
C69: ='D.4 Development Budget'!C73 -> Transition Reserve (non-NPLH)
C70: ='D.4 Development Budget'!C74 -> Other: (specify)
B71: Appraisal
C72: ='D.4 Development Budget'!C77 -> Total Appraisal Costs
B73: Contingency
C74: ='D.4 Development Budget'!C79 -> Hard Cost Contingency
C75: ='D.4 Development Budget'!C80 -> Soft Cost Contingency
B76: Other
C77: ='D.4 Development Budget'!C83 -> TCAC App/Alloc/Monitor Fees
C78: ='D.4 Development Budget'!C84 -> Environmental Audit
C79: ='D.4 Development Budget'!C85 -> Local Development Impact Fees
C80: ='D.4 Development Budget'!C86 -> Permit Processing Fees
C81: ='D.4 Development Budget'!C87 -> School Fees
C82: Marketing - Residential
C83: Marketing - Commercial
C84: ='D.4 Development Budget'!C89 -> Leasing (Lease-Up Expense)
C85: ='D.4 Development Budget'!C90 -> Leasing (Lease-Up) Fee
C86: ='D.4 Development Budget'!C91 -> Relocation Expenses
C87: ='D.4 Development Budget'!C92 -> Furnishings (common areas)
C88: ='D.4 Development Budget'!C93 -> Unit Furnishings (homeless units)
C89: ='D.4 Development Budget'!C94 -> Accounting/Audit
C90: ='D.4 Development Budget'!C95 -> Acq/Predev Loan Fees & Expenses
C91: ='D.4 Development Budget'!C96 -> Acq/Predev Loan Interest
C92: ='D.4 Development Budget'!C97 -> Construction Management
C93: ='D.4 Development Budget'!C98 -> Deputy Inspection
C94: ='D.4 Development Budget'!C99 -> LACDA - Reservation Fee | D94: Covers year one monitoring fee
C95: ='D.4 Development Budget'!C100 -> Holding Costs
C96: ='D.4 Development Budget'!C101 -> Market Study
C97: ='D.4 Development Budget'!C102 -> Security
C98: ='D.4 Development Budget'!C103 -> Green Building Certification
C99: ='D.4 Development Budget'!C104 -> Consultant
C100: ='D.4 Development Budget'!C105 -> Other: (specify)
B101: Developer Costs
C102: ='D.4 Development Budget'!C109 -> Developer Fee
C103: ='D.4 Development Budget'!C110 -> Consultant/Processing Agent
C104: ='D.4 Development Budget'!C111 -> Project Administration
C105: ='D.4 Development Budget'!C112 -> Broker fees paid by owner
C106: ='D.4 Development Budget'!C113 -> Other: (specify)

Sheet D.6 Operating Budget
B2: D.6 Operating Budget
B3: =IF('C.1 Project Summary'!E23="","",'C.1 Project Summary'!E23) ->  | C3: Residential Component | D3: Commercial Component
C5: Proposed | D5: Proposed | E5: Proposed | F5: Per Unit | G5: Per Unit
B6: Administrative & Staffing Expenses | C6: Budget | D6: Budget | E6: Budget | F6: Per Month | G6: Per Year
B7: Office Salaries | F7: =IF('D.10 Unit Mix & Rents'!C$96<>0,E7/'D.10 Unit Mix & Rents'!C$96/12,0) -> 0 | G7: =+F7*12 -> 0
B8: Emp Benefits & Insurance | F8: =IF('D.10 Unit Mix & Rents'!C$96<>0,E8/'D.10 Unit Mix & Rents'!C$96/12,0) -> 0 | G8: =+F8*12 -> 0
B9: On-site Manager | F9: =IF('D.10 Unit Mix & Rents'!C$96<>0,E9/'D.10 Unit Mix & Rents'!C$96/12,0) -> 0 | G9: 0
B10: Maintenance Personnel | F10: =IF('D.10 Unit Mix & Rents'!C$96<>0,E10/'D.10 Unit Mix & Rents'!C$96/12,0) -> 0 | G10: 0
B11: Supportive Service Staffing
B12: Management Fee | F12: =IF('D.10 Unit Mix & Rents'!C$96<>0,E12/'D.10 Unit Mix & Rents'!C$96/12,0) -> 0 | G12: 0
B13: Office Supplies | F13: =IF('D.10 Unit Mix & Rents'!C$96<>0,E13/'D.10 Unit Mix & Rents'!C$96/12,0) -> 0 | G13: 0
B14: Advertising | F14: =IF('D.10 Unit Mix & Rents'!C$96<>0,E14/'D.10 Unit Mix & Rents'!C$96/12,0) -> 0 | G14: 0
B15: Legal | F15: =IF('D.10 Unit Mix & Rents'!C$96<>0,E15/'D.10 Unit Mix & Rents'!C$96/12,0) -> 0 | G15: 0
B16: Audit expense | F16: =IF('D.10 Unit Mix & Rents'!C$96<>0,E16/'D.10 Unit Mix & Rents'!C$96/12,0) -> 0 | G16: 0
B17: Security | F17: =IF('D.10 Unit Mix & Rents'!C$96<>0,E17/'D.10 Unit Mix & Rents'!C$96/12,0) -> 0 | G17: 0
B18: Communication | F18: =IF('D.10 Unit Mix & Rents'!C$96<>0,E18/'D.10 Unit Mix & Rents'!C$96/12,0) -> 0 | G18: 0
B19: Miscellaneous Admin | F19: =IF('D.10 Unit Mix & Rents'!C$96<>0,E19/'D.10 Unit Mix & Rents'!C$96/12,0) -> 0 | G19: 0
B20: Total Administrative & Staffing Expenses | C20: =SUM(C7:C19) -> 0 | D20: =SUM(D7:D19) -> 0 | E20: =SUM(E7:E19) -> 0 | F20: =IF('D.10 Unit Mix & Rents'!C$96<>0,E20/'D.10 Unit Mix & Rents'!C$96/12,0) -> 0 | G20: 0
B22: Maintenance Expenses
B23: Maintenance supplies | F23: =IF('D.10 Unit Mix & Rents'!C$96<>0,E23/'D.10 Unit Mix & Rents'!C$96/12,0) -> 0 | G23: 0
B24: Pest Control | F24: =IF('D.10 Unit Mix & Rents'!C$96<>0,E24/'D.10 Unit Mix & Rents'!C$96/12,0) -> 0 | G24: 0
B25: Repairs Contract | F25: =IF('D.10 Unit Mix & Rents'!C$96<>0,E25/'D.10 Unit Mix & Rents'!C$96/12,0) -> 0 | G25: 0
B26: HVAC repairs & maintenance | F26: =IF('D.10 Unit Mix & Rents'!C$96<>0,E26/'D.10 Unit Mix & Rents'!C$96/12,0) -> 0 | G26: 0
B27: Landscape Contract | F27: =IF('D.10 Unit Mix & Rents'!C$96<>0,E27/'D.10 Unit Mix & Rents'!C$96/12,0) -> 0 | G27: 0
B28: Interior/exterior painting | F28: =IF('D.10 Unit Mix & Rents'!C$96<>0,E28/'D.10 Unit Mix & Rents'!C$96/12,0) -> 0 | G28: 0
B29: Elevator maintenance | F29: =IF('D.10 Unit Mix & Rents'!C$96<>0,E29/'D.10 Unit Mix & Rents'!C$96/12,0) -> 0 | G29: 0
B30: Interior cleaning | F30: =IF('D.10 Unit Mix & Rents'!C$96<>0,E30/'D.10 Unit Mix & Rents'!C$96/12,0) -> 0 | G30: 0
B31: Misc. Maintenance Expense | F31: =IF('D.10 Unit Mix & Rents'!C$96<>0,E31/'D.10 Unit Mix & Rents'!C$96/12,0) -> 0 | G31: 0
B32: Extra. Maintenance Expense * | F32: =IF('D.10 Unit Mix & Rents'!C$96<>0,E32/'D.10 Unit Mix & Rents'!C$96/12,0) -> 0 | G32: 0
B33: Total Maintenance Expenses | C33: =SUM(C23:C32) -> 0 | D33: =SUM(D23:D32) -> 0 | E33: =SUM(E23:E32) -> 0 | F33: =IF('D.10 Unit Mix & Rents'!C$96<>0,E33/'D.10 Unit Mix & Rents'!C$96/12,0) -> 0 | G33: 0
B35: Utilities Expenses
B36: Trash removal | F36: =IF('D.10 Unit Mix & Rents'!C$96<>0,E36/'D.10 Unit Mix & Rents'!C$96/12,0) -> 0 | G36: 0
B37: Electricity | F37: =IF('D.10 Unit Mix & Rents'!C$96<>0,E37/'D.10 Unit Mix & Rents'!C$96/12,0) -> 0 | G37: 0
B38: Water/sewer | F38: =IF('D.10 Unit Mix & Rents'!C$96<>0,E38/'D.10 Unit Mix & Rents'!C$96/12,0) -> 0 | G38: 0
B39: Gas | F39: =IF('D.10 Unit Mix & Rents'!C$96<>0,E39/'D.10 Unit Mix & Rents'!C$96/12,0) -> 0 | G39: 0
B40: Total Utilities Expense | C40: =SUM(C36:C39) -> 0 | D40: =SUM(D36:D39) -> 0 | E40: =SUM(E36:E39) -> 0 | F40: =IF('D.10 Unit Mix & Rents'!C$96<>0,E40/'D.10 Unit Mix & Rents'!C$96/12,0) -> 0 | G40: =+F40*12 -> 0
B42: Tax & Insurance Expenses
B43: Real estate taxes & assessments | F43: =IF('D.10 Unit Mix & Rents'!C$96<>0,E43/'D.10 Unit Mix & Rents'!C$96/12,0) -> 0 | G43: 0
B44: Licenses & Fees | F44: =IF('D.10 Unit Mix & Rents'!C$96<>0,E44/'D.10 Unit Mix & Rents'!C$96/12,0) -> 0 | G44: 0
B45: Property & liability insurance | F45: =IF('D.10 Unit Mix & Rents'!C$96<>0,E45/'D.10 Unit Mix & Rents'!C$96/12,0) -> 0 | G45: 0
B46: Total Tax & Insurance | C46: =SUM(C43:C45) -> 0 | D46: =SUM(D43:D45) -> 0 | E46: =SUM(E43:E45) -> 0 | F46: =IF('D.10 Unit Mix & Rents'!C$96<>0,E46/'D.10 Unit Mix & Rents'!C$96/12,0) -> 0 | G46: 0
B48: TOTAL OPERATING EXPENSES | C48: =SUM(C46,C40,C33,C20) -> 0 | D48: =SUM(D46,D40,D33,D20) -> 0 | E48: =+E20+E33+E40+E46 -> 0 | F48: =IF('D.10 Unit Mix & Rents'!C$96<>0,E48/'D.10 Unit Mix & Rents'!C$96/12,0) -> 0 | G48: =+F48*12 -> 0
B50: Project Reserves
B51: Operating Reserves | F51: =IF('D.10 Unit Mix & Rents'!C$96<>0,E51/'D.10 Unit Mix & Rents'!C$96/12,0) -> 0 | G51: 0
B52: Replacement Reserve | F52: =IF('D.10 Unit Mix & Rents'!C$96<>0,E52/'D.10 Unit Mix & Rents'!C$96/12,0) -> 0 | G52: 0
B53: Transition Reserve (NPLH) | F53: =IF('D.10 Unit Mix & Rents'!C$96<>0,E53/'D.10 Unit Mix & Rents'!C$96/12,0) -> 0 | G53: 0
B54: Transition Reserve (non-NPLH) | F54: =IF('D.10 Unit Mix & Rents'!C$96<>0,E54/'D.10 Unit Mix & Rents'!C$96/12,0) -> 0 | G54: 0
B56: TOTAL EXPENSES | C56: =SUM(C51:C54,C48) -> 0 | D56: =SUM(D51:D54,D48) -> 0 | E56: =SUM(E51:E54,E48) -> 0 | F56: =IF('D.10 Unit Mix & Rents'!C$96<>0,E56/'D.10 Unit Mix & Rents'!C$96/12,0) -> 0 | G56: =+F56*12 -> 0
B58: GP Asset Management Fee | F58: =IF('D.10 Unit Mix & Rents'!C$96<>0,E58/'D.10 Unit Mix & Rents'!C$96/12,0) -> 0 | G58: =+F58*12 -> 0
B59: LP Asset Management Fee | F59: =IF('D.10 Unit Mix & Rents'!C$96<>0,E59/'D.10 Unit Mix & Rents'!C$96/12,0) -> 0 | G59: 0
B62: * Funds for this line item will be taken from the replacement reserves.

Sheet D.7 Op Budget Assumptions
B2: D.7 Operating Budget Notes & Assumptions
B3: =IF('C.1 Project Summary'!E23="","",'C.1 Project Summary'!E23) -> 
B4: All items must be completed, with details for assumptions, as applicable.
B6: =+'D.6 Operating Budget'!B6 -> Administrative & Staffing Expenses
B7: =+'D.6 Operating Budget'!B7 -> Office Salaries
B8: =+'D.6 Operating Budget'!B8 -> Emp Benefits & Insurance
B9: =+'D.6 Operating Budget'!B9 -> On-site Manager
B10: =+'D.6 Operating Budget'!B10 -> Maintenance Personnel
B11: =+'D.6 Operating Budget'!B11 -> Supportive Service Staffing
B12: =+'D.6 Operating Budget'!B12 -> Management Fee
B13: =+'D.6 Operating Budget'!B13 -> Office Supplies
B14: =+'D.6 Operating Budget'!B14 -> Advertising
B15: =+'D.6 Operating Budget'!B15 -> Legal
B16: =+'D.6 Operating Budget'!B16 -> Audit expense
B17: =+'D.6 Operating Budget'!B17 -> Security
B18: =+'D.6 Operating Budget'!B18 -> Communication
B19: =+'D.6 Operating Budget'!B19 -> Miscellaneous Admin
B21: =+'D.6 Operating Budget'!B22 -> Maintenance Expenses
B22: =+'D.6 Operating Budget'!B23 -> Maintenance supplies
B23: =+'D.6 Operating Budget'!B24 -> Pest Control
B24: =+'D.6 Operating Budget'!B25 -> Repairs Contract
B25: =+'D.6 Operating Budget'!B26 -> HVAC repairs & maintenance
B26: =+'D.6 Operating Budget'!B27 -> Landscape Contract
B27: =+'D.6 Operating Budget'!B28 -> Interior/exterior painting
B28: =+'D.6 Operating Budget'!B29 -> Elevator maintenance
B29: =+'D.6 Operating Budget'!B30 -> Interior cleaning
B30: =+'D.6 Operating Budget'!B31 -> Misc. Maintenance Expense
B31: =+'D.6 Operating Budget'!B32 -> Extra. Maintenance Expense *
B33: =+'D.6 Operating Budget'!B35 -> Utilities Expenses
B34: =+'D.6 Operating Budget'!B36 -> Trash removal
B35: =+'D.6 Operating Budget'!B37 -> Electricity
B36: =+'D.6 Operating Budget'!B38 -> Water/sewer
B37: =+'D.6 Operating Budget'!B39 -> Gas
B39: =+'D.6 Operating Budget'!B42 -> Tax & Insurance Expenses
B40: =+'D.6 Operating Budget'!B43 -> Real estate taxes & assessments
B41: =+'D.6 Operating Budget'!B44 -> Licenses & Fees
B42: =+'D.6 Operating Budget'!B45 -> Property & liability insurance
B44: Project Reserves
B45: =+'D.6 Operating Budget'!B51 -> Operating Reserves
B46: =+'D.6 Operating Budget'!B52 -> Replacement Reserve
B47: =+'D.6 Operating Budget'!B53 -> Transition Reserve (NPLH)
B48: =+'D.6 Operating Budget'!B54 -> Transition Reserve (non-NPLH)
B49: =+'D.6 Operating Budget'!B58 -> GP Asset Management Fee
B50: =+'D.6 Operating Budget'!B59 -> LP Asset Management Fee

Sheet D.8.a. 9% TC Threshold Basis
B2: D.8.a Tax Credit Threshold Basis Limit - 9% Projects | G2: =IF('C.1 Project Summary'!$E$22<>"",'C.1 Project Summary'!$E$22,"") -> 
C3: =IF('C.1 Project Summary'!E23="","",'C.1 Project Summary'!E23) -> 
B4: Determination of Threshold Basis
B6: Unit Size | D6: Unit Basis Limit | E6: No. Of Units | F6: Basis x No. Of Units
B7: Studio / SRO | D7: 254238 | F7: =D7*E7 -> 0
B8: 1-Bedroom | D8: 293134 | F8: =D8*E8 -> 0
B9: 2-Bedroom | D9: 353600 | F9: =D9*E9 -> 0
B10: 3-Bedroom | D10: 452608 | F10: =D10*E10 -> 0
B11: 4-Bedroom | D11: 504234 | F11: =D11*E11 -> 0
B12: TOTAL = Threshold Basis Limit | F12: =SUM(F7:G11) -> 0
B13: Note: Items (a) through (e) and (h) below are derived/calculated from this figure.
B14: (a) | C14: Plus (+) 20% basis adjustment for projects paid in whole or part out of public funds subject to a legal requirement for the payment of state or federal prevailing wages or financed in part by a labor-affiliated organization requiring the employment of construction workers who are paid at least state or federal prevailing wages. List source(s) or labor-affiliated organization(s): | F14: (Select) | G14: =IF(F14="Y",F12*I14,0) -> 0 | I14: 0.2
C16: Plus (+) 5% basis adjustment for projects that certify that (1) they are subject to a project labor agreement within the meaning of Section 2500(b)(1) of the Public Contract Code, or (2) they will use a skilled and trained workforce as defined by Section 25536.7 of the Health and Safety Code to perform all onsite work within an apprenticeable occupation in the building and construction trades. | F16: (Select) | G16: =IF(F16="Y",F12*I16,0) -> 0 | I16: 0.05
B17: (b) | C17: Plus (+) 7% basis adjustment for new construction projects which are required to provide parking beneath residential units (but not “tuck under” parking) or through construction of an on-site parking structure of two or more levels. | F17: (Select) | G17: =IF(F17="Y",F12*I17,0) -> 0 | I17: 0.07
B18: (c) | C18: Plus (+) 2% basis adjustment for projects where a day care center is part of the development. | F18: (Select) | G18: =IF(F18="Y",F12*I18,0) -> 0 | I18: 0.02
A19: . | B19: (d) | C19: Plus (+) 2% basis adjustment for projects where 100 percent of the low-income units are for Special Needs populations. | F19: (Select) | G19: =IF(F19="Y",F12*I19,0) -> 0 | I19: 0.02
B20: (e) | C20: Plus (+) up to 10% basis adjustment for projects applying under Section 10325 or Section 10326 of these regulations that include one or more of the features in the section: Item (e) features | F20: 0 | G20: =IF(F20=0,0,F12*F20) -> 0
B21: (f) | C21: Plus (+) the lesser of the associated costs or up to a 15% basis adjustment for projects requiring seismic upgrading of existing structures, and/ or projects requiring toxic or other environmental mitigation as certified by the project architect/engineer + costs.
B22: (g) | C22: Plus (+) local development impact fees required to be paid to local government entities. Waived impact fees are ineligible.
B23: (h) | C23: Plus (+) 10% basis adjustment for a development wherein at least 95% of the project’s upper floor units are serviced by an elevator. | F23: (Select) | G23: =IF(F23="Y",F12*I23,0) -> 0 | I23: 0.1
B24: (i) | C24: Plus (+) 10% basis adjustment for projects that is: (1) in a county that has an unadjusted 9% threshold basis limit for 2-bedroom units equal to or less than $400,000; AND (ii) is located in a census tract designated on the TCAC/HCD Opportunity Area Map as Highest or High Resource | F24: (Select) | G24: =IF(F24="Y",F12*I24,0) -> 0 | I24: 0.1
C25: = Adjusted Threshold Basis Limit | G25: =SUM(F12,G14:G24) -> 0
C27: High Cost Test
C29: Total Eligible Basis | G29: =SUM('D.4 Development Budget'!H118:I118) -> 0
C30: Percentage of the Adjusted Threshold Basis Limit | G30: =IF(G29=0,"",G29/G25) -> 
C32: If the Percentage of the Adjusted Threshold Basis Limit is equal to or exceeds 130%, describe how the project will adhere to TCAC's requirements for high cost projects (per TCAC Regulation Section 10325(d))

Sheet D.8.b. 9% Tax Credit Calc
B2: D.8.b Tax Credit Calculation - 9% Projects
B4: Tax credit factors shall be limited to the allowable prices defined by TCAC.
B6: Determination of Eligible and Qualified Basis
C8: New Construction or Rehabilitation | E8: Acquisition
B9: Total Eligible Basis (from D.4) | C9: ='D.4 Development Budget'!H118 -> 0 | E9: ='D.4 Development Budget'!I118 -> 0
B10: Deduct From Eligible Basis:
B11: Grant Proceeds Used to Finance Costs in Eligible Basis
B12: Non-Qualified Non-Recourse Financing
B13: Non-Qualifying Portion of Higher Quality Units
B14: Photovoltaic Credit (as applicable)
B15: Historic Credit (residential portion only)
B16: Ineligible Basis Related to Excess Parking
B17: Other ineligible amounts: _______________________
B18: Total Ineligible Amounts | C18: =SUM(C11:C17) -> 0 | E18: =SUM(E11:E17) -> 0
B19: Total Eligible Basis Amount Voluntarily Excluded
B20: TOTAL BASIS REDUCTION | C20: =-SUM(C18:C19) -> 0 | E20: =-SUM(E18:E19) -> 0
B22: TOTAL REQUESTED UNADJUSTED ELIGIBLE BASIS | C22: =C9+C20 -> 0 | E22: =E9+E20 -> 0
B24: TOTAL ADJUSTED THRESHOLD BASIS LIMIT | C24: ='D.8.a. 9% TC Threshold Basis'!Text84 -> 0
B26: Project located in Qualified Census Tract (CQT) or Difficult to Develop Area (DDA) Adjustment? | C26: (Select)
B28: x QCT or DDA Adjustment | C28: =IF(C26="Yes",130%,100%) -> 1 | E28: 1
B30: TOTAL ADJUSTED ELIGIBLE BASIS | C30: =C22*C28 -> 0 | E30: =E22*E28 -> 0
B32: x Applicable Fraction
B34: QUALIFIED BASIS | C34: =C30*C32 -> 0 | E34: =E30*E32 -> 0
B36: TOTAL QUALIFIED BASIS | E36: =C34+E34 -> 0
B44: Determination of Federal Credit
C45: New Construction or Rehabilitation | E45: Acquisition
B46: 1. Qualified Basis | C46: =IF(C24>=(C22+E22),C34,0) -> 0 | E46: =IF(C24>=(C22+E22),E34,0) -> 0
B47: 2. Applicable Percentage (use current value) | C47: 0.09 | E47: 0.0307
B48: 3. Subtotal Annual Federal Credit | C48: =C46*C47 -> 0 | E48: =E46*E47 -> 0
B49: 4. Total Combined Annual Credit | C49: =IF((C48+E48)>2500000,2500000,(C48+E48)) -> 0
B51: Determination of Minimum Federal Credit Necessary for Feasibility
B53: 1. Total Project Cost | C53: ='D.4 Development Budget'!D116 -> 0
B54: 2. Permanent Financing | C54: ='D.2 Sources'!G29 -> 0
B55: 3. Funding Gap | C55: =C53-C54 -> 0
B56: 4. Federal Tax Credit Factor
B58: Total Credits Necessary for Feasibility | C58: =ROUND(IF(ISERROR((C55/C56)),0,(C55/C56)),0) -> 0
B59: Annual Federal Credit Necessary for Feasibility | C59: =C58/10 -> 0
B60: Maximum Annual Federal Credits | C60: =(IF((C49<C59),C49,C59)) -> 0
B61: Equity Raised from Federal Credit | C61: =ROUND((10*C60*C56),0) -> 0
B63: Remaining Funding Gap | C63: =C55-C61 -> 0
B66: Determination of State Credit
B68: Does the project include State Credit? | C68: (Select)
B69: Does the project involve State Acquisition Credit? | C69: (Select)
C70: New Construction or Rehabilitation | E70: Acquisition
B71: 1. State Credit Basis
B72: Rehabilitation or new construction basis only (no acquisition basis), except in rare cases of At-Risk projects eligible for State Credit on the acquisition basis at the 0.13 factor when no 130% basis increase is used.
B73: 2. x Factor Amount | C73: 0.3 | E73: 0.13
B74: 3. Maximum Total State Credit | C74: =C71*C73 -> 0 | E74: =E71*E73 -> 0
B76: Calculation of LIHTC Equity | C76: Federal | E76: State
B77: Total Annual Credits | C77: =C60 -> 0
B78: Total Credits | C78: =C77*10 -> 0 | E78: =SUM(C74,E74) -> 0
B79: Limited Partner Share (Percentage) | C79: 0.9999 | E79: 0.9999
B80: Total Limited Partner Credits | C80: =C78*C79 -> 0 | E80: =E78*E79 -> 0
B81: Tax Credit Pricing ($$ / credit) | C81: 0.0001 | E81: 0.0001
B82: Limited Partner Equity | C82: =C80*C81 -> 0 | E82: =E80*E81 -> 0
B84: Total Limited Partner Equity* | C84: =SUM(C82:E82) -> 0
B86: *Must match LP Equity shown in project sources on tab D.2

Sheet D.8.c. 9% Tax Credit - TieBreak
B1: D.8.c Tax Credit - 9% Projects Tie Breaker Self-Score
B3: Tie Breaker Formula
B6: Committed Permanent Leveraged Soft Financing Defraying Residential Costs X Size Factor | E6: + | F6: (( 1 ¾ | G6: Requested Unadjusted Eligible Basis | K6: ) / 3)
B7: Total residential project development costs | G7: Total residential project development costs
B9: Soft Financing, Committed
B11: Capitalized Value of Rent Differentials of Public Rent or Operating Subsidies (Calculated Below)
B12: Total donated land value
B13: Total fee waivers
B15: List leveraged soft financing, excluding donated land and fee waivers: | I15: HYBRID PROJECT (NEW CONSTRUCTION)
I16: 4% Development Project Costs:
I18: Residential Project Development Cost
I19: Commercial Project Development Cost
I20: Total 4% Project Cost | L20: =SUM(L18:M19) -> 0
B24: Less Excess Purchase Price Over Appraised Value
B25: Less Ineligible Offsites
B27: Total leveraged soft financing excluding donated land and fee waivers | F27: =SUM(F16:G22)-F24-F25 -> 0
B29: Total | F29: =SUM(F11:G13)+F27 -> 0
B32: Mixed Use Projects
B34: Total commercial cost / Total project cost | F34: =IF('D.4 Development Budget'!D116=0,0,'D.4 Development Budget'!F116/'D.4 Development Budget'!D116) -> 0
B36: Size Factor Calculation
B38: New Construction: | F38: (Select) | I38: HYBRID (NEW CONSTRUCTION) - 4% Development Units
B39: Amount of 9% Tax Credit Units | I39: Amount of 4% Tax Credit Units
B40: Size Factor | F40: =MIN(IF(AND(F38="YES",L40>=50),(0.75+(L40/200)),1),1.5) -> 1 | J40: Total Tax Credit Units | L40: =F39+L39 -> 0
B42: Final Tie Breaker Calculation
B44: Leveraged Soft Financing less commercial portion | F44: =F29*(1-F34) -> 0 | I44: Residential Development Costs | K44: ='D.4 Development Budget'!E116 -> 0
B45: Leveraged Soft Financing times Size Factor | F45: =F44*F40 -> 0 | I45: less ineligible off sites and excess purchase price as a % of res. costs | K45: =-((1-F34)*(F24+F25)) -> 0
B47: Requested unadjusted eligible Basis | F47: ='D.8.b. 9% Tax Credit Calc'!C22+'D.8.b. 9% Tax Credit Calc'!E22 -> 0 | I47: Total Residential Development Costs | K47: =K44+K45 -> 0
B49: =F45 -> 0 | E49: + | F49: (( 1 ¾ | G49: =F47 -> 0 | K49: ) / 3)
B50: =K47 -> 0 | G50: =K47 -> 0
B52: Tie Breaker Self-Score | F52: =IF(OR(B49=0,G49=0),0,IF(OR(B50<>0,G50<>0),((B49/B50)+((1-(G49/G50))/3)),0)) -> 0
B54: BONUS for new construction large-family projects in high/higher resource areas based on TCAC/HCD Opportunity Area Map
B55: Please see TCAC Regulations 10325(c)(9)(C) for projects excluded:
B57: =IF(C57='drop down menus'!G16,0.2,IF(C57='drop down menus'!G17,0.1,IF(C57='drop down menus'!G18,0.1,IF(C57='drop down menus'!G19,0.05,0)))) -> 0 | C57: (Select)
B59: FINAL TIE BREAKER SELF-SCORE | F59: =F52+B57 -> 0
B61: If tie breaker self-score is less than 40%, please explain how project will be competitive.
B65: Continued below.
B66: CAPITALIZED VALUE OF RENT DIFFERENTIALS ATTRIBUTABLE TO PUBLIC RENT OR PUBLIC OPERATING SUBSIDIES CALCULATION
B68: Annual Rental Income Differential for Public Rent Subsidies:
D70: Monthly Rent Limit: Use 30% AMI for Special Needs Projects | F70: Monthly Public Subsidy Contract Rent | H70: Calculated Annual Rent
B71: Unit Type | C71: # of Units
B72: SELECT | H72: =((F72-D72)*C72)*12 -> 0
B73: SELECT | H73: 0
B74: SELECT | H74: 0
B75: SELECT | H75: 0
B76: SELECT | H76: 0
B77: SELECT | H77: 0
F78: Annual Rent Differential for Public Rent Subsidies: | H78: =SUM(H72:H77) -> 0
B80: Total Rent Differentials | E80: =H78+H101 -> 0 | H80: Loan Term (years) | J80: 15
B81: Less Vacancy | E81: 0.05 | H81: Interest Rate (annual) | J81: 0.06
B82: Net Rental Income | E82: =E80-(E80*E81) -> 0 | H82: Debt Coverage Ratio | J82: 1.15
B83: Available for Debt Service | E83: =IF(J82="",0,E82/J82) -> 0
B84: =CONCATENATE("@ ",J82," Debt Coverage Ratio:") -> @ 1.15 Debt Coverage Ratio:
B86: Capitalized Value of Rent Differentials | E86: =PV(J81/12,J80*12,-E83/12, ,0) -> 0
B91: Annual Rental Income Differential for Public Operating Subsidies:
B93: If annual operating subsidy amount are similar in each year, enter:
B94: Annual Operating Subsidy Amount in Year 1:
B95: OR
B96: If the contract does not specify an annual subsidy amount, enter:
B97: Aggregate Subsidy Amount:
B98: Number of Years in the Subsidy Contract:
B99: Average Annual Operating Subsidy Amount: | H99: =IF(H98="",0,H97/H98) -> 0
B101: Annual Public Operating Subsidies: | H101: =MAX(H94,H99) -> 0

Sheet D.9.a. 4% TC Threshold Basis
C2: D.9.a Tax Credit Threshold Basis Limit - 4% Projects | G2: =IF('C.1 Project Summary'!$E$22<>"",'C.1 Project Summary'!$E$22,"") -> 
C3: =IF('C.1 Project Summary'!E23="","",'C.1 Project Summary'!E23) -> 
C4: Determination of Threshold Basis
B6: Unit Size | D6: Unit Basis Limit | E6: No. Of Units | F6: Basis x No. Of Units | I6: 9% Tax Credits
B7: Studio / SRO | D7: 293352 | F7: =D7*E7 -> 0 | I7: 218001
B8: 1-Bedroom | D8: 338232 | F8: =D8*E8 -> 0 | I8: 251353
B9: 2-Bedroom | D9: 408000 | F9: =D9*E9 -> 0 | I9: 303200
B10: 3-Bedroom | D10: 522240 | F10: =D10*E10 -> 0 | I10: 388096
B11: 4-Bedroom | D11: 581808 | F11: =D11*E11 -> 0 | I11: 432363
B12: TOTAL = Threshold Basis Limit | F12: =SUM(F7:G11) -> 0
B13: Note: Items (a) through (e) and (h) below are derived/calculated from this figure.
B14: (a) | C14: Plus (+) 20% basis adjustment for projects paid in whole or part out of public funds subject to a legal requirement for the payment of state or federal prevailing wages or financed in part by a labor-affiliated organization requiring the employment of construction workers who are paid at least state or federal prevailing wages. List source(s) or labor-affiliated organization(s): | F14: (Select) | G14: =IF(F14="Y",F12*I14,0) -> 0 | I14: 0.2
C16: Plus (+) 5% basis adjustment for projects that certify that (1) they are subject to a project labor agreement within the meaning of Section 2500(b)(1) of the Public Contract Code, or (2) they will use a skilled and trained workforce as defined by Section 25536.7 of the Health and Safety Code to perform all onsite work within an apprenticeable occupation in the building and construction trades. | F16: (Select) | G16: =IF(F16="Y",F12*I16,0) -> 0 | I16: 0.05
B17: (b) | C17: Plus (+) 7% basis adjustment for new construction projects which are required to provide parking beneath residential units (but not “tuck under” parking) or through construction of an on-site parking structure of two or more levels. | F17: (Select) | G17: =IF(F17="Y",F12*I17,0) -> 0 | I17: 0.07
B18: (c) | C18: Plus (+) 2% basis adjustment for projects where a day care center is part of the development. | F18: (Select) | G18: =IF(F18="Y",F12*I18,0) -> 0 | I18: 0.02
A19: . | B19: (d) | C19: Plus (+) 2% basis adjustment for projects where 100 percent of the low-income units are for Special Needs populations. | F19: (Select) | G19: =IF(F19="Y",F12*I19,0) -> 0 | I19: 0.02
B20: (e) | C20: Plus (+) up to 10% basis adjustment for projects that include one or more of the features in described in Section 10325 or Section 10326 of the TCAC Regulations: Item (e) features | F20: 0 | G20: =IF(F20=0,0,F12*F20) -> 0
B21: (f) | C21: Plus (+) the lesser of the associated costs or up to a 15% basis adjustment for projects requiring seismic upgrading of existing structures, and/ or projects requiring toxic or other environmental mitigation as certified by the project architect/engineer + costs.
B22: (g) | C22: Plus (+) local development impact fees required to be paid to local government entities. Waived impact fees are ineligible.
B23: (h) | C23: Plus (+) 10% basis adjustment for a development wherein at least 95% of the project’s upper floor units are serviced by an elevator. | F23: (Select) | G23: =IF(F23="Y",F12*I23,0) -> 0 | I23: 0.1
B24: (i) | C24: Plus (+) 10% basis adjustment for projects that is: (1) in a county that has an unadjusted 9% threshold basis limit for 2-bedroom units equal to or less than $400,000; AND (ii) is located in a census tract designated on the TCAC/HCD Opportunity Area Map as Highest or High Resource | F24: (Select) | G24: =IF(F24="Y",F12*I24,0) -> 0 | I24: 0.1
C25: 4% Tax Credit Projects ONLY: Plus (+) 1% basis adjustment for each 1% of units income-targeted to 50% to 36% of AMI | G25: =IF((E26>0),F12*E27/E26,0) -> 0
C26: Rental Units:
C27: Total Units @ 50% to 36% of AMI:
C28: 4% Tax Credit Projects ONLY: Plus (+) 2% basis adjustment for each 1% of units income-targeted to 35% of AMI and below | G28: =IF((E29=""),0,2*F12*E30/E29) -> 0
C29: Rental Units: | E29: =IF(E26="","",E26) -> 
C30: Total Units @ 35% of AMI or less:
C31: = Adjusted Threshold Basis Limit | G31: =SUM(F12,G14:G30) -> 0

Sheet D.9.b. 4% Tax Credit Calc
B2: D.9.b Tax Credit Calculation - 4% Projects
B4: Tax credit factors shall be limited to the allowable prices defined by TCAC.
B6: Determination of Eligible and Qualified Basis
C8: New Construction or Rehabilitation | E8: Acquisition
B9: Total Eligible Basis (from D.4) | C9: ='D.4 Development Budget'!H118 -> 0 | E9: ='D.4 Development Budget'!I118 -> 0
B10: Deduct From Eligible Basis:
B11: Grant Proceeds Used to Finance Costs in Eligible Basis
B12: Non-Qualified Non-Recourse Financing
B13: Non-Qualifying Portion of Higher Quality Units
B14: Photovoltaic Credit (as applicable)
B15: Historic Credit (residential portion only)
B16: Ineligible Basis Related to Excess Parking
B17: Other ineligible amounts: _______________________
B18: Total Ineligible Amounts | C18: =SUM(C11:C17) -> 0 | E18: =SUM(E11:E17) -> 0
B19: Total Eligible Basis Amount Voluntarily Excluded
B20: TOTAL BASIS REDUCTION | C20: =-SUM(C18:C19) -> 0 | E20: =-SUM(E18:E19) -> 0
B22: TOTAL REQUESTED UNADJUSTED ELIGIBLE BASIS | C22: =C9+C20 -> 0 | E22: =E9+E20 -> 0
B24: TOTAL ADJUSTED THRESHOLD BASIS LIMIT | C24: ='D.8.a. 9% TC Threshold Basis'!Text84 -> 0
B26: Project located in Qualified Census Tract (CQT) or Difficult to Develop Area (DDA) Adjustment? | C26: (Select)
B28: x QCT or DDA Adjustment | C28: =IF(C26="Yes",130%,100%) -> 1 | E28: 1
B30: TOTAL ADJUSTED ELIGIBLE BASIS | C30: =C22*C28 -> 0 | E30: =E22*E28 -> 0
B32: x Applicable Fraction
B34: QUALIFIED BASIS | C34: =C30*C32 -> 0 | E34: =E30*E32 -> 0
B36: TOTAL QUALIFIED BASIS | E36: =C34+E34 -> 0
B44: Determination of Federal Credit
C45: New Construction or Rehabilitation | E45: Acquisition
B46: 1. Qualified Basis | C46: =IF(C24>=(C22+E22),C34,0) -> 0 | E46: =IF(C24>=(C22+E22),E34,0) -> 0
B47: 2. Applicable Percentage (use current values) | C47: 0.0307 | E47: 0.0307
B48: 3. Subtotal Annual Federal Credit | C48: =C46*C47 -> 0 | E48: =E46*E47 -> 0
B49: 4. Total Combined Annual Credit | C49: =IF((C48+E48)>2500000,2500000,(C48+E48)) -> 0
B51: Determination of Minimum Federal Credit Necessary for Feasibility
B53: 1. Total Project Cost | C53: ='D.4 Development Budget'!D116 -> 0
B54: 2. Permanent Financing | C54: ='D.2 Sources'!G29 -> 0
B55: 3. Funding Gap | C55: =C53-C54 -> 0
B56: 4. Federal Tax Credit Factor
B58: Total Credits Necessary for Feasibility | C58: =ROUND(IF(ISERROR((C55/C56)),0,(C55/C56)),0) -> 0
B59: Annual Federal Credit Necessary for Feasibility | C59: =C58/10 -> 0
B60: Maximum Annual Federal Credits | C60: =(IF((C49<C59),C49,C59)) -> 0
B61: Equity Raised from Federal Credit | C61: =ROUND((10*C60*C56),0) -> 0
B63: Remaining Funding Gap | C63: =C55-C61 -> 0
B66: Determination of State Credit
B68: Does the project include State Credit? | C68: (Select)
B69: Does the project involve State Acquisition Credit? | C69: (Select)
C70: New Construction or Rehabilitation | E70: Acquisition
B71: 1. State Credit Basis
B72: Rehabilitation or new construction basis only (no acquisition basis), except in rare cases of At-Risk projects eligible for State Credit on the acquisition basis at the 0.13 factor when no 130% basis increase is used.
B73: 2. x Factor Amount | C73: 0.13 | E73: 0.13
B74: 3. Maximum Total State Credit | C74: =C71*C73 -> 0 | E74: =E71*E73 -> 0
B76: Calculation of LIHTC Equity | C76: Federal | E76: State
B77: Total Annual Credits | C77: =C60 -> 0
B78: Total Credits | C78: =C77*10 -> 0 | E78: =SUM(C74,E74) -> 0
B79: Limited Partner Share (Percentage) | C79: 0.9999 | E79: 0.9999
B80: Total Limited Partner Credits | C80: =C78*C79 -> 0 | E80: =E78*E79 -> 0
B81: Tax Credit Pricing ($$ / credit) | C81: 0.0001 | E81: 0.0001
B82: Limited Partner Equity | C82: =C80*C81 -> 0 | E82: =E80*E81 -> 0
B84: Total Limited Partner Equity* | C84: =SUM(C82:E82) -> 0
B86: *Must match LP Equity shown in project sources on tab D.2

Sheet D.10 Unit Mix & Rents
B2: D.10 Unit Mix & Rents
B3: =IF('C.1 Project Summary'!E23="","",'C.1 Project Summary'!E23) -> 
B4: Allowable Rents by Funding Source
B5: Insert the project's funding sources and the allowable rents that can be charged for each unit type and Area Median Income (AMI) level. Assume TCAC rents for Affordable Housing Trust Funds (AHTF) requested through this NOFA. Replace "Source" with the funding source name (e.g. "VHHP"). Add funding sources and rows as necessary.
B6: Unit Information | D6: Allowable Rents by Funding Source
B7: Unit Number | C7: # of Bedrooms | D7: % AMI | E7: TCAC | F7: Source | G7: Source | H7: Source | I7: Source | J7: Source | K7: Source
B57: Project Rent Schedule
B58: The most restrictive rents from the above "Allowable Rents by Funding Source" table must be used as the monthly gross rent. Add rows as necessary
B59: # of Bedrooms | C59: # of Units | D59: % AMI | E59: Monthly Gross Rent (Including Utility Allowance) | F59: Monthly Utility Allowance | G59: Net Monthly Rent | H59: SN Units? (Y/N) | I59: Covered by an Operating Subsidy? (Y/N) | J59: Assisted by the LACDA? (Y/N)* | M59: < 35% AMI | N59: 36 - 50% AMI
G60: =(E60-F60)*C60 -> 0 | H60: (Select) | I60: (Select) | J60: (Select) | M60: =IF(D60<=0.35,C60,0) -> 0 | N60: =IF(AND(D60<=0.5,D60>0.35),C60,0) -> 0 | O60: =IF(J60="Y",1,0) -> 0 | P60: =C60*O60 -> 0 | AD60: =IF(H60="Y",G60,0) -> 0
G61: =(E61-F61)*C61 -> 0 | H61: (Select) | I61: (Select) | J61: (Select) | M61: =IF(D61<=0.35,C61,0) -> 0 | N61: =IF(AND(D61<=0.5,D61>0.35),C61,0) -> 0 | O61: =IF(J61="Y",1,0) -> 0 | P61: =C61*O61 -> 0 | AD61: =IF(H61="Y",G61,0) -> 0
G62: 0 | H62: (Select) | I62: (Select) | J62: (Select) | M62: 0 | N62: 0 | O62: 0 | P62: 0 | AD62: 0
G63: 0 | H63: (Select) | I63: (Select) | J63: (Select) | M63: 0 | N63: 0 | O63: 0 | P63: 0 | AD63: 0
G64: 0 | H64: (Select) | I64: (Select) | J64: (Select) | M64: 0 | N64: 0 | O64: 0 | P64: 0 | AD64: 0
G65: 0 | H65: (Select) | I65: (Select) | J65: (Select) | M65: 0 | N65: 0 | O65: 0 | P65: 0 | AD65: 0
G66: 0 | H66: (Select) | I66: (Select) | J66: (Select) | M66: 0 | N66: 0 | O66: 0 | P66: 0 | AD66: 0
G67: 0 | H67: (Select) | I67: (Select) | J67: (Select) | M67: 0 | N67: 0 | O67: 0 | P67: 0 | AD67: 0
G68: 0 | H68: (Select) | I68: (Select) | J68: (Select) | M68: 0 | N68: 0 | O68: 0 | P68: 0 | AD68: 0
G69: 0 | H69: (Select) | I69: (Select) | J69: (Select) | M69: 0 | N69: 0 | O69: 0 | P69: 0 | AD69: 0
G70: 0 | H70: (Select) | I70: (Select) | J70: (Select) | M70: 0 | N70: 0 | O70: 0 | P70: 0 | AD70: 0
G71: 0 | H71: (Select) | I71: (Select) | J71: (Select) | M71: 0 | N71: 0 | O71: 0 | P71: 0 | AD71: 0
B72: Total Units | C72: =SUM(C60:C71) -> 0 | F72: Total Rents | G72: =SUM(G60:G71) -> 0 | I72: Total Assisted | J72: =P72 -> 0 | P72: =SUM(P60:P71) -> 0
F73: SN Rents | G73: =SUM(AD60:AD71) -> 0
B75: *For Tax Credit Projects, assisted units must be the greater of 15 units or 20% of total project units set aside for a qualifying Special Needs population.
B78: The following operating subsidies require that GROSS rents for special needs units be set at $260:
B79: - cross-subsidy
B80: - project-funded capitalized operating subsidy reserve
B82: Manager's Unit(s)
B83: # of Bedrooms | C83: Number of Unit(s) | D83: F/T or P/T? | E83: Monthly Rent | F83: Total Monthly Rent
D84: (Select) | F84: =C84*E84 -> 0
D85: (Select) | F85: =C85*E85 -> 0
D86: (Select) | F86: =C86*E86 -> 0
B87: Total Units | C87: =SUM(C84:C86) -> 0 | E87: Total Rent | F87: =SUM(F84:F86) -> 0
B89: Market Rate Units
B90: # of Bedrooms | C90: Number of Unit(s) | D90: Monthly Rent | E90: Total Monthly Rent
E91: =C91*D91 -> 0
E92: =C92*D92 -> 0
E93: =C93*D93 -> 0
B94: Total Units | C94: =SUM(C91:C93) -> 0 | D94: Total Rent | E94: =SUM(E91:E93) -> 0
B96: Total Project Units | C96: =SUM(C72,C87,C94) -> 0
B98: AGGREGATE MONTHLY RENTS
B99: FOR ALL UNITS | G99: =SUM(G72,F87,E94) -> 0
G100: x 12
B101: AGGREGATE ANNUAL
B102: RENTS FOR ALL UNITS | G102: =G99*12 -> 0
B105: Rent Subsidy Premium
B107: Total Annual Rental Subsidy | G107: ='D.3 Operating Subsidies'!I15 -> 0
B108: Must match information shown in Operating Subsidies Worksheet for Rent Subsidy Premium (D.3).
B110: Commercial Component
B112: Monthly Rent | G112: /Sf/Mo.
B113: Type of Lease
B114: Initial Lease Term | G114: Years
B115: Total Annual Commercial Rental Income
B118: Miscellaneous Income
B120: Annual Income from Laundry Facilities
B121: Annual Income from Vending Machines
B122: Annual Interest Income
B123: Other Annual Income (Specify)
B124: Total Miscellaneous Income | G124: =SUM(F120:F123) -> 0
B126: TOTAL ANNUAL POTENTIAL GROSS INCOME | G126: =SUM(G102:G124) -> 0
B127: (From Residential Sources)
B129: Utility Allowances
B130: Utility allowance must be itemized and correlate with the local Housing Authority's utility allowance schedule included in the application.
D133: 0 BR | E133: 1 BR | F133: 2 BR | G133: 3 BR | H133: 4 BR | I133: 5 BR
B134: Space Heating
B135: Water Heating
B136: Cooking
B137: Lighting
B138: Other (Specify)
B139: TOTAL | D139: =SUM(D134:D138) -> 0 | E139: 0 | F139: 0 | G139: 0 | H139: 0 | I139: 0
B141: PHA Providing Utility Allowances:
B143: Is the above utility allowances based on a CUAC estimate?

Sheet D.11 20-Year Cash Flow
B2: D.11 20-Year Cash Flow
B3: =IF('C.1 Project Summary'!E23="","",'C.1 Project Summary'!E23) -> 
D4: 1 | E4: =D4+1 -> 2 | F4: =E4+1 -> 3 | G4: 4 | H4: 5 | I4: 6 | J4: 7 | K4: 8 | L4: 9 | M4: 10 | N4: 11 | O4: 12 | P4: 13 | Q4: 14 | R4: 15 | S4: =R4+1 -> 16 | T4: =S4+1 -> 17 | U4: =T4+1 -> 18 | V4: =U4+1 -> 19 | W4: =V4+1 -> 20
B6: Gross Potential Income - Residential | C6: 0.025 | D6: =+'D.10 Unit Mix & Rents'!G102 -> 0 | E6: =D6*(1+$C$6) -> 0 | F6: 0 | G6: 0 | H6: 0 | I6: 0 | J6: 0 | K6: 0 | L6: 0 | M6: 0 | N6: 0 | O6: 0 | P6: 0 | Q6: 0 | R6: 0 | S6: =R6*(1+$C$6) -> 0 | T6: =S6*(1+$C$6) -> 0 | U6: =T6*(1+$C$6) -> 0 | V6: =U6*(1+$C$6) -> 0 | W6: =V6*(1+$C$6) -> 0
B7: Gross Potential Income - Rent Subsidy | C7: 0.025 | D7: =+'D.10 Unit Mix & Rents'!G107 -> 0 | E7: =D7*(1+$C$7) -> 0 | F7: 0 | G7: 0 | H7: 0 | I7: 0 | J7: 0 | K7: 0 | L7: 0 | M7: 0 | N7: 0 | O7: 0 | P7: 0 | Q7: 0 | R7: 0 | S7: =R7*(1+$C$7) -> 0 | T7: =S7*(1+$C$7) -> 0 | U7: =T7*(1+$C$7) -> 0 | V7: =U7*(1+$C$7) -> 0 | W7: =V7*(1+$C$7) -> 0
B8: Project-funded Capitalized Subsidy Reserve
B9: Gross Potential Income - Commercial | C9: 0.025 | D9: ='D.10 Unit Mix & Rents'!F115 -> 0 | E9: =D9*(1+$C$9) -> 0 | F9: =E9*(1+$C$9) -> 0 | G9: 0 | H9: 0 | I9: 0 | J9: 0 | K9: 0 | L9: 0 | M9: 0 | N9: 0 | O9: 0 | P9: 0 | Q9: 0 | R9: 0 | S9: =R9*(1+$C$9) -> 0 | T9: =S9*(1+$C$9) -> 0 | U9: =T9*(1+$C$9) -> 0 | V9: =U9*(1+$C$9) -> 0 | W9: =V9*(1+$C$9) -> 0
B11: Miscellaneous Income | C11: 0.025 | D11: =+'D.10 Unit Mix & Rents'!G124 -> 0 | E11: =D11*(1+$C$11) -> 0 | F11: 0 | G11: 0 | H11: 0 | I11: 0 | J11: 0 | K11: 0 | L11: 0 | M11: 0 | N11: 0 | O11: 0 | P11: 0 | Q11: 0 | R11: 0 | S11: =R11*(1+$C$11) -> 0 | T11: =S11*(1+$C$11) -> 0 | U11: =T11*(1+$C$11) -> 0 | V11: =U11*(1+$C$11) -> 0 | W11: =V11*(1+$C$11) -> 0
B13: Vacancy Loss - Residential* | C13: 0.05 | D13: =-(D6)*$C13 -> 0 | E13: =-(E6)*$C13 -> 0 | F13: 0 | G13: 0 | H13: 0 | I13: 0 | J13: 0 | K13: 0 | L13: 0 | M13: 0 | N13: 0 | O13: 0 | P13: 0 | Q13: 0 | R13: 0 | S13: =-(S6)*$C13 -> 0 | T13: =-(T6)*$C13 -> 0 | U13: =-(U6)*$C13 -> 0 | V13: =-(V6)*$C13 -> 0 | W13: =-(W6)*$C13 -> 0
B14: Vacancy Loss - Operating Subsidy | C14: 0.1 | D14: =-D7*$C14 -> 0 | E14: 0 | F14: 0 | G14: 0 | H14: 0 | I14: 0 | J14: 0 | K14: 0 | L14: 0 | M14: 0 | N14: 0 | O14: 0 | P14: 0 | Q14: 0 | R14: 0 | S14: =-S7*$C14 -> 0 | T14: =-T7*$C14 -> 0 | U14: =-U7*$C14 -> 0 | V14: =-V7*$C14 -> 0 | W14: =-W7*$C14 -> 0
B15: Vacancy Loss - Commercial | C15: 0.1 | D15: =-D9*$C15 -> 0 | E15: =-E9*$C15 -> 0 | F15: 0 | G15: 0 | H15: 0 | I15: 0 | J15: 0 | K15: 0 | L15: 0 | M15: 0 | N15: 0 | O15: 0 | P15: 0 | Q15: 0 | R15: 0 | S15: =-S9*$C15 -> 0 | T15: =-T9*$C15 -> 0 | U15: =-U9*$C15 -> 0 | V15: =-V9*$C15 -> 0 | W15: =-W9*$C15 -> 0
B16: Vacancy Loss - Miscellaneous Income | C16: 0.05 | D16: =-D11*$C16 -> 0 | E16: =-E11*$C16 -> 0 | F16: 0 | G16: 0 | H16: 0 | I16: 0 | J16: 0 | K16: 0 | L16: 0 | M16: 0 | N16: 0 | O16: 0 | P16: 0 | Q16: 0 | R16: 0 | S16: =-S11*$C16 -> 0 | T16: =-T11*$C16 -> 0 | U16: =-U11*$C16 -> 0 | V16: =-V11*$C16 -> 0 | W16: =-W11*$C16 -> 0
B18: EFFECTIVE GROSS INCOME | D18: =SUM(D6:D16) -> 0 | E18: =SUM(E6:E14) -> 0 | F18: 0 | G18: 0 | H18: 0 | I18: 0 | J18: 0 | K18: 0 | L18: 0 | M18: 0 | N18: 0 | O18: 0 | P18: 0 | Q18: 0 | R18: 0 | S18: =SUM(S6:S14) -> 0 | T18: =SUM(T6:T14) -> 0 | U18: =SUM(U6:U14) -> 0 | V18: =SUM(V6:V14) -> 0 | W18: =SUM(W6:W14) -> 0
B20: Operating Expenses - Residential | C20: 0.035 | D20: =-('D.6 Operating Budget'!C48-'D.6 Operating Budget'!C43) -> 0 | E20: =D20*(1+$C20) -> 0 | F20: =E20*(1+$C20) -> 0 | G20: 0 | H20: 0 | I20: 0 | J20: 0 | K20: 0 | L20: 0 | M20: 0 | N20: 0 | O20: 0 | P20: 0 | Q20: 0 | R20: 0 | S20: =R20*(1+$C20) -> 0 | T20: =S20*(1+$C20) -> 0 | U20: =T20*(1+$C20) -> 0 | V20: =U20*(1+$C20) -> 0 | W20: =V20*(1+$C20) -> 0
B21: Operating Expenses - Commercial | C21: 0.035 | D21: =-'D.6 Operating Budget'!D48 -> 0 | E21: =D21*(1+$C21) -> 0 | F21: 0 | G21: 0 | H21: 0 | I21: 0 | J21: 0 | K21: 0 | L21: 0 | M21: 0 | N21: 0 | O21: 0 | P21: 0 | Q21: 0 | R21: 0 | S21: 0 | T21: 0 | U21: 0 | V21: 0 | W21: 0
B22: Real Estate Taxes & Assessments - Residential | C22: 0.02 | D22: =-'D.6 Operating Budget'!C43 -> 0 | E22: =D22*(1+$C22) -> 0 | F22: 0 | G22: 0 | H22: 0 | I22: 0 | J22: 0 | K22: 0 | L22: 0 | M22: 0 | N22: 0 | O22: 0 | P22: 0 | Q22: 0 | R22: 0 | S22: 0 | T22: 0 | U22: 0 | V22: 0 | W22: 0
B23: Real Estate Taxes & Assessments - Commercial | C23: 0.02 | D23: =-'D.6 Operating Budget'!D43 -> 0 | E23: 0 | F23: 0 | G23: 0 | H23: 0 | I23: 0 | J23: 0 | K23: 0 | L23: 0 | M23: 0 | N23: 0 | O23: 0 | P23: 0 | Q23: 0 | R23: 0 | S23: 0 | T23: 0 | U23: 0 | V23: 0 | W23: 0
B24: Supportive Services | C24: 0.035
B25: Replacement Reserve - Residential | C25: 0 | D25: =-'D.6 Operating Budget'!C52 -> 0 | E25: 0 | F25: 0 | G25: 0 | H25: 0 | I25: 0 | J25: 0 | K25: 0 | L25: 0 | M25: 0 | N25: 0 | O25: 0 | P25: 0 | Q25: 0 | R25: 0 | S25: 0 | T25: 0 | U25: 0 | V25: 0 | W25: 0
B26: Cumulative Replacement Reserve - Residential | D26: =-D25 -> 0 | E26: =IF(D26-E25>0,D26-E25,0) -> 0 | F26: 0 | G26: 0 | H26: 0 | I26: 0 | J26: 0 | K26: 0 | L26: 0 | M26: 0 | N26: 0 | O26: 0 | P26: 0 | Q26: 0 | R26: 0 | S26: =IF(R26-S25>0,R26-S25,0) -> 0 | T26: =IF(S26-T25>0,S26-T25,0) -> 0 | U26: =IF(T26-U25>0,T26-U25,0) -> 0 | V26: =IF(U26-V25>0,U26-V25,0) -> 0 | W26: =IF(V26-W25>0,V26-W25,0) -> 0
B27: Replacement Reserve - Commercial | C27: 0.035 | D27: =-'D.6 Operating Budget'!D52 -> 0 | E27: 0 | F27: 0 | G27: 0 | H27: 0 | I27: 0 | J27: 0 | K27: 0 | L27: 0 | M27: 0 | N27: 0 | O27: 0 | P27: 0 | Q27: 0 | R27: 0 | S27: =R27*(1+$C27) -> 0 | T27: =S27*(1+$C27) -> 0 | U27: =T27*(1+$C27) -> 0 | V27: =U27*(1+$C27) -> 0 | W27: =V27*(1+$C27) -> 0
B28: Cumulative Replacement Reserve - Commercial | D28: =-D27 -> 0 | E28: 0 | F28: 0 | G28: 0 | H28: 0 | I28: 0 | J28: 0 | K28: 0 | L28: 0 | M28: 0 | N28: 0 | O28: 0 | P28: 0 | Q28: 0 | R28: 0 | S28: =IF(R28-S27>0,R28-S27,0) -> 0 | T28: =IF(S28-T27>0,S28-T27,0) -> 0 | U28: =IF(T28-U27>0,T28-U27,0) -> 0 | V28: =IF(U28-V27>0,U28-V27,0) -> 0 | W28: =IF(V28-W27>0,V28-W27,0) -> 0
B29: Operating Reserve | C29: 0 | D29: =-'D.6 Operating Budget'!C51 -> 0 | E29: =D29*(1+$C29) -> 0 | F29: 0 | G29: 0 | H29: 0 | I29: 0 | J29: 0 | K29: 0 | L29: 0 | M29: 0 | N29: 0 | O29: 0 | P29: 0 | Q29: 0 | R29: 0 | S29: =R29*(1+$C29) -> 0 | T29: =S29*(1+$C29) -> 0 | U29: =T29*(1+$C29) -> 0 | V29: =U29*(1+$C29) -> 0 | W29: =V29*(1+$C29) -> 0
B30: Cumulative Operating Reserve | D30: =-D29 -> 0 | E30: =IF(D30-E29>0,D30-E29,0) -> 0 | F30: =IF(E30-F29>0,E30-F29,0) -> 0 | G30: 0 | H30: 0 | I30: 0 | J30: 0 | K30: 0 | L30: 0 | M30: 0 | N30: 0 | O30: 0 | P30: 0 | Q30: 0 | R30: 0 | S30: =IF(R30-S29>0,R30-S29,0) -> 0 | T30: =IF(S30-T29>0,S30-T29,0) -> 0 | U30: =IF(T30-U29>0,T30-U29,0) -> 0 | V30: =IF(U30-V29>0,U30-V29,0) -> 0 | W30: =IF(V30-W29>0,V30-W29,0) -> 0
B31: Transition Reserve | C31: 0 | D31: =-'D.6 Operating Budget'!C53 -> 0 | E31: =D31*(1+$C31) -> 0 | F31: =E31*(1+$C31) -> 0 | G31: 0 | H31: 0 | I31: 0 | J31: 0 | K31: 0 | L31: 0 | M31: 0 | N31: 0 | O31: 0 | P31: 0 | Q31: 0 | R31: 0 | S31: =R31*(1+$C31) -> 0 | T31: =S31*(1+$C31) -> 0 | U31: =T31*(1+$C31) -> 0 | V31: =U31*(1+$C31) -> 0 | W31: =V31*(1+$C31) -> 0
B32: Cumulative Transition Reserve | D32: =-D31 -> 0 | E32: =IF(D32-E31>0,D32-E31,0) -> 0 | F32: =IF(E32-F31>0,E32-F31,0) -> 0 | G32: 0 | H32: 0 | I32: 0 | J32: 0 | K32: 0 | L32: 0 | M32: 0 | N32: 0 | O32: 0 | P32: 0 | Q32: 0 | R32: 0 | S32: =IF(R32-S31>0,R32-S31,0) -> 0 | T32: =IF(S32-T31>0,S32-T31,0) -> 0 | U32: =IF(T32-U31>0,T32-U31,0) -> 0 | V32: =IF(U32-V31>0,U32-V31,0) -> 0 | W32: =IF(V32-W31>0,V32-W31,0) -> 0
B33: TOTAL OPERATING EXPENSES & RESERVES | D33: =SUM(D20:D25,D27,D29,D31) -> 0 | E33: 0 | F33: 0 | G33: 0 | H33: 0 | I33: 0 | J33: 0 | K33: 0 | L33: 0 | M33: 0 | N33: 0 | O33: 0 | P33: 0 | Q33: 0 | R33: 0 | S33: =SUM(S20:S25,S27,S29,S31) -> 0 | T33: =SUM(T20:T25,T27,T29,T31) -> 0 | U33: =SUM(U20:U25,U27,U29,U31) -> 0 | V33: =SUM(V20:V25,V27,V29,V31) -> 0 | W33: =SUM(W20:W25,W27,W29,W31) -> 0
B35: NET OPERATING INCOME | D35: =SUM(D18,D33) -> 0 | E35: 0 | F35: 0 | G35: 0 | H35: 0 | I35: 0 | J35: 0 | K35: 0 | L35: 0 | M35: 0 | N35: 0 | O35: 0 | P35: 0 | Q35: 0 | R35: 0 | S35: =SUM(S18,S33) -> 0 | T35: =SUM(T18,T33) -> 0 | U35: =SUM(U18,U33) -> 0 | V35: =SUM(V18,V33) -> 0 | W35: =SUM(W18,W33) -> 0
B37: Residential Component | D37: =SUM(D6:D7,D10:D14,D16)+SUM(D20,D22,D24,D25,D29) -> 0 | E37: 0 | F37: 0 | G37: 0 | H37: 0 | I37: 0 | J37: 0 | K37: 0 | L37: 0 | M37: 0 | N37: 0 | O37: 0 | P37: 0 | Q37: 0 | R37: 0 | S37: =SUM(S6:S7,S10:S14,S16)+SUM(S20,S22,S24,S25,S29) -> 0 | T37: =SUM(T6:T7,T10:T14,T16)+SUM(T20,T22,T24,T25,T29) -> 0 | U37: =SUM(U6:U7,U10:U14,U16)+SUM(U20,U22,U24,U25,U29) -> 0 | V37: =SUM(V6:V7,V10:V14,V16)+SUM(V20,V22,V24,V25,V29) -> 0 | W37: =SUM(W6:W7,W10:W14,W16)+SUM(W20,W22,W24,W25,W29) -> 0
B38: Commercial Component | D38: =+D35-D37 -> 0 | E38: =+E36-E37 -> 0 | F38: 0 | G38: 0 | H38: 0 | I38: 0 | J38: 0 | K38: 0 | L38: 0 | M38: 0 | N38: 0 | O38: 0 | P38: 0 | Q38: 0 | R38: 0 | S38: =+S36-S37 -> 0 | T38: =+T36-T37 -> 0 | U38: =+U36-U37 -> 0 | V38: =+V36-V37 -> 0 | W38: =+W36-W37 -> 0
B39: DEBT SERVICE
B40: LACDA Monitoring/Asset Management Pmt (55 yrs) | C40: 0 | D40: 0 | E40: -7150 | F40: -7150 | G40: -7150 | H40: -7150 | I40: -7150 | J40: -7150 | K40: -7150 | L40: -7150 | M40: -7150 | N40: -7150 | O40: -7150 | P40: -7150 | Q40: -7150 | R40: -7150 | S40: -7150 | T40: -7150 | U40: -7150 | V40: -7150 | W40: -7150
B41: =IF('D.2 Sources'!H21<>0,'D.2 Sources'!D21,"") ->  | D41: =IF('D.2 Sources'!H21<>0,-'D.2 Sources'!H21,"") ->  | E41: =$D$41 ->  | F41: =$D$41 -> 
B42: =IF('D.2 Sources'!H22<>0,'D.2 Sources'!D22,"") ->  | D42: =IF('D.2 Sources'!H22<>0,-'D.2 Sources'!H22,"") ->  | E42: =$D$42 ->  | F42: =$D$42 -> 
B43: =IF('D.2 Sources'!H23<>0,'D.2 Sources'!D23,"") ->  | D43: =IF('D.2 Sources'!H23<>0,-'D.2 Sources'!H23,"") ->  | E43: =$D$43 ->  | F43: =$D$43 -> 
B44: ANNUAL DEBT SERVICE RESIDENTIAL | D44: =SUM(D40:D43) -> 0 | E44: =SUM(E40:E43) -> -7150 | F44: -7150 | G44: -7150 | H44: -7150 | I44: -7150 | J44: -7150 | K44: -7150 | L44: -7150 | M44: -7150 | N44: -7150 | O44: -7150 | P44: -7150 | Q44: -7150 | R44: -7150 | S44: =SUM(S40:S43) -> -7150 | T44: =SUM(T40:T43) -> -7150 | U44: =SUM(U40:U43) -> -7150 | V44: =SUM(V40:V43) -> -7150 | W44: =SUM(W40:W43) -> -7150
B45: Debt Service Coverage Ratio (Residential NOI) | D45: =IF(SUM(D44)=0,"NA",D37/SUM(D44)) -> NA | E45: =IF(SUM(E44)=0,"NA",E37/SUM(E44)) -> 0 | F45: 0 | G45: 0 | H45: 0 | I45: 0 | J45: 0 | K45: 0 | L45: 0 | M45: 0 | N45: 0 | O45: 0 | P45: 0 | Q45: 0 | R45: 0 | S45: =IF(SUM(S44)=0,"NA",S37/SUM(S44)) -> 0 | T45: =IF(SUM(T44)=0,"NA",T37/SUM(T44)) -> 0 | U45: =IF(SUM(U44)=0,"NA",U37/SUM(U44)) -> 0 | V45: =IF(SUM(V44)=0,"NA",V37/SUM(V44)) -> 0 | W45: =IF(SUM(W44)=0,"NA",W37/SUM(W44)) -> 0
B46: NET CASH FLOW | D46: =D35+D44 -> 0 | E46: =E35+E44 -> -7150 | F46: -7150 | G46: -7150 | H46: -7150 | I46: -7150 | J46: -7150 | K46: -7150 | L46: -7150 | M46: -7150 | N46: -7150 | O46: -7150 | P46: -7150 | Q46: -7150 | R46: -7150 | S46: =S35+S44 -> -7150 | T46: =T35+T44 -> -7150 | U46: =U35+U44 -> -7150 | V46: =V35+V44 -> -7150 | W46: =W35+W44 -> -7150
B48: Potential Partnership Management Fee | C48: =+C49 -> 0.035 | D48: ='D.6 Operating Budget'!E59 -> 0 | E48: =+D48*(1+$C48) -> 0 | F48: =+E48*(1+$C48) -> 0 | G48: 0 | H48: 0 | I48: 0 | J48: 0 | K48: 0 | L48: 0 | M48: 0 | N48: 0 | O48: 0 | P48: 0 | Q48: 0 | R48: 0 | S48: =+R48*(1+$C48) -> 0 | T48: =+S48*(1+$C48) -> 0 | U48: =+T48*(1+$C48) -> 0 | V48: =+U48*(1+$C48) -> 0 | W48: =+V48*(1+$C48) -> 0
B49: Partnership Management Fee | C49: 0.035 | D49: =-IF(D46>0,MIN(D46,D48)) -> 0 | E49: =IF(E46>0,IF(E46>E48,-E48,-E46),0) -> 0 | F49: =IF(F46>0,IF(F46>F48,-F48,-F46),0) -> 0 | G49: 0 | H49: 0 | I49: 0 | J49: 0 | K49: 0 | L49: 0 | M49: 0 | N49: 0 | O49: 0 | P49: 0 | Q49: 0 | R49: 0 | S49: =IF(S46>0,IF(S46>S48,-S48,-S46),0) -> 0 | T49: =IF(T46>0,IF(T46>T48,-T48,-T46),0) -> 0 | U49: =IF(U46>0,IF(U46>U48,-U48,-U46),0) -> 0 | V49: =IF(V46>0,IF(V46>V48,-V48,-V46),0) -> 0 | W49: =IF(W46>0,IF(W46>W48,-W48,-W46),0) -> 0
B50: CASH FLOW after Partnership Management Fee | D50: =IF(D49+D46>0,D49+D46,0) -> 0 | E50: =IF(E49+E46>0,E49+E46,0) -> 0 | F50: 0 | G50: 0 | H50: 0 | I50: 0 | J50: 0 | K50: 0 | L50: 0 | M50: 0 | N50: 0 | O50: 0 | P50: 0 | Q50: 0 | R50: 0 | S50: =IF(S49+S46>0,S49+S46,0) -> 0 | T50: =IF(T49+T46>0,T49+T46,0) -> 0 | U50: =IF(U49+U46>0,U49+U46,0) -> 0 | V50: =IF(V49+V46>0,V49+V46,0) -> 0 | W50: =IF(W49+W46>0,W49+W46,0) -> 0
B52: NPLH Transition Reserve (if funded fully or partially from cash flow)
B53: Cumulative Reserve Balance | D53: =SUM($D52:D52)+'D.4 Development Budget'!D72 -> 0 | E53: =SUM($D52:E52) -> 0 | F53: =SUM($D52:F52) -> 0 | G53: =SUM($D52:G52) -> 0 | H53: =SUM($D52:H52) -> 0 | I53: =SUM($D52:I52) -> 0 | J53: =SUM($D52:J52) -> 0 | K53: =SUM($D52:K52) -> 0 | L53: =SUM($D52:L52) -> 0 | M53: =SUM($D52:M52) -> 0 | N53: =SUM($D52:N52) -> 0 | O53: =SUM($D52:O52) -> 0 | P53: =SUM($D52:P52) -> 0 | Q53: =SUM($D52:Q52) -> 0 | R53: =SUM($D52:R52) -> 0 | S53: =SUM($D52:S52) -> 0 | T53: =SUM($D52:T52) -> 0 | U53: =SUM($D52:U52) -> 0 | V53: =SUM($D52:V52) -> 0 | W53: =SUM($D52:W52) -> 0
B55: Deferred Developer Fee | D55: =-(IF(D50>0,MIN(C56,D50-D52),0)) -> 0 | E55: =-(IF(E50>0,MIN(D56,E50-E52),0)) -> 0 | F55: 0 | G55: 0 | H55: 0 | I55: 0 | J55: 0 | K55: 0 | L55: 0 | M55: 0 | N55: 0 | O55: 0 | P55: 0 | Q55: 0 | R55: 0 | S55: 0 | T55: 0 | U55: 0 | V55: 0 | W55: 0
B56: Deferred Developer Fee Balance | D56: =C56+D55 -> 0 | E56: =D56+E55 -> 0 | F56: 0 | G56: =F56+G55 -> 0 | H56: 0 | I56: 0 | J56: 0 | K56: 0 | L56: 0 | M56: 0 | N56: 0 | O56: 0 | P56: 0 | Q56: 0 | R56: 0 | S56: =R56+S55 -> 0 | T56: =S56+T55 -> 0 | U56: =T56+U55 -> 0 | V56: =U56+V55 -> 0 | W56: =V56+W55 -> 0
B57: CASH FLOW after Def Developer Fee Pmt | D57: =D50+D55 -> 0 | E57: =E50+E55 -> 0 | F57: 0 | G57: 0 | H57: 0 | I57: 0 | J57: 0 | K57: 0 | L57: 0 | M57: 0 | N57: 0 | O57: 0 | P57: 0 | Q57: 0 | R57: 0 | S57: =S50+S55 -> 0 | T57: =T50+T55 -> 0 | U57: =U50+U55 -> 0 | V57: =V50+V55 -> 0 | W57: =W50+W55 -> 0
B59: RESIDUAL RECEIPTS
B60: Borrower | C60: 0.5 | D60: =$C$60*D57 -> 0 | E60: =$C$60*E57 -> 0 | F60: 0 | G60: =$C$60*G57 -> 0 | H60: 0 | I60: 0 | J60: 0 | K60: 0 | L60: 0 | M60: 0 | N60: 0 | O60: 0 | P60: 0 | Q60: 0 | R60: =$C$60*R57 -> 0 | S60: 0 | T60: 0 | U60: 0 | V60: 0 | W60: 0
B61: LACDA (AHTF funds only) | C61: 0.5 | D61: =$C$61*D57 -> 0 | E61: 0 | F61: 0 | G61: 0 | H61: 0 | I61: 0 | J61: 0 | K61: 0 | L61: 0 | M61: 0 | N61: 0 | O61: 0 | P61: 0 | Q61: 0 | R61: =$C$61*R57 -> 0 | S61: 0 | T61: 0 | U61: 0 | V61: 0 | W61: 0
B62: [other Residual Receipt lender] | C62: 0 | D62: =$C$62*D57 -> 0 | E62: 0 | F62: 0 | G62: 0 | H62: 0 | I62: 0 | J62: 0 | K62: 0 | L62: 0 | M62: 0 | N62: 0 | O62: 0 | P62: 0 | Q62: 0 | R62: =$C$62*R57 -> 0 | S62: 0 | T62: 0 | U62: 0 | V62: 0 | W62: 0
B63: [other Residual Receipt lender] | C63: 0 | D63: =$C$63*D57 -> 0 | E63: 0 | F63: 0 | G63: 0 | H63: 0 | I63: 0 | J63: 0 | K63: 0 | L63: 0 | M63: 0 | N63: 0 | O63: 0 | P63: 0 | Q63: 0 | R63: =$C$63*R57 -> 0 | S63: 0 | T63: 0 | U63: 0 | V63: 0 | W63: 0
B66: PROJECT-FUNDED CAPITALIZED SUBSIDY RESERVE**
B67: Starting Reserve Balance | D67: 0 | E67: =+D70 -> 0 | F67: =+E70 -> 0 | G67: 0 | H67: 0 | I67: 0 | J67: 0 | K67: 0 | L67: 0 | M67: 0 | N67: 0 | O67: 0 | P67: 0 | Q67: 0 | R67: 0 | S67: =+R70 -> 0 | T67: =+S70 -> 0 | U67: =+T70 -> 0 | V67: =+U70 -> 0 | W67: =+V70 -> 0
B68: Annual Interest on Reserve | C68: 0.0075 | E68: =+D67*$C68 -> 0 | F68: =+E67*$C68 -> 0 | G68: 0 | H68: 0 | I68: 0 | J68: 0 | K68: 0 | L68: 0 | M68: 0 | N68: 0 | O68: 0 | P68: 0 | Q68: 0 | R68: 0 | S68: =+R67*$C68 -> 0 | T68: =+S67*$C68 -> 0 | U68: =+T67*$C68 -> 0 | V68: =+U67*$C68 -> 0 | W68: =+V67*$C68 -> 0
B69: Annual Reserve Contribution | D69: =-D8 -> 0 | E69: 0 | F69: 0 | G69: 0 | H69: 0 | I69: 0 | J69: 0 | K69: 0 | L69: 0 | M69: 0 | N69: 0 | O69: 0 | P69: 0 | Q69: 0 | R69: 0 | S69: =-S8 -> 0 | T69: =-T8 -> 0 | U69: =-U8 -> 0 | V69: =-V8 -> 0 | W69: =-W8 -> 0
B70: Ending Reserve Balance | D70: =SUM(D67:D69) -> 0 | E70: =SUM(E67:E69) -> 0 | F70: =SUM(F67:F69) -> 0 | G70: 0 | H70: 0 | I70: 0 | J70: 0 | K70: 0 | L70: 0 | M70: 0 | N70: 0 | O70: 0 | P70: 0 | Q70: 0 | R70: 0 | S70: =SUM(S67:S69) -> 0 | T70: =SUM(T67:T69) -> 0 | U70: =SUM(U67:U69) -> 0 | V70: =SUM(V67:V69) -> 0 | W70: =SUM(W67:W69) -> 0
B72: * Must be 10% for SN units, or blended rate for mixed populations.
B73: ** Not for HOME funds.

Sheet E.10 Appraisal Requirements
B2: E.10 Appraisal Requirements
B3: =IF('C.1 Project Summary'!E23="","",'C.1 Project Summary'!E23) -> 
B5: An appraisal performed by a qualified appraiser in conformance with the Uniform Standards of Professional Appraisal Practice is required for all projects. The appraisal must indicate the Fair Market Value of the site, as established by an "as-is" appraisal, which establishes a value as of the date of the appraisal and does not consider any future value, actions, or considerations. The appraisal must be conducted prior to or within 30 days of executing a purchase contract, before construction or rehabilitation, and without consideration of any financial implications of tax credits or project-based vouchers. Environmental conditions, as well as any impairments to the property, must be considered in all appraisals. If a site has environmental contamination and this condition was not disclosed to the appraiser for consideration in site valuation, the LACDA will reduce the land value by the cost of any remediation, and any related purchase price will be reduced in the project budget. The LACDA shall either be named as an intended user for environmental reports or will required a reliance letter for environmental reporting that will authorize the LACDA to rely on the existing environmental report in the loan-making process. If the purchase price is not the same as the appraised value, include a justification of the reasonableness of the amount paid and document any special circumstances. If acquisition funding or acquisition reimbursement is requested under this NOFA, the appraisal shall exclude the value of the property tax welfare exemption unless the applicant can demonstrate that the welfare exemption was reflected in the purchase price when the seller initially acquired the project. After initial site acquisition, any subsequent transaction that results in an increase in the value of the land must be arms-length transactions. If the site was purchased, or if there is an agreement establishing the purchase price less than 12 months prior to the date the application is filed, the NOFA application must include a copy of a letter from the applicant to the seller advising: (a) The buyer does not have the power of eminent domain and will not acquire the property if negotiations fail to result in an amicable agreement; and (b) The Fair Market Value of the property at the time of sale. If this letter was not previously sent to the Seller, it must be sent prior to the filing of the NOFA application. Proof of seller’s receipt of the above letter is required. The project will not receive a commitment of funds from the LACDA if this letter has not been sent to the Seller. If the sale is still being negotiated, the applicant must send the letter prior to any disbursement of funds.

Sheet F.2 Managing GP Experience
B2: F.2 Managing General Partner Experience
B3: =IF('C.1 Project Summary'!E23="","",'C.1 Project Summary'!E23) -> 
B5: Name of Managing General Partner:
B6: List ALL projects of the Managing General Partner.
B8: Project Name & Address | C8: Date Completed | D8: Project type (New Const. or Rehab) | E8: Target Population | F8: Special Needs Population | G8: Number of Special Needs Units | H8: Number of Restricted Units | I8: Number of Total Units | J8: Principal Funding Sources (LIHTC, MHP, etc.) | K8: Principal(s) Involved and Role
A9: 1
A10: 2
A11: 3
A12: 4
A13: 5
A14: 6
A15: 7
A16: 8
A17: 9
A18: 10
A19: 11
A20: 12
A21: 13
A22: 14
A23: 15
A24: 16
A25: 17
A26: 18
A27: 19
A28: 20
A29: 21
A30: 22

Sheet G.6 Corporate Resolution
B1: G.6 Corporate Resolution
B2: =IF('C.1 Project Summary'!E23="","",'C.1 Project Summary'!E23) -> 
B3: All applicant entities must complete this affidavit, which affirms a formal Corporate Resolution by the Board of Directors for the following purposes:
C4: 1) To enter into negotiations with the Los Angeles County Development Authority (LACDA) for funding made available through this Notice of Funding Availability (NOFA) and
C5: 2) To identify the individuals authorized to negotiate on behalf of the corporation and to sign all legal documents in conjunction with this application and project.
B6: PLEASE ATTACH A COPY OF THE MINUTES OF THE BOARD OF DIRECTORS MEETING AT WHICH THE FOLLOWING ACTIONS WERE TAKEN within 90 days prior to the submission of the application.
B8: On (DATE OF BOARD ACTION), the Board of Directors of (NAME OF ORGANIZATION), a (TYPE OF ORGANIZATION--California corporation, etc.) adopted the following resolutions:
B10: RESOLVED: | D10: That this corporation apply to and enter into negotiations with the Los Angeles County Development Authority for $ ____________ of ___________funds
B11: FURTHER RESOLVED: | D11: That | E11: (Name of authorized person)
E12: (Title of authorized person)
D13: and | E13: (Name of authorized person)
E14: (Title of authorized person)
D15: Are hereby authorized and directed on behalf of this corporation to negotiate and execute any and all instruments which are necessary to complete this proposal and subsequent contract(s) in conjunction with this proposal.
D18: Signature of person legally authorized to sign for corporation
D19: (Name)
D20: (Title)
D21: (Date)
B23: (Affix Corporate Seal)
B24: Must bear the same corporate name as that under which this application is being submitted. (If the applicant does not have a Corporate Seal, a current copy of the Articles of Incorporation must be attached.)

Sheet G.7 Board of DirectorsAffidavit
B2: G.7 Board of Directors Affidavit
B3: =IF('C.1 Project Summary'!E23="","",'C.1 Project Summary'!E23) -> 
B5: All Applicant entities must complete this affidavit listing the officers and other members of the Board of Directors. If there are changes in Board membership after the application is submitted, the LACDA must immediately be notified in writing of the changes.
B6: Attach an additional sheet if necessary. The authorized signatory must sign and the corporate seal must be affixed to the signature page.
B8: I, (NAME OF AUTHORIZED PARTY), depose and say that I am
B9: (TITLE) | D9: of
B10: (LEGAL NAME & ADDRESS OF ORGANIZATION)
B13: and submit this application on behalf of the organization. The remaining officers and members of the Board of Directors of this organization are as follows:
B15: NAME | D15: OFFICE (if any)
D28: Signature
D29: (Name)
D30: (Title)
D31: (Date)

Sheet H.2 Service Delivery - HIDDEN (hidden)
B2: Mentally Ill | C2: =IF(OR(#REF!=B2,#REF!=B2,#REF!=B2,#REF!=B2),1,"") ->  | D2: Code
B3: HIV / AIDS | C3: =IF(OR(#REF!=B3,#REF!=B3,#REF!=B3,#REF!=B3),1,"") ->  | D3: Application | E3: 0
B4: Developmentally Disabled | C4: =IF(OR(#REF!=B4,#REF!=B4,#REF!=B4,#REF!=B4),1,"") ->  | D4: Loan Close | E4: 1
B5: Transition Age Youth & Homeless Youth | C5: =IF(OR(#REF!=B5,#REF!=B5,#REF!=B5,#REF!=B5),1,"") ->  | D5: Loan Close, if applicable | E5: 2
B6: Frequent Users of DHS/DMH Services | C6: =IF(OR(#REF!=B6,#REF!=B6,#REF!=B6,#REF!=B6),1,"") ->  | D6: Not Applicable | E6: 3
B7: Homeless Households | C7: =IF(OR(#REF!=B7,#REF!=B7,#REF!=B7,#REF!=B7),1,"") -> 
B8: Chronically Homeless | C8: =IF(OR(#REF!=B8,#REF!=B8,#REF!=B8,#REF!=B8),1,"") -> 
B9: Homeless Veterans | C9: =IF(OR(#REF!=B9,#REF!=B9,#REF!=B9,#REF!=B9),1,"") -> 
B10: Homeless Seniors | C10: =IF(OR(#REF!=B10,#REF!=B10,#REF!=B10,#REF!=B10),1,"") -> 
B11: Mixed Population | C11: =IF(OR(#REF!=B11,#REF!=B11,#REF!=B11,#REF!=B11),1,"") -> 
C14: Mentally Ill | D14: HIV / AIDS | E14: Developmentally Disabled | F14: Transition Age Youth | G14: Frequent Users of DHS/DMH Services | H14: Homeless Households | I14: Chronically Homeless | J14: Homeless Veterans | K14: Homeless Seniors | L14: Mixed Population
B15: Green Education | C15: =IF($C$2=1,C63,"") ->  | D15: =IF($C$3=1,D63,"") ->  | E15: =IF($C$4=1,E63,"") ->  | F15: =IF($C$5=1,F63,"") ->  | G15: =IF($C$6=1,G63,"") ->  | H15: =IF($C$7=1,H63,"") ->  | I15: =IF($C$8=1,I63,"") ->  | J15: =IF($C$9=1,J63,"") ->  | K15: =IF($C$10=1,K63,"") ->  | L15: =IF($C$11=1,L63,"") -> 
B16: Individualized Service Plans
B17: Case Management
B18: Mental Health Care
B19: Substance Use Services
B20: Education
B21: Employment & Training
B22: Housing Outplacement
B23: Life Skills
B24: Physical Health Care
B25: Benefits Assistance
B26: Representative Payee
B27: Legal Assistance
B28: Peer Advocacy
B29: Social Activities/Recreational
B30: Child Care
B31: Medication Management
B32: Attendant Care
B33: Adult Day Care
B34: End of Life Counseling
B35: Info & Referral
C38: Mentally Ill | D38: HIV / AIDS | E38: Developmentally Disabled | F38: Transition Age Youth | G38: Frequent Users of DHS/DMH Services | H38: Homeless Households | I38: Chronically Homeless | J38: Homeless Veterans | K38: Homeless Seniors | L38: Mixed Population | M38: CALCULATION MINIMUM
B39: Green Education | C39: =IF($C$2=1,C87,"") ->  | D39: =IF($C$3=1,D87,"") ->  | E39: =IF($C$4=1,E87,"") ->  | F39: =IF($C$5=1,F87,"") ->  | G39: =IF($C$6=1,G87,"") ->  | H39: =IF($C$7=1,H87,"") ->  | I39: =IF($C$8=1,I87,"") ->  | J39: =IF($C$9=1,J87,"") ->  | K39: =IF($C$10=1,K87,"") ->  | L39: =IF($C$11=1,L87,"") ->  | M39: =MIN(C39:L39) -> 
B40: Individualized Service Plans
B41: Case Management
B42: Mental Health Care
B43: Substance Use Services
B44: Education
B45: Employment & Training
B46: Housing Outplacement
B47: Life Skills
B48: Physical Health Care
B49: Benefits Assistance
B50: Representative Payee
B51: Legal Assistance
B52: Peer Advocacy
B53: Social Activities/Recreational
B54: Child Care
B55: Medication Management
B56: Attendant Care
B57: Adult Day Care
B58: End of Life Counseling
B59: Info & Referral
C62: Mentally Ill | D62: HIV / AIDS | E62: Developmentally Disabled | F62: Transition Age Youth | G62: Frequent Users of DHS/DMH Services | H62: Homeless Households | I62: Chronically Homeless | J62: Homeless Veterans | K62: Homeless Seniors | L62: Mixed Population | M62: =SUM(M39:M59) -> 
B63: Green Education | C63: Loan Close | D63: Loan Close | E63: Loan Close | F63: Loan Close | G63: Loan Close | H63: Loan Close | I63: Loan Close | J63: Loan Close | K63: Loan Close | L63: Loan Close
B64: Individualized Service Plans | C64: Application | D64: Application | E64: Application | F64: Application | G64: Application | H64: Application | I64: Application | J64: Application | K64: Application | L64: Application
B65: Case Management | C65: Application | D65: Application | E65: Application | F65: Application | G65: Application | H65: Application | I65: Application | J65: Application | K65: Application | L65: Loan Close
B66: Mental Health Care | C66: Application | D66: Application | E66: Application | F66: Application | G66: Application | H66: Application | I66: Application | J66: Application | K66: Application | L66: Loan Close
B67: Substance Use Services | C67: Application | D67: Application | E67: Application | F67: Application | G67: Application | H67: Application | I67: Application | J67: Application | K67: Application | L67: Loan Close
B68: Education | C68: Loan Close | D68: Loan Close | E68: Loan Close | F68: Application | G68: Loan Close | H68: Loan Close | I68: Loan Close | J68: Loan Close | K68: Loan Close | L68: Loan Close
B69: Employment & Training | C69: Loan Close | D69: Loan Close | E69: Loan Close | F69: Application | G69: Loan Close | H69: Loan Close | I69: Loan Close | J69: Loan Close | K69: Loan Close | L69: Loan Close
B70: Housing Outplacement | C70: Loan Close | D70: Loan Close | E70: Application | F70: Application | G70: Loan Close | H70: Loan Close | I70: Loan Close | J70: Loan Close | K70: Loan Close | L70: Loan Close
B71: Life Skills | C71: Loan Close | D71: Loan Close | E71: Application | F71: Application | G71: Loan Close | H71: Loan Close | I71: Loan Close | J71: Loan Close | K71: Loan Close | L71: Loan Close
B72: Physical Health Care | C72: Application | D72: Application | E72: Application | F72: Loan Close | G72: Application | H72: Application | I72: Application | J72: Application | K72: Application | L72: Loan Close
B73: Benefits Assistance | C73: Application | D73: Loan Close | E73: Loan Close | F73: Loan Close | G73: Application | H73: Application | I73: Application | J73: Application | K73: Application | L73: Loan Close
B74: Representative Payee | C74: Loan Close | D74: Loan Close | E74: Application | F74: Loan Close | G74: Loan Close | H74: Loan Close | I74: Loan Close | J74: Loan Close | K74: Loan Close | L74: Loan Close
B75: Legal Assistance | C75: Loan Close | D75: Loan Close | E75: Loan Close | F75: Loan Close | G75: Loan Close | H75: Loan Close | I75: Loan Close | J75: Loan Close | K75: Loan Close | L75: Loan Close
B76: Peer Advocacy | C76: Loan Close | D76: Loan Close | E76: Loan Close | F76: Loan Close | G76: Loan Close | H76: Loan Close | I76: Loan Close | J76: Loan Close | K76: Loan Close | L76: Loan Close
B77: Social Activities/Recreational | C77: Loan Close | D77: Loan Close | E77: Loan Close | F77: Loan Close | G77: Loan Close | H77: Loan Close | I77: Loan Close | J77: Loan Close | K77: Loan Close | L77: Loan Close
B78: Child Care | C78: Loan Close, if Applicable | D78: Loan Close, if Applicable | E78: Not Applicable | F78: Loan Close, if Applicable | G78: Not Applicable | H78: Loan Close, if Applicable | I78: Loan Close, if Applicable | J78: Loan Close, if Applicable | K78: Not Applicable | L78: Loan Close, If Applicable
B79: Medication Management | C79: Loan Close | D79: Application | E79: Application | F79: Loan Close | G79: Loan Close | H79: Loan Close | I79: Loan Close | J79: Loan Close | K79: Loan Close | L79: Loan Close
B80: Attendant Care | C80: Loan Close | D80: Loan Close | E80: Application | F80: Not Applicable | G80: Loan Close | H80: Loan Close | I80: Loan Close | J80: Loan Close | K80: Loan Close | L80: Not Applicable
B81: Adult Day Care | C81: Loan Close | D81: Loan Close | E81: Application | F81: Not Applicable | G81: Loan Close | H81: Loan Close | I81: Loan Close | J81: Loan Close | K81: Loan Close | L81: Not Applicable
B82: End of Life Counseling | C82: Not Applicable | D82: Loan Close | E82: Not Applicable | F82: Not Applicable | G82: Loan Close | H82: Not Applicable | I82: Not Applicable | J82: Not Applicable | K82: Loan Close | L82: Not Applicable
B83: Info & Referral | C83: Not Applicable | D83: Not Applicable | E83: Not Applicable | F83: Not Applicable | G83: Not Applicable | H83: Not Applicable | I83: Not Applicable | J83: Not Applicable | K83: Not Applicable | L83: Application
C86: Mentally Ill | D86: HIV / AIDS | E86: Developmentally Disabled | F86: Transition Age Youth | G86: Frequent Users of DHS/DMH Services | H86: Homeless Households | I86: Chronically Homeless | J86: Homeless Veterans | K86: Homeless Seniors | L86: Mixed Population
B87: Green Education | C87: 1 | D87: 1 | E87: 1 | F87: 1 | G87: 1 | H87: 1 | I87: 1 | J87: 1 | K87: 1 | L87: 1
B88: Individualized Service Plans | C88: 0 | D88: 0 | E88: 0 | F88: 0 | G88: 0 | H88: 0 | I88: 0 | J88: 0 | K88: 0 | L88: 0
B89: Case Management | C89: 0 | D89: 0 | E89: 0 | F89: 0 | G89: 0 | H89: 0 | I89: 0 | J89: 0 | K89: 0 | L89: 1
B90: Mental Health Care | C90: 0 | D90: 0 | E90: 0 | F90: 0 | G90: 0 | H90: 0 | I90: 0 | J90: 0 | K90: 0 | L90: 1
B91: Substance Use Services | C91: 0 | D91: 0 | E91: 0 | F91: 0 | G91: 0 | H91: 0 | I91: 0 | J91: 0 | K91: 0 | L91: 1
B92: Education | C92: 1 | D92: 1 | E92: 1 | F92: 0 | G92: 1 | H92: 1 | I92: 1 | J92: 1 | K92: 1 | L92: 1
B93: Employment & Training | C93: 1 | D93: 1 | E93: 1 | F93: 0 | G93: 1 | H93: 1 | I93: 1 | J93: 1 | K93: 1 | L93: 1
B94: Housing Outplacement | C94: 1 | D94: 1 | E94: 0 | F94: 0 | G94: 1 | H94: 1 | I94: 1 | J94: 1 | K94: 1 | L94: 1
B95: Life Skills | C95: 1 | D95: 1 | E95: 0 | F95: 0 | G95: 1 | H95: 1 | I95: 1 | J95: 1 | K95: 1 | L95: 1
B96: Physical Health Care | C96: 0 | D96: 0 | E96: 0 | F96: 1 | G96: 0 | H96: 0 | I96: 0 | J96: 0 | K96: 0 | L96: 1
B97: Benefits Assistance | C97: 0 | D97: 1 | E97: 1 | F97: 1 | G97: 0 | H97: 0 | I97: 0 | J97: 0 | K97: 0 | L97: 1
B98: Representative Payee | C98: 1 | D98: 1 | E98: 0 | F98: 1 | G98: 1 | H98: 1 | I98: 1 | J98: 1 | K98: 1 | L98: 1
B99: Legal Assistance | C99: 1 | D99: 1 | E99: 1 | F99: 1 | G99: 1 | H99: 1 | I99: 1 | J99: 1 | K99: 1 | L99: 1
B100: Peer Advocacy | C100: 1 | D100: 1 | E100: 1 | F100: 1 | G100: 1 | H100: 1 | I100: 1 | J100: 1 | K100: 1 | L100: 1
B101: Social Activities/Recreational | C101: 1 | D101: 1 | E101: 1 | F101: 1 | G101: 1 | H101: 1 | I101: 1 | J101: 1 | K101: 1 | L101: 1
B102: Child Care | C102: 2 | D102: 2 | E102: 3 | F102: 2 | G102: 3 | H102: 2 | I102: 2 | J102: 2 | K102: 3 | L102: 2
B103: Medication Management | C103: 1 | D103: 0 | E103: 0 | F103: 1 | G103: 1 | H103: 1 | I103: 1 | J103: 1 | K103: 1 | L103: 2
B104: Attendant Care | C104: 1 | D104: 1 | E104: 0 | F104: 3 | G104: 1 | H104: 1 | I104: 1 | J104: 1 | K104: 1 | L104: 3
B105: Adult Day Care | C105: 1 | D105: 1 | E105: 0 | F105: 3 | G105: 1 | H105: 1 | I105: 1 | J105: 1 | K105: 1 | L105: 3
B106: End of Life Counseling | C106: 3 | D106: 1 | E106: 3 | F106: 3 | G106: 1 | H106: 3 | I106: 3 | J106: 3 | K106: 1 | L106: 3
B107: Info & Referral | C107: 3 | D107: 3 | E107: 3 | F107: 3 | G107: 3 | H107: 3 | I107: 3 | J107: 3 | K107: 3 | L107: 0

Sheet H.1 Services Narrative
B2: H.1 Supportive Services Narrative - Maximum 12 pages limit
B3: =IF('C.1 Project Summary'!E23="","",'C.1 Project Summary'!E23) -> 
B5: NOTES: >> Questions H.1.3. - H.1.10 do not need to be completed by projects with 100% of units covered by supportive service commitments from the Los Angeles County Health Agency (Department of Health Services (DHS)/Department of Mental Health (DMH)/Department of Public Health (DPH)) or the US Department of Veterans Affairs. This section is labeled as such. For mixed population projects that include special needs units, only answer the following questions for the non-homeless special needs units and/or general affordable units. >> Sections labeled "ALL PROJECT TYPES," should be filled in by all applicants, regardless of service commitment. >> Extend text boxes as needed, but maintain page limit of 12 pages.
B6: NEED - ALL PROJECT TYPES
B8: H.1.1. | D8: Describe the target population(s) and how the project will address local community needs, as well as the needs of the target population(s). Include demographic data.
B11: RESIDENT SELECTION - ALL PROJECT TYPES
B14: H.1.2. | D14: Describe the resident referral process you will use for any units not covered by CES. Ensure that this process is consistent with any description contained in the property management plan.
B20: SERVICE PROVISION - N/A to projects with 100% of units covered by Los Angeles County or VA service commitments. For mixed population projects that include special needs units, only answer the following questions for the non-homeless special needs units and/or general affordable units.
B22: H.1.3. | D22: Provide a detailed description of each on-site service to be provided for the residents by the lead service provider and partnering agencies. Merely stating that tenants will be referred is not an adequate description of your plans to provide the service. Note: Applicant must obtain services commitments (e.g., MOUs, commitment letters) for all services, either by the time the application is submitted, or by loan close. See Supplemental Document - Supportive Services Criteria for more information.
B25: H.1.4. | D25: Provide a detailed description of each off-site service to be provided for the residents by the partnering agencies. Include enough information to allow assessment of adequacy of the service, including either staffing detail (job titles, staff experience levels, and FTE), or a statement of the total dollar value of the service and the expected number of tenants receiving the service per year. Merely stating that tenants will be referred is not an adequate description of your plans to provide the service, or facilitate access to, the service. Note: Applicant must obtain services commitments (e.g., MOUs, commitment letters) for all services, either by the time the application is submitted, or by loan close, depending on the service. See the Supportive Services Criteria for more information.
B28: H.1.5. | D28: Describe how the services will be culturally-specific and linguistically appropriate.
B32: H.1.6. | D32: Describe how individualized client service plans will be developed with residents. Describe any differences in how individualized client service plans will be developed for each target population.
B35: H.1.7. | D35: For both on-site and off-site services, explain the referral process.
B38: H.1.8. | D38: For both on-site and off-site services, state the available days and hours of services.
B41: H.1.9. | D41: For off-site services, describe transportation plans, including who will cover the cost of transportation. Ensure transportation costs are reflected in the budget, as appropriate.
B44: H.1.10. | D44: Describe your plan to fill any currently uncommitted service gap and any service gap that may occur during the life of the project due to expiration of grants, withdrawal of a partner, cancellation of a commitment, or any other reason. Describe your past experience filling service gaps at projects similar to the proposed project.
B47: POLICIES & PROCEDURES - ALL PROJECT TYPES
B49: H.1.11. | D49: Explain how the service provider will assist applicants and residents in making reasonable accommodation requests, both of property management and outside entities (such as housing authorities) to ensure that persons with disabilities have access to and can maintain housing.
B52: H.1.12. | D52: Describe policies and procedures on eviction and eviction prevention. Explain how the lead service provider will work with property management to encourage lease compliance and prevent eviction.
B55: H.1.13. | D55: Describe how the service provider will implement voluntary Moving On practices to support residents who choose to transition to affordable housing with less intensive supportive services.
B57: STAFFING - ALL PROJECT TYPES
B59: H.1.14. | D59: Indicate and justify the staff-to-resident ratio(s) for each target population for the first year of the building’s operation. For mixed population projects, also identify which staff positions will work with each target population, and explain any differences in staff-to-tenant ratios. Note: Agencies with a services commitment from DHS require a 1:20 tenant to Case Manager staffing ratio for single adult households and 1:15 for families with children households. A 1:40 to 1:75 staff-to-tenant ratio is recommended for general affordable units.
B61: H.1.15. | D61: Describe the roles of all direct services staff listed in the H.3 Services Staffing Chart, including the primary tasks and population(s) they will serve.
B64: RESIDENT ENGAGEMENT & PARTICIPATION - ALL PROJECT TYPES
B66: H.1.16. | D66: Describe how the services staff will outreach to residents to engage them in services and sustain their participation. For mixed population projects, describe any differences in outreach and retention strategies for the target populations.
B69: H.1.17. | D69: Describe the mechanisms and strategies by which the lead service provider and property management will facilitate resident participation in decision-making with regards to building operations.
B72: H.1.18. | D72: Describe the mechanisms and the strategies by which the lead service provider will facilitate resident participation in decision-making with regards to available services/activities and service delivery.
B75: H.1.19. | D75: Describe residents’ opportunities for social interactions to foster social cohesion within the building. Describe how social & recreational programs will be available to residents and how the project’s physical space will support provision of services and social cohesion. For projects with more than one target population, describe plans to facilitate interaction among the different target population groups to build a unified community.
B77: H.1.20. | D77: Describe how peer support programs (supportive relationship between people who have lived in common) will be a resource for residents and will forster social interactions and social cohesion within the building.
B80: OUTCOMES - ALL PROJECT TYPES
B82: H.1.21. | D82: The Home for Good Standards of Excellence must be adopted for all homeless Special Needs tenants. Do you also agree to also adopt the Home for Good Standards of Excellence for any non-homeless special needs units and/or general affordable tenants in the proposed project? | L82: (Select)
B84: H.1.22. | D84: If this project has non-homeless special needs units and/or general affordable units, and Home for Good Standards of Excellence for all tenants are not being used, what measurable outcome(s) do you propose to use to evaluate Housing Stability for the aforementioned tenant populations? The outcomes must be at least as rigorous as the Home for Good Standards of Excellence for Housing Stability.
B87: H.1.23. | D87: If this project has non-homeless special needs units and/or general affordable units, and Home for Good Standards of Excellence for all tenants are not being used, what measurable outcome(s) do you propose to use to evaluate Tenant Satisfaction for the aforementioned tenant populations? (Must be at least as rigorous as the Home for Good Standards of Excellence for Tenant Satisfaction)
B90: H.1.24. | D90: What additional measurable outcome(s) do you propose beyond the Home for Good Standards of Excellence for permanent supportive housing? (Optional)
B93: H.1.25. | D93: Describe your methods for collecting and evaluating the measurable outcomes data for all target populations. Who will collect and how? Who will evaluate and when? What systems (e.g., CHAMP, HMIS, in-house database) will you employ? How will you make use of the results?

Sheet H.1.a Target Population Matrix
C2: H.1.a Target Population Matrix
C3: =IF('C.1 Project Summary'!E23="","",'C.1 Project Summary'!E23) -> 
C5: Instructions: This matrix complements Table C.1.5a. Complete this table with each target population's primary category and any subcategories. The Totals row will auto-calculate; ensure that the unit numbers match the Table C.1.5a Total Units column. Example: A project has 50 units dedicated to homeless households, of which 25 units dedicated to residents are dedicated to homeless TAY, and one manager's unit. In Table H.1.a, the applicant would enter under the 25 in cell D10, 25 in cell D13, and 1 in cell L9.
D7: Primary Target Population (Expands on Tab C.1 Project Summary Information)
D8: Homeless Special Needs Units | E8: Non-Homeless Special Needs Units | I8: General Affordable Units
D9: Homeless Households | E9: HIV / AIDS | F9: Intellectual and Developmental Disabilities | G9: Transition Age Youth | H9: Survivors of Domestic Violence/Human Trafficking | I9: Seniors | J9: Family (affordable) | K9: Market Rate | L9: Manager
B10: Target Population Subcategory | C10: No Subcategory
C11: Chronically Homeless
C12: Homeless Veterans
C13: Homeless Seniors
C14: Mentally Ill (non-NPLH)
C15: NPLH Homeless Mentally Ill
C16: NPLH Chronically Homeless Mentally Ill
C17: NPLH At Risk/Chronically Homeless Mentally Ill
C18: Other Homeless ___________________
C19: Other Homeless ___________________
C21: TOTAL HOMELESS UNITS | D21: =SUM(D10:D19) -> 0

Sheet H.3 Services Staffing Chart
A1: H.3 Supportive Services Staffing Chart
A2: =IF('C.1 Project Summary'!E23="","",'C.1 Project Summary'!E23) -> 
A4: Instructions: List all supportive service staff positions for the proposed project, including direct service and supervisory positions. Ensure consistency between the positions listed and those referenced in the services narrative (Section H.1) and the services budget (Section H.4).
A5: Title | B5: Target Population | C5: Agency | D5: Location | G5: FTE | H5: Annual Salary | I5: Total Salary Cost | J5: Plus Fringe Benefits | K5: Funding Source | L5: Notes
A6: Staff position title | B6: For projects with more than one target population, specify which population(s) the staff position will work with. | C6: Agency employing the staff position | D6: Indicate whether staff will be located on-site or off-site | E6: If off-site, state location | F6: If off-site, indicate distance from proposed project | G6: (A) Indicate the FTE specific to the proposed project (e.g. 1.0 FTE). | H6: (B) Indicate the salary, not including fringe benefits, for a full-time position. | I6: (A) x (B) = Total Cost | J6: Total Salary cost + Fringe Benefits | K6: Source of funds to pay for staff position | L6: Provide additional details on funding source, if needed. Note any external funders here.
A7: Homeless Special Needs Units (DHS)
K8: DHS
K9: DHS
K10: DHS
K11: DHS
A12: NPLH Special Needs Units (DMH)
K13: DMH
K14: DMH
K15: DMH
K16: DMH
A17: Homeless Veteran Special Needs Units (VA)
K18: VA
K19: VA
K20: VA
K21: VA
A22: Other Special Needs Units (Non-Homeless)
A27: General Affordable Units
H33: DHS Position Salaries | J33: =SUM(J8:J11) -> 0
H34: DMH Position Salaries | J34: =SUM(J13:J16) -> 0
H35: VA Position Salaries | J35: =SUM(J18:J21) -> 0
H36: Other SN Position Salaries (Cash Flow) | J36: =SUM(J23:J26) -> 0
H37: GA Position Salaries (Cash Flow) | J37: =SUM(J28:J31) -> 0
H38: Total Salary Expenses | J38: =SUM(J33:J37) -> 0

Sheet H.4 Services Budget
B2: H.4 Supportive Service Budget - First Year of Operations
B5: Instructions: In Column A, show all costs to be paid from cash flow for Supportive Services Staff and Other Expenses. To determine the cost of Other Expenses, use H.4a as a guideline for projects that includes all special needs units or mixed population projects that include special needs units and general affordable units. Use H.4b as a guideline if the project has all VASH units or mixed population projects that include VASH units and general affordable units.
D7: Column A
B8: Expenses | D8: Cost | E8: Notes/Assumptions
B9: PERSONNEL
B10: Supportive Services Staff Expenses (from H.3) | D10: ='H.3 Services Staffing Chart'!J36+'H.3 Services Staffing Chart'!J37 -> 0
B13: OTHER EXPENSES
B14: Training
B15: Transportation
B16: Transportation (Agency Vehicle for VASH units only)
B17: Program/Office Supplies
B18: After School Supplies
B19: Food/Events
B20: TOTAL | D20: =SUM(D14:D19) -> 0
B21: Funding Source
B22: SERVICES PAID FROM CASH FLOW | D22: =D10+D20 -> 0

Sheet H.4a Sample Gen. Aff. Budget
A1: H.4.a Sample Supportive Services Budget
A3: General Affordable Units | B3: 40
A4: PSH Units | B4: 20
B5: % FTE | C5: Salary | D5: Annual Amount | E5: Guidelines
A6: Personnel
A7: RSC | B7: 1 | C7: 52000 | D7: =B7*C7 -> 52000 | E7: RSC is allowed for all general affordable units at a 1:40 to 1:75 unit ratio
A8: After School Coordinator | B8: 0.25 | C8: 48000 | D8: =B8*C8 -> 12000 | E8: If project will include an after school program, program and budget must be provided to LACDA and approved by LACDA
A9: Supervising Program Manager | B9: 0.1 | C9: 67500 | D9: =B9*C9 -> 6750 | E9: Up to 15% of full salary allowed for supervision of RSC staff
A10: Total Salaries | D10: =SUM(D7:D9) -> 70750
A11: Benefits (calculated at 28%) | D11: =SUM(D10*0.28) -> 19810
A12: TOTAL PERSONNEL | D12: =SUM(D10,D11) -> 90560
A14: Services and Supplies Cost
A15: Training | D15: 1000 | E15: $1,000 per 1 FTE RSC allowed prior to RR payment
A16: Transportation | D16: =84*40 -> 3360 | E16: $84 per general affordable unit per year for metro fares allowed prior to RR payment
A17: Program/Office Supplies | D17: =50*40 -> 2000 | E17: $50 per general affordable unit per year for supportive services office supplies prior to RR payment
A18: After School Supplies | D18: 2000 | E18: $2,000 is maximum allowed per project prior to residual receipts payment
A19: Food/Events | D19: =100*60 -> 6000 | E19: $100 per each project unit per year allowed prior to RR payment. Budget is allowed to include all PSH units and all general affordable units.
A20: TOTAL SERVICES AND SUPPLIES | D20: =SUM(D15:D19) -> 14360
A22: TOTAL COST ALLOCATION | D22: =D12+D20 -> 104920
A24: NOTES
A25: ONE TIME COST TO SETUP INITIAL OFFICES INCLUDING ITEMS SUCH AS COMPUTER(S), PRINTER(S), AND FURNISHINGS ARE TO BE INCLUDED IN THE DEVELOPMENT BUDGET NOT OPERATING BUDGET

Sheet H.4b Sample Vet.&Gen Aff. Budge
A1: H.4.b Sample Veteran and General Affordable Supportive Services Budget
A3: General Affordable Units | B3: 40
A4: VASH PSH Units | B4: 20
B5: % FTE | C5: Salary | D5: Annual Amount | E5: Comment/Justification
A6: Personnel
A7: RSC | B7: 1 | C7: 52000 | D7: =B7*C7 -> 52000 | E7: RSC is allowed for all VASH units and all general affordable units at a 1:40 unit ratio
A8: RSC | B8: 0.5 | C8: =C7 -> 52000 | D8: =B8*C8 -> 26000 | E8: RSC is allowed for all VASH units and all general affordable units at a 1:40 unit ratio
A9: After School Coordinator | B9: 0.25 | C9: 48000 | D9: =B9*C9 -> 12000 | E9: If project will include an after school program, program and budget must be provided to LACDA and approved by LACDA
A10: Supervising Program Manager | B10: 0.1 | C10: 67500 | D10: =B10*C10 -> 6750 | E10: Up to 15% of full salary allowed for supervision of RSC staff
A11: Total Salaries | D11: =SUM(D7:D10) -> 96750
A12: Benefits (calculated at 28%) | D12: =SUM(D11*0.28) -> 27090
A13: TOTAL PERSONNEL | D13: =SUM(D11,D12) -> 123840
A15: Services and Supplies Cost
A16: Training | D16: 1500 | E16: $1,000 per 1 FTE RSC allowed prior to RR payment
A17: Transportation | D17: =84*60 -> 5040 | E17: $84 allowed for each VASH unit & general affordable unit prior to RR payment
A18: Transportation (Agency Vehicle) | D18: 12000 | E18: Up to $12,000 allowed for a dedicated vehicle to be used exclusively for the VASH units to provide transportation to veteran services located off-site. A transportation budget must be submitted to LACDA and approved by LACDA.
A19: Program/Office Supplies | D19: =50*60 -> 3000 | E19: $50 per general affordable unit and per VASH unit per year for supportive services office supplies prior to residual receipts payment
A20: After School Supplies | D20: 2000 | E20: $2,000 is maximum allowed per project prior to RR payment
A21: Food/Events | D21: =100*60 -> 6000 | E21: $100 per each project unit per year allowed prior to RR payment. Budget is allowed to include all PSH units and all general affordable units.
A22: TOTAL SERVICES AND SUPPLIES | D22: =SUM(D16:D21) -> 29540
A24: TOTAL COST ALLOCATION | D24: =D13+D22 -> 153380
A26: NOTES
A27: ONE TIME COST TO SETUP INITIAL OFFICES INCLUDING ITEMS SUCH AS COMPUTER(S), PRINTER(S), AND FURNISHINGS ARE TO BE INCLUDED IN THE DEVELOPMENT BUDGET NOT OPERATING BUDGET

Sheet H.11 Prop Mgmt Experience
C2: H.11 Property Management Agent Experience
C3: =IF('C.1 Project Summary'!E23="","",'C.1 Project Summary'!E23) -> 
C5: Name of Property Management Agent:
C6: Target Special Needs Population(s):
C8: Note: Applicant team must include property management staff with experience in managing at least two projects with similar tenant populations and of similar scale as the proposed project. Target Populations are defined in NOFA Supplemental Document - Supportive Services Criteria. Information contained in this table will be used to determine passage/failure of threshold and to determine the number of eligible projects that will qualify for experience points.
C10: Project Name & Address | D10: Beginning and End Date for Property Management | E10: Project type (New Const. or Rehab) | F10: Target Population | G10: Type of Special Needs Population | H10: Number of Special Needs Units | I10: Number of Restricted Units | J10: Number of Total Units | K10: Principal Funding Sources (LIHTC, MHP, etc.) | L10: Principal(s) Involved and Role
B11: 1
B12: 2
B13: 3
B14: 4
B15: 5
B16: 6
B17: 7
B18: 8
B19: 9
B20: 10
B21: 11
B22: 12
B23: 13
B24: 14
B25: 15
B26: 16
B27: 17
B28: 18
B29: 19
B30: 20
B31: 21
B32: 22

Sheet I.2 Architect Experience
B2: I.2 Architect Experience
B3: =IF('C.1 Project Summary'!$E$22<>"",'C.1 Project Summary'!$E$22,"") -> 
B5: Name of Architect:
B7: Licensed in the State of California? | D7: (Select)
B9: List number of multifamily housing projects completed that are subject to a recorded affordability covenant. The architect must have completed at least two (2) affordable multifamily rental housing projects of the type proposed (new construction or rehabilitation), or have completed one (1) LACDA-funded affordable multifamily rental housing project of the type proposed.
B12: Note: List only projects where the Architect has served as the architect of record.
B14: Project Address | D14: Date Completed | E14: Project Type* | F14: New Construction or Rehabilitation? | G14: Total No. of Units | H14: No. of Restricted Affordable Units | I14: Architect Role (Lead, Junior, etc.)
B15: 1
B16: 2
B17: 3
B18: 4
B19: 5
B20: 6
B21: 7
B22: 8
B23: 9
B24: 10
B25: 11
B26: 12
B27: 13
B28: 14
B29: 15
B30: 16
C31: * For project type, indicate target population (family, senior, homeless, etc.)

Sheet I.5 Design Narrative
B2: I.5 Design Narrative
B3: =IF('C.1 Project Summary'!$E$22<>"",'C.1 Project Summary'!$E$22,"") -> 
B5: I.5.1 | D5: Briefly summarize the project's concept and design.
B11: I.5.2 | D11: Explain how the design is appropriate to the needs of the target population.
B17: I.5.3 | D17: Explain how the design is appropriate to the site and the neighborhood.
B23: I.5.4 | D23: All senior housing projects must describe how Mobility, Clarity, and Inclusiveness are addressed in the project's design. See NOFA Supplemental Document - Architectural Design Requirements, Section IV Senior Housing Requirements.
B29: I.5.5 | D29: Provide a brief narrative of the project's following elements:
D31: I.5.5.1 | E31: Building scale and massing
D32: I.5.5.2 | E32: Building form
D33: I.5.5.3 | E33: Site and building circulation
D34: I.5.5.4 | E34: Landscape design
D35: I.5.5.5 | E35: Security and crime prevention
D36: I.5.5.6 | E36: Exterior elevation treatment
D37: I.5.5.7 | E37: Unit size and layout
D38: I.5.5.8 | E38: Amenities and unique features
D39: I.5.5.9 | E39: Connection between indoor and outdoor space
M41: Mandatory Requirement
M42: No. of Units | N42: %
D43: I.5.5.10 | E43: Mandatory Accessibility Requirements | I43: Units for mobility impaired residents:
I44: Units for sensory-impaired residents:
D46: I.5.5.11 | E46: List unit number and unit type for mobility units (e.g. Unit No. 102, 1-Br.)
D48: I.5.5.11 | E48: List unit number and unit type for sensory units (e.g. Unit No. 203, 2-Br.)
B51: I.5.6 | D51: Confirm that the project will comply with the requirements of 2010 ADA Standards and California Building Code (Chapters 11A and 11B) as well as the mandatory accessibility requirements as defined in the Architectural Design Requirements. For projects receiving Federal Funding from another agency, does the that agency require the project comply with the Uniform Federal Accessibility Standards (as required by Section 504 of the Rehabilitation Act of 1973)?
B61: I.5.7 | D61: Describe how the project's proposed materials, building features and design will make it durable.
B67: I.5.8 | D67: Identify any deviations from the Architectural Design Requirements and provide an explanation. Only deviations that are a direct result of prior public input on the project, because of a clear conflict with a local jurisdiction's requirements, or that are resident-specific are acceptable. Include evidence of public input or local jurisdiction requirements with the application.
B73: I.5.9 | D73: Is the project proposing a health medical clinic (FQHC) and/or a childcare center onsite? If yes, provide a program description for each and attach MOUs with the proposed providers.
B79: I.5.10 | D79: Are any non-housing improvements or elements included in the project scope? If yes, describe all of the requirements and associated costs. Items to consider include: public street improvements, alleys, sidewalks, traffic calming, public amenities of any kind, additional supportive service space, or any additional structures beyond what has already been described in the application.

Sheet I.16 Sust. Bldg. Methods (hidden)
B2: I.16 Sustainable Building Methods Compliance Certification
B3: =IF('C.1 Project Summary'!$E$22<>"",'C.1 Project Summary'!$E$22,"") -> 
B5: REQUIRED SUSTAINABLE BUILDING METHODS
B6: 1 | C6: Minimum Energy Efficiency: New Construction and Rehabilitation projects must be designed to meet the minimum construction requirements as defined by TCAC Regulations Section 10325(f)(7)(A). Rehabilitation projects will need to demonstrate a 20% reduction in energy use from tabulated baseline, based on the HERS verified existing condition.
B7: 2 | C7: Outdoor water conservation measures that include (not applicable for projects with graywater irrigation systems): 1) Use native or drought-tolerant plants for a minimum of 75% of landscaped area; select plants from Los Angeles County's Drought-tolerant Plant List found at http://planning.lacounty.gov/green, or the local jurisdiction’s drought-tolerant plant list, if required to do so by the local jurisdiction. 2) Limit conventional grass/turf to 25% of landscaped area. 3) Group plants with similar watering needs (hydrozones). 4) Install high efficiency irrigation system with smart irrigation controls for all landscaping.
B8: 3 | C8: At minimum the project shall recycle and/or salvage 70% of non-hazardous construction and demolition debris.
B9: 4 | C9: The project shall provide an easily-accessible recycling area for tenant use that serves the entire building.
B10: 5 | C10: Project team shall conduct a design charrette prior to the NOFA application deadline that meets the criteria specified by Enterprise Green Communities charrettes or requirements of LEED for Homes. At minimum the charrette shall include the architect, civil, MEP, landscape architect, structural, and the energy modeler. Meeting minutes shall be provided as evidence of the design charrette.
B11: 6 | C11: Property manager and maintenance staff shall be trained in the use of a Green Operations and Maintenance Manual. The manual shall be prepared at pre-lease up using Green Communities' template or shall be organized to satisfy the requirements of LEED for Homes AEc1.1. Must include reference in Property Management Plan
B12: ADDITIONAL SUSTAINABLE BUILDING METHODS 8 POINTS MINIMUM / 40 POINTS MAXIMUM | D12: Available Points | E12: Points Selected by Project | G12: 0
B13: 1 | C13: Graywater Irrigation: An eligible project must have a minimum of 3,000 square feet of landscaping on grade, and must include at a minimum all front, rear, and side yards, courtyards, and parking lot landscape areas. See eligibility criteria and requirements in Appendix 7. Must include reference in Property Management Plan. | D13: 10 | E13: 10
B14: 2 | C14: DOE Zero Energy Ready Home: Projects that incorporate DOE Zero Energy Ready Home requirements will receive 10 points. Projects shall certify to using the DOE Zero Energy Ready Homes criteria (which includes ENERGY STAR Homes and portions of the EPA WaterSense specifications as prerequisites). See eligibility criteria and requirements in Appendix 7. | D14: 10
B15: 3 | C15: ENERGY STAR Homes: Projects (not receiving HOME funding) that certify to using ENERGY STAR Homes v. 3 will receive 10 points. At the time of application, project teams shall acknowledge this requirement, and shall identify the ENERGY STAR Rater who will work on the project. Progress ENERGY STAR checklists (latest version), prepared and signed by the ENERGY STAR Rater, shall be submitted to the Commission at the time of the Loan Committee review (as early as five (5) months after the award). | D15: 10
B16: 4 | C16: Green Building Certification Program: Projects that seek above the minimum certification in at least one (1) green building program will receive five (5) points. See incentive structure and requirements in Appendix 7. | D16: 5
B17: 5 | C17: Reduce Domestic Hot Water Energy Use: Projects that reduce energy use associated with domestic hot water heating by a minimum of 40% (as measured in kTDV/Ft2-year using the 2016 Energy Code) will receive five (5) points. Projects shall submit a conceptual energy analysis prepared by a qualified CEA demonstrating minimum compliance and a conceptual narrative of the approach that will be taken. Detailed energy analyses and energy models are not required for the application phase. | D17: 5
B18: 6 | C18: EPA WaterSense Specification: Projects that incorporate EPA WaterSense Specification will receive five (5) points. Project teams shall incorporate the EPA WaterSense Specification into the project documents, and shall ensure that these requirements are clearly understood and adopted by the architect, the plumbing engineer, and the landscape irrigation designer at the time of the design charrette. In order to qualify for the incentive, the project team shall submit drawings and specifications for Commission review at the Loan Committee phase. | D18: 5
B19: 7 | C19: ENERGY STAR ceiling fans: Installation of ENERGY STAR rated ceiling fans in all bedrooms and living rooms will receive five (5) points. | D19: 5
B20: 8 | C20: Increased Energy Efficiency: a) For new construction projects that exceed Title 24 energy standards by 25% for new construction of low-rise multifamily (3 or fewer habitable stories) and 20% for new construction of high-rise multifamily (4 or more habitable stories), or rehabilitation project, not subject to Title 24, that reduces energy use on a per square foot basis by 25% will receive four (4) points. b) For rehabilitation projects, not subject to Title 24, use of fluorescent light fixtures for at least 75% of light fixtures or comparable energy lighting for the project’s total lighting throughout the compliance period will receive two (2) points. | D20: Up to 4
B21: 9 | C21: Quality Insulation Installation: Projects that incorporate Quality Insulation Installation will be eligible for three (3) points and up to $350 per unit. Project teams shall utilize Quality Insulation Installation, meeting the 2016 Energy Code Standard as a HERS-verified energy feature. A cost estimate must be provided to justify the maximum incentive. | D21: 3 | G21: 5
B22: 10 | C22: Electric Vehicle Parking: Projects that commit to equip 5% of the parking stalls (for use by owner and residents) with a receptacle to accommodate use by electric vehicles charging equipment will receive three (3) points. To receive points projects must provide: 1) A parking plan with 5% of parking stalls designated for plug-in electric vehicles. 2) Sufficient space in electrical room for future installation of electric equipment necessary for 100% of parking stalls for use by residential component of the building. 3) A description of how the 5% of parking stalls will be shared. 4) Explanation as to why this is appropriate for the project. | D22: 3 | G22: 10
B23: 11 | C23: High Efficiency Toilets: Projects that install high efficiency toilets that require 1.06 gallons or less to flush and meet a minimum MaP threshold of 600 grams of waste removed from the toilet in a single flush. Toilets must be EPA WaterSense-qualified. Quiet flush or very low-noise models are recommended. Applicants are encouraged to check with their appropriate water utility or water district to take advantage of available rebates. | D23: 3
B24: 12 | C24: Nonsmoking buildings. | D24: 3
B25: 13 | C25: Use of energy conservation measures for all building locations include: 1) ENERGY STAR labeled refrigerators 2) ENERGY STAR labeled dishwashers (4.25 gpc or less) 3) ENERGY STAR clothes washers that are a current Consortium for Energy Efficiency (CEE) Tier 3, or 4 model with a Modified Energy Factor (MEF) of 2.4 or greater and a Water Factor (WF) of 4.0 or less. 4) ENERGY STAR lighting for interior 5) ENERGY STAR bathroom fan/light 6) ENERGY STAR approved exterior lighting, or High Efficacy as defined by the California Energy Commission. | D25: 2
B26: 14 | C26: Indoor water conservation measures: 1) Use of showerheads that are water efficient (1.5 gpm or less). 2) Use water-saving fixtures or flow restrictors in the kitchen and bathrooms (1.5 gpm or less). | D26: 2
B27: 15 | C27: Incorporate design to retain, infiltrate and/or treat on-site the first one-half (1/2) inch of rainfall in a 24-hour period. | D27: 2
B28: 16 | C28: Use of no-VOC interior paint (5 g/l or less). | D28: 2
B29: 17 | C29: Use of at least one (1) of the following recycled materials at the designated levels: a) Cast-in-place concrete (20% flyash for foundations, slabs, and site concrete); b) Carpet and pad (25%); c) Road base, fill or landscaped amendments (30%). | D29: 2
B30: TOTAL (40 PTS MAX) | E30: =IF(SUM(E13:E29)>40,40,SUM(E13:E29)) -> 10
C33: By checking this box, applicant certifies that the above items will be incorporated into the project's design.

Sheet I.16a Hlthy. Design Elem. (hidden)
B2: I.16a Healthy Design Elements Compliance Certification
B3: =IF('C.1 Project Summary'!$E$22<>"",'C.1 Project Summary'!$E$22,"") -> 
B5: VOLUNTARY HEALTHY DESIGN ELEMENTS - 20 POINTS MAX | D5: Points | E5: Proposed Project
B6: 1 | C6: Onsite gym incentive: Projects that include an onsite gym will receive ten (10) points. Applicants must include at least three varieties of cardio equipment as well as strength training equipment. Room must be open at convenient times (before and after work hours and at lunch, and a minimum of 10 hours per day). | D6: 10
B7: 2 | C7: Designated Exercise Room: Projects that provide a designated exercise room will receive five (5) points. The room must be open at convenient times (before and after work hours and at lunch, and a minimum of 10 hours per day). Capacity and class offerings should allow 10% of building occupants to take one class weekly. The exercise room must be set aside for its own use and cannot be part of a community room or other dual-use space. | D7: 5
B8: 3 | C8: Edible Garden Program: Projects that provide an Edible Garden Program that includes education, on-site garden space, composting area, and necessary resources will receive five (5) points. A vertical garden of equal area or an off-site program will be considered. See incentive requirements in Appendix 7. Must include reference to the Edible Garden in Service Plan | D8: 5
B9: 4 | C9: Container Garden and Edible Landscaping Program: Projects that do not have enough space to fully integrate an Edible Garden Program into the site plan may propose a Container Garden and Edible Landscaping Program for the development to receive three (3) points. This program would involve the use of edible landscape components, which could include fruit trees, culinary herbs, and shrubs such as berries that could be put in designated areas of the landscape, such as along walls, fences, and walkways. Must include reference to the Container Garden and Edible Landscaping Program in Service Plan | D9: 3
B10: 5 | C10: Bike racks/secure storage: Projects that provide exterior bike racks and a secure interior bike storage room will receive (3) points. See eligibility criteria and requirements in Appendix 7. | D10: 3
B11: 6 | C11: DESIGN FOR INCREASED STAIR USE A maximum of 15 points are available. If this option is selected, 5 base points are given for Required Design Items. A maximum of 10 additional points are then available from the Optional Design Items. | D11: 5
B12: Stair Location
B13: 6a | C13: VISIBILITY: Position at least one stair to be visible from the building’s main lobby. A maximum of 25 feet travel and no turns should be required to reach stairs from the building’s main entry. | D13: Required
B14: 6b | C14: LOCATION WITH RESPECT TO ELEVATORS PRIORITY - Position at least one stair before access to elevators from the main building lobby, along the principal path of travel. | D14: Required
B15: 6c | C15: LOCATION WITH RESPECT TO ELEVATORS VISIBILITY - Position at least one stair within view of the elevators. | D15: 2
B16: 6d | C16: LOCATION ON PRINCIPAL PATH OF TRAVEL - At least one stair shall be located on, and visible from, the principal path of travel on each floor. | D16: 2
B17: Circulation Signage
B18: 6e | C18: SIGNAGE PROMPTS AT STAIRS - Include permanent signage encouraging stair use to be integrated with the building’s way-finding program. | D18: Required
B19: 6f | C19: SIGNAGE PROMPTS AT ELEVATORS - Include permanent signage encouraging stair use to be integrated with the building’s way-finding program. | D19: Required
B20: Stair Design and Aesthetics
B21: 6g | C21: ELECTRICAL LIGHTING - Incorporate a professionally-designed lighting program utilizing architectural fixtures that provide the light level and quality mandated by code and consistent with lighting in the building corridors. | D21: Required
B22: 6h | C22: NATURAL LIGHTING - Provide windows or skylight at each level. | D22: 3
B23: 6i | C23: MUSIC - Provide music system within the stairs. | D23: 1
B24: 6j | C24: ARTWORK - Include permanent non-combustible artwork to increase visual interest within the stairs. | D24: 3
B25: 6k | C25: FINISHES - Provide similar or better quality finishes as building corridors. | D25: 1
B26: 6l | C26: VENTILATION - Provide same heat and air-conditioning level as building corridors. | D26: Required
B27: 6m | C27: SECURITY - Provide closed-caption television monitoring or similar system as provided in building corridors, or better. | D27: Required
B28: 6n | C28: SIZE - Provide stair width that is at least 20% greater than the minimum required by code. | D28: 3
B29: TOTAL (20 PTS MAX) | E29: =IF(SUM(E28,E22:E25,E15:E16,E6:E11)>20,20,SUM(E28,E22:E25,E15:E16,E6:E11)) -> 0
C32: By checking this box, applicant certifies that the above items will be incorporated into the project's design.

Sheet I.16 Sust. Bldg. Methods
B2: I.16 Sustainable Building Methods Compliance Certification
B5: REQUIRED SUSTAINABLE BUILDING METHODS
B6: 1 | C6: Minimum Energy Efficiency: Rehabilitation projects must be designed to meet the minimum construction requirements as defined by current TCAC Regulations.
B7: 2 | C7: Outdoor water conservation measures that include: 1) Use native or drought-tolerant plants for a minimum of 75% of landscaped area. 2) Limit conventional grass/turf to 25% of landscaped area. 3) Group plants with similar watering needs (hydrozones). 4) Install high efficiency irrigation system with smart irrigation controls for all landscaping.
B8: 3 | C8: At minimum the project shall recycle and/or salvage 70% of non-hazardous construction and demolition debris.
B9: 4 | C9: The project shall provide an easily-accessible recycling area for tenant use that serves the entire building.
C11: By checking this box, applicant certifies that the above items will be incorporated into the project's design.

Sheet J.5 Other Public Funds Cert.
B2: J.5 Certification of Seeking Other Public Funds
B3: =IF('C.1 Project Summary'!E23="","",'C.1 Project Summary'!E23) -> 
B4: I, [NAME OF AUTHORIZED PARTY], certify that should any entity of the development team seek public funds for this project other than those shown in this application, the Applicant will notify the Los Angeles County Development Authority (LACDA) upon applying for the funds. The notification shall include the date of application, source and amount of funds sought, the reason for applying for other public funds, and if the award of funds will reduce the LACDA's funding allocation. In addition the Applicant will, upon request, provide the LACDA with any applications for funding associated with this project.
B13: Name of Project
B15: Applicant
B17: Signature
B19: Print Name
B21: Title
B23: Date
